Workbook

Sheet R140
B1: R140: THEATRE SERVICES | S1: This is a Public Health Scotland National Statistics release
B2: April 2019 - March 2020 | S2: 23rd February 2021
B3: General hospitals (mainly acute) | C3: ← | F3: * Use drop-down menu to select specialties
A4: =B3 -> General hospitals (mainly acute) | F4: * If menu is not active, change macro security settings using Tools, Macro, Security - set security level to Medium and re-open the report.
A5: 1 | B5: =IF(ISNA(VLOOKUP(CONCATENATE($A5,$A$4),Data!$A$2:$S$850,2,FALSE)),"",VLOOKUP(CONCATENATE($A5,$A$4),Data!$A$2:$S$850,2,FALSE)) -> Number of Hospitals: 35
E7: Number | F7: Theatre Hours Used | I7: Direct Costs | O7: Allocated | P7: Total | Q7: Income | R7: Net Cost
E8: of | O8: Costs | P8: Expenditure | Q8: ACT | R8: per
B9: Hospital, Board Cipher | E9: Theatres | F9: Per | G9: Per Theatre | I9: Staff | L9: Supplies | P9: (net of | Q9: (netted in | R9: Theatre
B10: & Classification | F10: Week | G10: Per Week | P10: ACT | Q10: theatre | R10: Hour Used
G11: Hours | H11: Group | I11: Medical | J11: Nursing | K11: Other | L11: Drugs | M11: CSSD | N11: Other | P11: income) | Q11: expenditure)
H12: Index | I12: & Dental | S12: Group
I13: £000 | J13: £000 | K13: £000 | L13: £000 | M13: £000 | N13: £000 | O13: £000 | P13: £000 | Q13: £000 | R13: £ | S13: Index
A14: 2 | B14: =IF(ISNA(VLOOKUP(CONCATENATE($A14,$A$4),Data!$A$2:$S$100,Lookup!C$3,FALSE)),"",VLOOKUP(CONCATENATE($A14,$A$4),Data!$A$2:$S$100,Lookup!C$3,FALSE)) -> Totals or Averages | C14: =IF(ISNA(VLOOKUP(CONCATENATE($A14,$A$4),Data!$A$2:$S$100,Lookup!D$3,FALSE)),"",VLOOKUP(CONCATENATE($A14,$A$4),Data!$A$2:$S$100,Lookup!D$3,FALSE)) -> 0 | D14: =IF(ISNA(VLOOKUP(CONCATENATE($A14,$A$4),Data!$A$2:$S$100,Lookup!E$3,FALSE)),"",VLOOKUP(CONCATENATE($A14,$A$4),Data!$A$2:$S$100,Lookup!E$3,FALSE)) -> 0 | E14: =IF(ISNA(VLOOKUP(CONCATENATE($A14,$A$4),Data!$A$2:$S$100,Lookup!F$3,FALSE)),"",VLOOKUP(CONCATENATE($A14,$A$4),Data!$A$2:$S$100,Lookup!F$3,FALSE)) -> 340.6 | F14: =IF(ISNA(VLOOKUP(CONCATENATE($A14,$A$4),Data!$A$2:$S$100,Lookup!G$3,FALSE)),"",VLOOKUP(CONCATENATE($A14,$A$4),Data!$A$2:$S$100,Lookup!G$3,FALSE)) -> 8764.865577 | G14: =IF(ISNA(VLOOKUP(CONCATENATE($A14,$A$4),Data!$A$2:$S$100,Lookup!H$3,FALSE)),"",VLOOKUP(CONCATENATE($A14,$A$4),Data!$A$2:$S$100,Lookup!H$3,FALSE)) -> 25.73360416 | H14: =IF(ISNA(VLOOKUP(CONCATENATE($A14,$A$4),Data!$A$2:$S$100,Lookup!I$3,FALSE)),"",VLOOKUP(CONCATENATE($A14,$A$4),Data!$A$2:$S$100,Lookup!I$3,FALSE)) -> 100 | I14: =IF(ISNA(VLOOKUP(CONCATENATE($A14,$A$4),Data!$A$2:$S$100,Lookup!J$3,FALSE)),"",VLOOKUP(CONCATENATE($A14,$A$4),Data!$A$2:$S$100,Lookup!J$3,FALSE)) -> 134255.9396 | J14: =IF(ISNA(VLOOKUP(CONCATENATE($A14,$A$4),Data!$A$2:$S$100,Lookup!K$3,FALSE)),"",VLOOKUP(CONCATENATE($A14,$A$4),Data!$A$2:$S$100,Lookup!K$3,FALSE)) -> 159650.0727 | K14: =IF(ISNA(VLOOKUP(CONCATENATE($A14,$A$4),Data!$A$2:$S$100,Lookup!L$3,FALSE)),"",VLOOKUP(CONCATENATE($A14,$A$4),Data!$A$2:$S$100,Lookup!L$3,FALSE)) -> 17688.52042 | L14: =IF(ISNA(VLOOKUP(CONCATENATE($A14,$A$4),Data!$A$2:$S$100,Lookup!M$3,FALSE)),"",VLOOKUP(CONCATENATE($A14,$A$4),Data!$A$2:$S$100,Lookup!M$3,FALSE)) -> 15431.27428 | M14: =IF(ISNA(VLOOKUP(CONCATENATE($A14,$A$4),Data!$A$2:$S$100,Lookup!N$3,FALSE)),"",VLOOKUP(CONCATENATE($A14,$A$4),Data!$A$2:$S$100,Lookup!N$3,FALSE)) -> 17017.00696 | N14: =IF(ISNA(VLOOKUP(CONCATENATE($A14,$A$4),Data!$A$2:$S$100,Lookup!O$3,FALSE)),"",VLOOKUP(CONCATENATE($A14,$A$4),Data!$A$2:$S$100,Lookup!O$3,FALSE)) -> 132790.6426 | O14: =IF(ISNA(VLOOKUP(CONCATENATE($A14,$A$4),Data!$A$2:$S$100,Lookup!P$3,FALSE)),"",VLOOKUP(CONCATENATE($A14,$A$4),Data!$A$2:$S$100,Lookup!P$3,FALSE)) -> 110147.2298 | P14: =IF(ISNA(VLOOKUP(CONCATENATE($A14,$A$4),Data!$A$2:$S$100,Lookup!Q$3,FALSE)),"",VLOOKUP(CONCATENATE($A14,$A$4),Data!$A$2:$S$100,Lookup!Q$3,FALSE)) -> 586980.6863 | Q14: =IF(ISNA(VLOOKUP(CONCATENATE($A14,$A$4),Data!$A$2:$S$100,Lookup!R$3,FALSE)),"",VLOOKUP(CONCATENATE($A14,$A$4),Data!$A$2:$S$100,Lookup!R$3,FALSE)) -> 8688.50618 | R14: =IF(ISNA(VLOOKUP(CONCATENATE($A14,$A$4),Data!$A$2:$S$100,Lookup!S$3,FALSE)),"",VLOOKUP(CONCATENATE($A14,$A$4),Data!$A$2:$S$100,Lookup!S$3,FALSE)) -> 1287.879434 | S14: =IF(ISNA(VLOOKUP(CONCATENATE($A14,$A$4),Data!$A$2:$S$100,Lookup!T$3,FALSE)),"",VLOOKUP(CONCATENATE($A14,$A$4),Data!$A$2:$S$100,Lookup!T$3,FALSE)) -> 100
A15: 3 | B15: =IF(ISNA(VLOOKUP(CONCATENATE($A15,$A$4),Data!$A$2:$S$100,Lookup!C$3,FALSE)),"",VLOOKUP(CONCATENATE($A15,$A$4),Data!$A$2:$S$100,Lookup!C$3,FALSE)) -> Queen Elizabeth University Hospital | C15: =IF(ISNA(VLOOKUP(CONCATENATE($A15,$A$4),Data!$A$2:$S$100,Lookup!D$3,FALSE)),"",VLOOKUP(CONCATENATE($A15,$A$4),Data!$A$2:$S$100,Lookup!D$3,FALSE)) -> G | D15: =IF(ISNA(VLOOKUP(CONCATENATE($A15,$A$4),Data!$A$2:$S$100,Lookup!E$3,FALSE)),"",VLOOKUP(CONCATENATE($A15,$A$4),Data!$A$2:$S$100,Lookup!E$3,FALSE)) -> A1 | E15: =IF(ISNA(VLOOKUP(CONCATENATE($A15,$A$4),Data!$A$2:$S$100,Lookup!F$3,FALSE)),"",VLOOKUP(CONCATENATE($A15,$A$4),Data!$A$2:$S$100,Lookup!F$3,FALSE)) -> 29 | F15: =IF(ISNA(VLOOKUP(CONCATENATE($A15,$A$4),Data!$A$2:$S$100,Lookup!G$3,FALSE)),"",VLOOKUP(CONCATENATE($A15,$A$4),Data!$A$2:$S$100,Lookup!G$3,FALSE)) -> 883.1538462 | G15: =IF(ISNA(VLOOKUP(CONCATENATE($A15,$A$4),Data!$A$2:$S$100,Lookup!H$3,FALSE)),"",VLOOKUP(CONCATENATE($A15,$A$4),Data!$A$2:$S$100,Lookup!H$3,FALSE)) -> 30.4535809 | H15: =IF(ISNA(VLOOKUP(CONCATENATE($A15,$A$4),Data!$A$2:$S$100,Lookup!I$3,FALSE)),"",VLOOKUP(CONCATENATE($A15,$A$4),Data!$A$2:$S$100,Lookup!I$3,FALSE)) -> 118.3416855 | I15: =IF(ISNA(VLOOKUP(CONCATENATE($A15,$A$4),Data!$A$2:$S$100,Lookup!J$3,FALSE)),"",VLOOKUP(CONCATENATE($A15,$A$4),Data!$A$2:$S$100,Lookup!J$3,FALSE)) -> 11976.235 | J15: =IF(ISNA(VLOOKUP(CONCATENATE($A15,$A$4),Data!$A$2:$S$100,Lookup!K$3,FALSE)),"",VLOOKUP(CONCATENATE($A15,$A$4),Data!$A$2:$S$100,Lookup!K$3,FALSE)) -> 17424.784 | K15: =IF(ISNA(VLOOKUP(CONCATENATE($A15,$A$4),Data!$A$2:$S$100,Lookup!L$3,FALSE)),"",VLOOKUP(CONCATENATE($A15,$A$4),Data!$A$2:$S$100,Lookup!L$3,FALSE)) -> 424.575 | L15: =IF(ISNA(VLOOKUP(CONCATENATE($A15,$A$4),Data!$A$2:$S$100,Lookup!M$3,FALSE)),"",VLOOKUP(CONCATENATE($A15,$A$4),Data!$A$2:$S$100,Lookup!M$3,FALSE)) -> 1688.074 | M15: =IF(ISNA(VLOOKUP(CONCATENATE($A15,$A$4),Data!$A$2:$S$100,Lookup!N$3,FALSE)),"",VLOOKUP(CONCATENATE($A15,$A$4),Data!$A$2:$S$100,Lookup!N$3,FALSE)) -> 0.161 | N15: =IF(ISNA(VLOOKUP(CONCATENATE($A15,$A$4),Data!$A$2:$S$100,Lookup!O$3,FALSE)),"",VLOOKUP(CONCATENATE($A15,$A$4),Data!$A$2:$S$100,Lookup!O$3,FALSE)) -> 16686.926 | O15: =IF(ISNA(VLOOKUP(CONCATENATE($A15,$A$4),Data!$A$2:$S$100,Lookup!P$3,FALSE)),"",VLOOKUP(CONCATENATE($A15,$A$4),Data!$A$2:$S$100,Lookup!P$3,FALSE)) -> 8632.803 | P15: =IF(ISNA(VLOOKUP(CONCATENATE($A15,$A$4),Data!$A$2:$S$100,Lookup!Q$3,FALSE)),"",VLOOKUP(CONCATENATE($A15,$A$4),Data!$A$2:$S$100,Lookup!Q$3,FALSE)) -> 56833.558 | Q15: =IF(ISNA(VLOOKUP(CONCATENATE($A15,$A$4),Data!$A$2:$S$100,Lookup!R$3,FALSE)),"",VLOOKUP(CONCATENATE($A15,$A$4),Data!$A$2:$S$100,Lookup!R$3,FALSE)) -> 3605.175 | R15: =IF(ISNA(VLOOKUP(CONCATENATE($A15,$A$4),Data!$A$2:$S$100,Lookup!S$3,FALSE)),"",VLOOKUP(CONCATENATE($A15,$A$4),Data!$A$2:$S$100,Lookup!S$3,FALSE)) -> 1237.556789 | S15: =IF(ISNA(VLOOKUP(CONCATENATE($A15,$A$4),Data!$A$2:$S$100,Lookup!T$3,FALSE)),"",VLOOKUP(CONCATENATE($A15,$A$4),Data!$A$2:$S$100,Lookup!T$3,FALSE)) -> 96.0925966
A16: 4 | B16: =IF(ISNA(VLOOKUP(CONCATENATE($A16,$A$4),Data!$A$2:$S$100,Lookup!C$3,FALSE)),"",VLOOKUP(CONCATENATE($A16,$A$4),Data!$A$2:$S$100,Lookup!C$3,FALSE)) -> Glasgow Royal Infirmary | C16: =IF(ISNA(VLOOKUP(CONCATENATE($A16,$A$4),Data!$A$2:$S$100,Lookup!D$3,FALSE)),"",VLOOKUP(CONCATENATE($A16,$A$4),Data!$A$2:$S$100,Lookup!D$3,FALSE)) -> G | D16: =IF(ISNA(VLOOKUP(CONCATENATE($A16,$A$4),Data!$A$2:$S$100,Lookup!E$3,FALSE)),"",VLOOKUP(CONCATENATE($A16,$A$4),Data!$A$2:$S$100,Lookup!E$3,FALSE)) -> A1 | E16: =IF(ISNA(VLOOKUP(CONCATENATE($A16,$A$4),Data!$A$2:$S$100,Lookup!F$3,FALSE)),"",VLOOKUP(CONCATENATE($A16,$A$4),Data!$A$2:$S$100,Lookup!F$3,FALSE)) -> 23 | F16: =IF(ISNA(VLOOKUP(CONCATENATE($A16,$A$4),Data!$A$2:$S$100,Lookup!G$3,FALSE)),"",VLOOKUP(CONCATENATE($A16,$A$4),Data!$A$2:$S$100,Lookup!G$3,FALSE)) -> 623.6730769 | G16: =IF(ISNA(VLOOKUP(CONCATENATE($A16,$A$4),Data!$A$2:$S$100,Lookup!H$3,FALSE)),"",VLOOKUP(CONCATENATE($A16,$A$4),Data!$A$2:$S$100,Lookup!H$3,FALSE)) -> 27.11622074 | H16: =IF(ISNA(VLOOKUP(CONCATENATE($A16,$A$4),Data!$A$2:$S$100,Lookup!I$3,FALSE)),"",VLOOKUP(CONCATENATE($A16,$A$4),Data!$A$2:$S$100,Lookup!I$3,FALSE)) -> 105.3728058 | I16: =IF(ISNA(VLOOKUP(CONCATENATE($A16,$A$4),Data!$A$2:$S$100,Lookup!J$3,FALSE)),"",VLOOKUP(CONCATENATE($A16,$A$4),Data!$A$2:$S$100,Lookup!J$3,FALSE)) -> 7317.288 | J16: =IF(ISNA(VLOOKUP(CONCATENATE($A16,$A$4),Data!$A$2:$S$100,Lookup!K$3,FALSE)),"",VLOOKUP(CONCATENATE($A16,$A$4),Data!$A$2:$S$100,Lookup!K$3,FALSE)) -> 12510.713 | K16: =IF(ISNA(VLOOKUP(CONCATENATE($A16,$A$4),Data!$A$2:$S$100,Lookup!L$3,FALSE)),"",VLOOKUP(CONCATENATE($A16,$A$4),Data!$A$2:$S$100,Lookup!L$3,FALSE)) -> -0.191 | L16: =IF(ISNA(VLOOKUP(CONCATENATE($A16,$A$4),Data!$A$2:$S$100,Lookup!M$3,FALSE)),"",VLOOKUP(CONCATENATE($A16,$A$4),Data!$A$2:$S$100,Lookup!M$3,FALSE)) -> 884.087 | M16: =IF(ISNA(VLOOKUP(CONCATENATE($A16,$A$4),Data!$A$2:$S$100,Lookup!N$3,FALSE)),"",VLOOKUP(CONCATENATE($A16,$A$4),Data!$A$2:$S$100,Lookup!N$3,FALSE)) -> 6.882 | N16: =IF(ISNA(VLOOKUP(CONCATENATE($A16,$A$4),Data!$A$2:$S$100,Lookup!O$3,FALSE)),"",VLOOKUP(CONCATENATE($A16,$A$4),Data!$A$2:$S$100,Lookup!O$3,FALSE)) -> 8481.128 | O16: =IF(ISNA(VLOOKUP(CONCATENATE($A16,$A$4),Data!$A$2:$S$100,Lookup!P$3,FALSE)),"",VLOOKUP(CONCATENATE($A16,$A$4),Data!$A$2:$S$100,Lookup!P$3,FALSE)) -> 6674.835 | P16: =IF(ISNA(VLOOKUP(CONCATENATE($A16,$A$4),Data!$A$2:$S$100,Lookup!Q$3,FALSE)),"",VLOOKUP(CONCATENATE($A16,$A$4),Data!$A$2:$S$100,Lookup!Q$3,FALSE)) -> 35874.742 | Q16: =IF(ISNA(VLOOKUP(CONCATENATE($A16,$A$4),Data!$A$2:$S$100,Lookup!R$3,FALSE)),"",VLOOKUP(CONCATENATE($A16,$A$4),Data!$A$2:$S$100,Lookup!R$3,FALSE)) -> 2789.31 | R16: =IF(ISNA(VLOOKUP(CONCATENATE($A16,$A$4),Data!$A$2:$S$100,Lookup!S$3,FALSE)),"",VLOOKUP(CONCATENATE($A16,$A$4),Data!$A$2:$S$100,Lookup!S$3,FALSE)) -> 1106.186735 | S16: =IF(ISNA(VLOOKUP(CONCATENATE($A16,$A$4),Data!$A$2:$S$100,Lookup!T$3,FALSE)),"",VLOOKUP(CONCATENATE($A16,$A$4),Data!$A$2:$S$100,Lookup!T$3,FALSE)) -> 85.89210336
A17: 5 | B17: =IF(ISNA(VLOOKUP(CONCATENATE($A17,$A$4),Data!$A$2:$S$100,Lookup!C$3,FALSE)),"",VLOOKUP(CONCATENATE($A17,$A$4),Data!$A$2:$S$100,Lookup!C$3,FALSE)) -> Edinburgh Royal Infirmary | C17: =IF(ISNA(VLOOKUP(CONCATENATE($A17,$A$4),Data!$A$2:$S$100,Lookup!D$3,FALSE)),"",VLOOKUP(CONCATENATE($A17,$A$4),Data!$A$2:$S$100,Lookup!D$3,FALSE)) -> S | D17: =IF(ISNA(VLOOKUP(CONCATENATE($A17,$A$4),Data!$A$2:$S$100,Lookup!E$3,FALSE)),"",VLOOKUP(CONCATENATE($A17,$A$4),Data!$A$2:$S$100,Lookup!E$3,FALSE)) -> A1 | E17: =IF(ISNA(VLOOKUP(CONCATENATE($A17,$A$4),Data!$A$2:$S$100,Lookup!F$3,FALSE)),"",VLOOKUP(CONCATENATE($A17,$A$4),Data!$A$2:$S$100,Lookup!F$3,FALSE)) -> 27 | F17: =IF(ISNA(VLOOKUP(CONCATENATE($A17,$A$4),Data!$A$2:$S$100,Lookup!G$3,FALSE)),"",VLOOKUP(CONCATENATE($A17,$A$4),Data!$A$2:$S$100,Lookup!G$3,FALSE)) -> 784.9615385 | G17: =IF(ISNA(VLOOKUP(CONCATENATE($A17,$A$4),Data!$A$2:$S$100,Lookup!H$3,FALSE)),"",VLOOKUP(CONCATENATE($A17,$A$4),Data!$A$2:$S$100,Lookup!H$3,FALSE)) -> 29.07264957 | H17: =IF(ISNA(VLOOKUP(CONCATENATE($A17,$A$4),Data!$A$2:$S$100,Lookup!I$3,FALSE)),"",VLOOKUP(CONCATENATE($A17,$A$4),Data!$A$2:$S$100,Lookup!I$3,FALSE)) -> 112.9754285 | I17: =IF(ISNA(VLOOKUP(CONCATENATE($A17,$A$4),Data!$A$2:$S$100,Lookup!J$3,FALSE)),"",VLOOKUP(CONCATENATE($A17,$A$4),Data!$A$2:$S$100,Lookup!J$3,FALSE)) -> 11055.292 | J17: =IF(ISNA(VLOOKUP(CONCATENATE($A17,$A$4),Data!$A$2:$S$100,Lookup!K$3,FALSE)),"",VLOOKUP(CONCATENATE($A17,$A$4),Data!$A$2:$S$100,Lookup!K$3,FALSE)) -> 11715.736 | K17: =IF(ISNA(VLOOKUP(CONCATENATE($A17,$A$4),Data!$A$2:$S$100,Lookup!L$3,FALSE)),"",VLOOKUP(CONCATENATE($A17,$A$4),Data!$A$2:$S$100,Lookup!L$3,FALSE)) -> 3737.734 | L17: =IF(ISNA(VLOOKUP(CONCATENATE($A17,$A$4),Data!$A$2:$S$100,Lookup!M$3,FALSE)),"",VLOOKUP(CONCATENATE($A17,$A$4),Data!$A$2:$S$100,Lookup!M$3,FALSE)) -> 1492.291 | M17: =IF(ISNA(VLOOKUP(CONCATENATE($A17,$A$4),Data!$A$2:$S$100,Lookup!N$3,FALSE)),"",VLOOKUP(CONCATENATE($A17,$A$4),Data!$A$2:$S$100,Lookup!N$3,FALSE)) -> 2445.039 | N17: =IF(ISNA(VLOOKUP(CONCATENATE($A17,$A$4),Data!$A$2:$S$100,Lookup!O$3,FALSE)),"",VLOOKUP(CONCATENATE($A17,$A$4),Data!$A$2:$S$100,Lookup!O$3,FALSE)) -> 18926.703 | O17: =IF(ISNA(VLOOKUP(CONCATENATE($A17,$A$4),Data!$A$2:$S$100,Lookup!P$3,FALSE)),"",VLOOKUP(CONCATENATE($A17,$A$4),Data!$A$2:$S$100,Lookup!P$3,FALSE)) -> 1419.592 | P17: =IF(ISNA(VLOOKUP(CONCATENATE($A17,$A$4),Data!$A$2:$S$100,Lookup!Q$3,FALSE)),"",VLOOKUP(CONCATENATE($A17,$A$4),Data!$A$2:$S$100,Lookup!Q$3,FALSE)) -> 50792.387 | Q17: =IF(ISNA(VLOOKUP(CONCATENATE($A17,$A$4),Data!$A$2:$S$100,Lookup!R$3,FALSE)),"",VLOOKUP(CONCATENATE($A17,$A$4),Data!$A$2:$S$100,Lookup!R$3,FALSE)) -> - | R17: =IF(ISNA(VLOOKUP(CONCATENATE($A17,$A$4),Data!$A$2:$S$100,Lookup!S$3,FALSE)),"",VLOOKUP(CONCATENATE($A17,$A$4),Data!$A$2:$S$100,Lookup!S$3,FALSE)) -> 1244.362463 | S17: =IF(ISNA(VLOOKUP(CONCATENATE($A17,$A$4),Data!$A$2:$S$100,Lookup!T$3,FALSE)),"",VLOOKUP(CONCATENATE($A17,$A$4),Data!$A$2:$S$100,Lookup!T$3,FALSE)) -> 96.62103684
A18: 6 | B18: =IF(ISNA(VLOOKUP(CONCATENATE($A18,$A$4),Data!$A$2:$S$100,Lookup!C$3,FALSE)),"",VLOOKUP(CONCATENATE($A18,$A$4),Data!$A$2:$S$100,Lookup!C$3,FALSE)) -> Ninewells | C18: =IF(ISNA(VLOOKUP(CONCATENATE($A18,$A$4),Data!$A$2:$S$100,Lookup!D$3,FALSE)),"",VLOOKUP(CONCATENATE($A18,$A$4),Data!$A$2:$S$100,Lookup!D$3,FALSE)) -> T | D18: =IF(ISNA(VLOOKUP(CONCATENATE($A18,$A$4),Data!$A$2:$S$100,Lookup!E$3,FALSE)),"",VLOOKUP(CONCATENATE($A18,$A$4),Data!$A$2:$S$100,Lookup!E$3,FALSE)) -> A1 | E18: =IF(ISNA(VLOOKUP(CONCATENATE($A18,$A$4),Data!$A$2:$S$100,Lookup!F$3,FALSE)),"",VLOOKUP(CONCATENATE($A18,$A$4),Data!$A$2:$S$100,Lookup!F$3,FALSE)) -> 18 | F18: =IF(ISNA(VLOOKUP(CONCATENATE($A18,$A$4),Data!$A$2:$S$100,Lookup!G$3,FALSE)),"",VLOOKUP(CONCATENATE($A18,$A$4),Data!$A$2:$S$100,Lookup!G$3,FALSE)) -> 613.2469231 | G18: =IF(ISNA(VLOOKUP(CONCATENATE($A18,$A$4),Data!$A$2:$S$100,Lookup!H$3,FALSE)),"",VLOOKUP(CONCATENATE($A18,$A$4),Data!$A$2:$S$100,Lookup!H$3,FALSE)) -> 34.0692735 | H18: =IF(ISNA(VLOOKUP(CONCATENATE($A18,$A$4),Data!$A$2:$S$100,Lookup!I$3,FALSE)),"",VLOOKUP(CONCATENATE($A18,$A$4),Data!$A$2:$S$100,Lookup!I$3,FALSE)) -> 132.3921565 | I18: =IF(ISNA(VLOOKUP(CONCATENATE($A18,$A$4),Data!$A$2:$S$100,Lookup!J$3,FALSE)),"",VLOOKUP(CONCATENATE($A18,$A$4),Data!$A$2:$S$100,Lookup!J$3,FALSE)) -> 10252.4695 | J18: =IF(ISNA(VLOOKUP(CONCATENATE($A18,$A$4),Data!$A$2:$S$100,Lookup!K$3,FALSE)),"",VLOOKUP(CONCATENATE($A18,$A$4),Data!$A$2:$S$100,Lookup!K$3,FALSE)) -> 10952.9897 | K18: =IF(ISNA(VLOOKUP(CONCATENATE($A18,$A$4),Data!$A$2:$S$100,Lookup!L$3,FALSE)),"",VLOOKUP(CONCATENATE($A18,$A$4),Data!$A$2:$S$100,Lookup!L$3,FALSE)) -> 1287.46795 | L18: =IF(ISNA(VLOOKUP(CONCATENATE($A18,$A$4),Data!$A$2:$S$100,Lookup!M$3,FALSE)),"",VLOOKUP(CONCATENATE($A18,$A$4),Data!$A$2:$S$100,Lookup!M$3,FALSE)) -> 927.56192 | M18: =IF(ISNA(VLOOKUP(CONCATENATE($A18,$A$4),Data!$A$2:$S$100,Lookup!N$3,FALSE)),"",VLOOKUP(CONCATENATE($A18,$A$4),Data!$A$2:$S$100,Lookup!N$3,FALSE)) -> 2071.68168 | N18: =IF(ISNA(VLOOKUP(CONCATENATE($A18,$A$4),Data!$A$2:$S$100,Lookup!O$3,FALSE)),"",VLOOKUP(CONCATENATE($A18,$A$4),Data!$A$2:$S$100,Lookup!O$3,FALSE)) -> 7374.40579 | O18: =IF(ISNA(VLOOKUP(CONCATENATE($A18,$A$4),Data!$A$2:$S$100,Lookup!P$3,FALSE)),"",VLOOKUP(CONCATENATE($A18,$A$4),Data!$A$2:$S$100,Lookup!P$3,FALSE)) -> 15595.303 | P18: =IF(ISNA(VLOOKUP(CONCATENATE($A18,$A$4),Data!$A$2:$S$100,Lookup!Q$3,FALSE)),"",VLOOKUP(CONCATENATE($A18,$A$4),Data!$A$2:$S$100,Lookup!Q$3,FALSE)) -> 48461.87954 | Q18: =IF(ISNA(VLOOKUP(CONCATENATE($A18,$A$4),Data!$A$2:$S$100,Lookup!R$3,FALSE)),"",VLOOKUP(CONCATENATE($A18,$A$4),Data!$A$2:$S$100,Lookup!R$3,FALSE)) -> - | R18: =IF(ISNA(VLOOKUP(CONCATENATE($A18,$A$4),Data!$A$2:$S$100,Lookup!S$3,FALSE)),"",VLOOKUP(CONCATENATE($A18,$A$4),Data!$A$2:$S$100,Lookup!S$3,FALSE)) -> 1519.712838 | S18: =IF(ISNA(VLOOKUP(CONCATENATE($A18,$A$4),Data!$A$2:$S$100,Lookup!T$3,FALSE)),"",VLOOKUP(CONCATENATE($A18,$A$4),Data!$A$2:$S$100,Lookup!T$3,FALSE)) -> 118.0011729
A19: 7 | B19: =IF(ISNA(VLOOKUP(CONCATENATE($A19,$A$4),Data!$A$2:$S$100,Lookup!C$3,FALSE)),"",VLOOKUP(CONCATENATE($A19,$A$4),Data!$A$2:$S$100,Lookup!C$3,FALSE)) -> Aberdeen Royal Infirmary | C19: =IF(ISNA(VLOOKUP(CONCATENATE($A19,$A$4),Data!$A$2:$S$100,Lookup!D$3,FALSE)),"",VLOOKUP(CONCATENATE($A19,$A$4),Data!$A$2:$S$100,Lookup!D$3,FALSE)) -> N | D19: =IF(ISNA(VLOOKUP(CONCATENATE($A19,$A$4),Data!$A$2:$S$100,Lookup!E$3,FALSE)),"",VLOOKUP(CONCATENATE($A19,$A$4),Data!$A$2:$S$100,Lookup!E$3,FALSE)) -> A1 | E19: =IF(ISNA(VLOOKUP(CONCATENATE($A19,$A$4),Data!$A$2:$S$100,Lookup!F$3,FALSE)),"",VLOOKUP(CONCATENATE($A19,$A$4),Data!$A$2:$S$100,Lookup!F$3,FALSE)) -> 25 | F19: =IF(ISNA(VLOOKUP(CONCATENATE($A19,$A$4),Data!$A$2:$S$100,Lookup!G$3,FALSE)),"",VLOOKUP(CONCATENATE($A19,$A$4),Data!$A$2:$S$100,Lookup!G$3,FALSE)) -> 494.4807692 | G19: =IF(ISNA(VLOOKUP(CONCATENATE($A19,$A$4),Data!$A$2:$S$100,Lookup!H$3,FALSE)),"",VLOOKUP(CONCATENATE($A19,$A$4),Data!$A$2:$S$100,Lookup!H$3,FALSE)) -> 19.77923077 | H19: =IF(ISNA(VLOOKUP(CONCATENATE($A19,$A$4),Data!$A$2:$S$100,Lookup!I$3,FALSE)),"",VLOOKUP(CONCATENATE($A19,$A$4),Data!$A$2:$S$100,Lookup!I$3,FALSE)) -> 76.86148682 | I19: =IF(ISNA(VLOOKUP(CONCATENATE($A19,$A$4),Data!$A$2:$S$100,Lookup!J$3,FALSE)),"",VLOOKUP(CONCATENATE($A19,$A$4),Data!$A$2:$S$100,Lookup!J$3,FALSE)) -> 10862.116 | J19: =IF(ISNA(VLOOKUP(CONCATENATE($A19,$A$4),Data!$A$2:$S$100,Lookup!K$3,FALSE)),"",VLOOKUP(CONCATENATE($A19,$A$4),Data!$A$2:$S$100,Lookup!K$3,FALSE)) -> 12012.795 | K19: =IF(ISNA(VLOOKUP(CONCATENATE($A19,$A$4),Data!$A$2:$S$100,Lookup!L$3,FALSE)),"",VLOOKUP(CONCATENATE($A19,$A$4),Data!$A$2:$S$100,Lookup!L$3,FALSE)) -> 995.585 | L19: =IF(ISNA(VLOOKUP(CONCATENATE($A19,$A$4),Data!$A$2:$S$100,Lookup!M$3,FALSE)),"",VLOOKUP(CONCATENATE($A19,$A$4),Data!$A$2:$S$100,Lookup!M$3,FALSE)) -> 1250.76 | M19: =IF(ISNA(VLOOKUP(CONCATENATE($A19,$A$4),Data!$A$2:$S$100,Lookup!N$3,FALSE)),"",VLOOKUP(CONCATENATE($A19,$A$4),Data!$A$2:$S$100,Lookup!N$3,FALSE)) -> 286.79 | N19: =IF(ISNA(VLOOKUP(CONCATENATE($A19,$A$4),Data!$A$2:$S$100,Lookup!O$3,FALSE)),"",VLOOKUP(CONCATENATE($A19,$A$4),Data!$A$2:$S$100,Lookup!O$3,FALSE)) -> 11334.467 | O19: =IF(ISNA(VLOOKUP(CONCATENATE($A19,$A$4),Data!$A$2:$S$100,Lookup!P$3,FALSE)),"",VLOOKUP(CONCATENATE($A19,$A$4),Data!$A$2:$S$100,Lookup!P$3,FALSE)) -> 7348.503 | P19: =IF(ISNA(VLOOKUP(CONCATENATE($A19,$A$4),Data!$A$2:$S$100,Lookup!Q$3,FALSE)),"",VLOOKUP(CONCATENATE($A19,$A$4),Data!$A$2:$S$100,Lookup!Q$3,FALSE)) -> 44091.016 | Q19: =IF(ISNA(VLOOKUP(CONCATENATE($A19,$A$4),Data!$A$2:$S$100,Lookup!R$3,FALSE)),"",VLOOKUP(CONCATENATE($A19,$A$4),Data!$A$2:$S$100,Lookup!R$3,FALSE)) -> - | R19: =IF(ISNA(VLOOKUP(CONCATENATE($A19,$A$4),Data!$A$2:$S$100,Lookup!S$3,FALSE)),"",VLOOKUP(CONCATENATE($A19,$A$4),Data!$A$2:$S$100,Lookup!S$3,FALSE)) -> 1714.736359 | S19: =IF(ISNA(VLOOKUP(CONCATENATE($A19,$A$4),Data!$A$2:$S$100,Lookup!T$3,FALSE)),"",VLOOKUP(CONCATENATE($A19,$A$4),Data!$A$2:$S$100,Lookup!T$3,FALSE)) -> 133.1441681
A20: 8 | B20: =IF(ISNA(VLOOKUP(CONCATENATE($A20,$A$4),Data!$A$2:$S$100,Lookup!C$3,FALSE)),"",VLOOKUP(CONCATENATE($A20,$A$4),Data!$A$2:$S$100,Lookup!C$3,FALSE)) -> Western General, Edinburgh | C20: =IF(ISNA(VLOOKUP(CONCATENATE($A20,$A$4),Data!$A$2:$S$100,Lookup!D$3,FALSE)),"",VLOOKUP(CONCATENATE($A20,$A$4),Data!$A$2:$S$100,Lookup!D$3,FALSE)) -> S | D20: =IF(ISNA(VLOOKUP(CONCATENATE($A20,$A$4),Data!$A$2:$S$100,Lookup!E$3,FALSE)),"",VLOOKUP(CONCATENATE($A20,$A$4),Data!$A$2:$S$100,Lookup!E$3,FALSE)) -> A1 | E20: =IF(ISNA(VLOOKUP(CONCATENATE($A20,$A$4),Data!$A$2:$S$100,Lookup!F$3,FALSE)),"",VLOOKUP(CONCATENATE($A20,$A$4),Data!$A$2:$S$100,Lookup!F$3,FALSE)) -> 11 | F20: =IF(ISNA(VLOOKUP(CONCATENATE($A20,$A$4),Data!$A$2:$S$100,Lookup!G$3,FALSE)),"",VLOOKUP(CONCATENATE($A20,$A$4),Data!$A$2:$S$100,Lookup!G$3,FALSE)) -> 325.0384615 | G20: =IF(ISNA(VLOOKUP(CONCATENATE($A20,$A$4),Data!$A$2:$S$100,Lookup!H$3,FALSE)),"",VLOOKUP(CONCATENATE($A20,$A$4),Data!$A$2:$S$100,Lookup!H$3,FALSE)) -> 29.54895105 | H20: =IF(ISNA(VLOOKUP(CONCATENATE($A20,$A$4),Data!$A$2:$S$100,Lookup!I$3,FALSE)),"",VLOOKUP(CONCATENATE($A20,$A$4),Data!$A$2:$S$100,Lookup!I$3,FALSE)) -> 114.8263215 | I20: =IF(ISNA(VLOOKUP(CONCATENATE($A20,$A$4),Data!$A$2:$S$100,Lookup!J$3,FALSE)),"",VLOOKUP(CONCATENATE($A20,$A$4),Data!$A$2:$S$100,Lookup!J$3,FALSE)) -> 5655.602 | J20: =IF(ISNA(VLOOKUP(CONCATENATE($A20,$A$4),Data!$A$2:$S$100,Lookup!K$3,FALSE)),"",VLOOKUP(CONCATENATE($A20,$A$4),Data!$A$2:$S$100,Lookup!K$3,FALSE)) -> 5994.505 | K20: =IF(ISNA(VLOOKUP(CONCATENATE($A20,$A$4),Data!$A$2:$S$100,Lookup!L$3,FALSE)),"",VLOOKUP(CONCATENATE($A20,$A$4),Data!$A$2:$S$100,Lookup!L$3,FALSE)) -> 1205.557 | L20: =IF(ISNA(VLOOKUP(CONCATENATE($A20,$A$4),Data!$A$2:$S$100,Lookup!M$3,FALSE)),"",VLOOKUP(CONCATENATE($A20,$A$4),Data!$A$2:$S$100,Lookup!M$3,FALSE)) -> 631.319 | M20: =IF(ISNA(VLOOKUP(CONCATENATE($A20,$A$4),Data!$A$2:$S$100,Lookup!N$3,FALSE)),"",VLOOKUP(CONCATENATE($A20,$A$4),Data!$A$2:$S$100,Lookup!N$3,FALSE)) -> 698.538 | N20: =IF(ISNA(VLOOKUP(CONCATENATE($A20,$A$4),Data!$A$2:$S$100,Lookup!O$3,FALSE)),"",VLOOKUP(CONCATENATE($A20,$A$4),Data!$A$2:$S$100,Lookup!O$3,FALSE)) -> 6602.207 | O20: =IF(ISNA(VLOOKUP(CONCATENATE($A20,$A$4),Data!$A$2:$S$100,Lookup!P$3,FALSE)),"",VLOOKUP(CONCATENATE($A20,$A$4),Data!$A$2:$S$100,Lookup!P$3,FALSE)) -> 683.578 | P20: =IF(ISNA(VLOOKUP(CONCATENATE($A20,$A$4),Data!$A$2:$S$100,Lookup!Q$3,FALSE)),"",VLOOKUP(CONCATENATE($A20,$A$4),Data!$A$2:$S$100,Lookup!Q$3,FALSE)) -> 21471.306 | Q20: =IF(ISNA(VLOOKUP(CONCATENATE($A20,$A$4),Data!$A$2:$S$100,Lookup!R$3,FALSE)),"",VLOOKUP(CONCATENATE($A20,$A$4),Data!$A$2:$S$100,Lookup!R$3,FALSE)) -> - | R20: =IF(ISNA(VLOOKUP(CONCATENATE($A20,$A$4),Data!$A$2:$S$100,Lookup!S$3,FALSE)),"",VLOOKUP(CONCATENATE($A20,$A$4),Data!$A$2:$S$100,Lookup!S$3,FALSE)) -> 1270.341143 | S20: =IF(ISNA(VLOOKUP(CONCATENATE($A20,$A$4),Data!$A$2:$S$100,Lookup!T$3,FALSE)),"",VLOOKUP(CONCATENATE($A20,$A$4),Data!$A$2:$S$100,Lookup!T$3,FALSE)) -> 98.63820395
A21: 9 | B21: =IF(ISNA(VLOOKUP(CONCATENATE($A21,$A$4),Data!$A$2:$S$100,Lookup!C$3,FALSE)),"",VLOOKUP(CONCATENATE($A21,$A$4),Data!$A$2:$S$100,Lookup!C$3,FALSE)) -> West Hospitals | C21: =IF(ISNA(VLOOKUP(CONCATENATE($A21,$A$4),Data!$A$2:$S$100,Lookup!D$3,FALSE)),"",VLOOKUP(CONCATENATE($A21,$A$4),Data!$A$2:$S$100,Lookup!D$3,FALSE)) -> G | D21: =IF(ISNA(VLOOKUP(CONCATENATE($A21,$A$4),Data!$A$2:$S$100,Lookup!E$3,FALSE)),"",VLOOKUP(CONCATENATE($A21,$A$4),Data!$A$2:$S$100,Lookup!E$3,FALSE)) -> A1 | E21: =IF(ISNA(VLOOKUP(CONCATENATE($A21,$A$4),Data!$A$2:$S$100,Lookup!F$3,FALSE)),"",VLOOKUP(CONCATENATE($A21,$A$4),Data!$A$2:$S$100,Lookup!F$3,FALSE)) -> 11 | F21: =IF(ISNA(VLOOKUP(CONCATENATE($A21,$A$4),Data!$A$2:$S$100,Lookup!G$3,FALSE)),"",VLOOKUP(CONCATENATE($A21,$A$4),Data!$A$2:$S$100,Lookup!G$3,FALSE)) -> 165.9615385 | G21: =IF(ISNA(VLOOKUP(CONCATENATE($A21,$A$4),Data!$A$2:$S$100,Lookup!H$3,FALSE)),"",VLOOKUP(CONCATENATE($A21,$A$4),Data!$A$2:$S$100,Lookup!H$3,FALSE)) -> 15.08741259 | H21: =IF(ISNA(VLOOKUP(CONCATENATE($A21,$A$4),Data!$A$2:$S$100,Lookup!I$3,FALSE)),"",VLOOKUP(CONCATENATE($A21,$A$4),Data!$A$2:$S$100,Lookup!I$3,FALSE)) -> 58.62922463 | I21: =IF(ISNA(VLOOKUP(CONCATENATE($A21,$A$4),Data!$A$2:$S$100,Lookup!J$3,FALSE)),"",VLOOKUP(CONCATENATE($A21,$A$4),Data!$A$2:$S$100,Lookup!J$3,FALSE)) -> 2359.287 | J21: =IF(ISNA(VLOOKUP(CONCATENATE($A21,$A$4),Data!$A$2:$S$100,Lookup!K$3,FALSE)),"",VLOOKUP(CONCATENATE($A21,$A$4),Data!$A$2:$S$100,Lookup!K$3,FALSE)) -> 4103.415 | K21: =IF(ISNA(VLOOKUP(CONCATENATE($A21,$A$4),Data!$A$2:$S$100,Lookup!L$3,FALSE)),"",VLOOKUP(CONCATENATE($A21,$A$4),Data!$A$2:$S$100,Lookup!L$3,FALSE)) -> 10.031 | L21: =IF(ISNA(VLOOKUP(CONCATENATE($A21,$A$4),Data!$A$2:$S$100,Lookup!M$3,FALSE)),"",VLOOKUP(CONCATENATE($A21,$A$4),Data!$A$2:$S$100,Lookup!M$3,FALSE)) -> 459.084 | M21: =IF(ISNA(VLOOKUP(CONCATENATE($A21,$A$4),Data!$A$2:$S$100,Lookup!N$3,FALSE)),"",VLOOKUP(CONCATENATE($A21,$A$4),Data!$A$2:$S$100,Lookup!N$3,FALSE)) -> 0.286 | N21: =IF(ISNA(VLOOKUP(CONCATENATE($A21,$A$4),Data!$A$2:$S$100,Lookup!O$3,FALSE)),"",VLOOKUP(CONCATENATE($A21,$A$4),Data!$A$2:$S$100,Lookup!O$3,FALSE)) -> 2517.921 | O21: =IF(ISNA(VLOOKUP(CONCATENATE($A21,$A$4),Data!$A$2:$S$100,Lookup!P$3,FALSE)),"",VLOOKUP(CONCATENATE($A21,$A$4),Data!$A$2:$S$100,Lookup!P$3,FALSE)) -> 3450.623 | P21: =IF(ISNA(VLOOKUP(CONCATENATE($A21,$A$4),Data!$A$2:$S$100,Lookup!Q$3,FALSE)),"",VLOOKUP(CONCATENATE($A21,$A$4),Data!$A$2:$S$100,Lookup!Q$3,FALSE)) -> 12900.647 | Q21: =IF(ISNA(VLOOKUP(CONCATENATE($A21,$A$4),Data!$A$2:$S$100,Lookup!R$3,FALSE)),"",VLOOKUP(CONCATENATE($A21,$A$4),Data!$A$2:$S$100,Lookup!R$3,FALSE)) -> 917.056 | R21: =IF(ISNA(VLOOKUP(CONCATENATE($A21,$A$4),Data!$A$2:$S$100,Lookup!S$3,FALSE)),"",VLOOKUP(CONCATENATE($A21,$A$4),Data!$A$2:$S$100,Lookup!S$3,FALSE)) -> 1494.860603 | S21: =IF(ISNA(VLOOKUP(CONCATENATE($A21,$A$4),Data!$A$2:$S$100,Lookup!T$3,FALSE)),"",VLOOKUP(CONCATENATE($A21,$A$4),Data!$A$2:$S$100,Lookup!T$3,FALSE)) -> 116.0714709
A22: 10 | B22: =IF(ISNA(VLOOKUP(CONCATENATE($A22,$A$4),Data!$A$2:$S$100,Lookup!C$3,FALSE)),"",VLOOKUP(CONCATENATE($A22,$A$4),Data!$A$2:$S$100,Lookup!C$3,FALSE)) -> Forth Valley Royal Hospital | C22: =IF(ISNA(VLOOKUP(CONCATENATE($A22,$A$4),Data!$A$2:$S$100,Lookup!D$3,FALSE)),"",VLOOKUP(CONCATENATE($A22,$A$4),Data!$A$2:$S$100,Lookup!D$3,FALSE)) -> V | D22: =IF(ISNA(VLOOKUP(CONCATENATE($A22,$A$4),Data!$A$2:$S$100,Lookup!E$3,FALSE)),"",VLOOKUP(CONCATENATE($A22,$A$4),Data!$A$2:$S$100,Lookup!E$3,FALSE)) -> A2 | E22: =IF(ISNA(VLOOKUP(CONCATENATE($A22,$A$4),Data!$A$2:$S$100,Lookup!F$3,FALSE)),"",VLOOKUP(CONCATENATE($A22,$A$4),Data!$A$2:$S$100,Lookup!F$3,FALSE)) -> 14.81 | F22: =IF(ISNA(VLOOKUP(CONCATENATE($A22,$A$4),Data!$A$2:$S$100,Lookup!G$3,FALSE)),"",VLOOKUP(CONCATENATE($A22,$A$4),Data!$A$2:$S$100,Lookup!G$3,FALSE)) -> 364.7069231 | G22: =IF(ISNA(VLOOKUP(CONCATENATE($A22,$A$4),Data!$A$2:$S$100,Lookup!H$3,FALSE)),"",VLOOKUP(CONCATENATE($A22,$A$4),Data!$A$2:$S$100,Lookup!H$3,FALSE)) -> 24.62572067 | H22: =IF(ISNA(VLOOKUP(CONCATENATE($A22,$A$4),Data!$A$2:$S$100,Lookup!I$3,FALSE)),"",VLOOKUP(CONCATENATE($A22,$A$4),Data!$A$2:$S$100,Lookup!I$3,FALSE)) -> 95.69479857 | I22: =IF(ISNA(VLOOKUP(CONCATENATE($A22,$A$4),Data!$A$2:$S$100,Lookup!J$3,FALSE)),"",VLOOKUP(CONCATENATE($A22,$A$4),Data!$A$2:$S$100,Lookup!J$3,FALSE)) -> 5659.80242 | J22: =IF(ISNA(VLOOKUP(CONCATENATE($A22,$A$4),Data!$A$2:$S$100,Lookup!K$3,FALSE)),"",VLOOKUP(CONCATENATE($A22,$A$4),Data!$A$2:$S$100,Lookup!K$3,FALSE)) -> 4105.0776 | K22: =IF(ISNA(VLOOKUP(CONCATENATE($A22,$A$4),Data!$A$2:$S$100,Lookup!L$3,FALSE)),"",VLOOKUP(CONCATENATE($A22,$A$4),Data!$A$2:$S$100,Lookup!L$3,FALSE)) -> 710.07154 | L22: =IF(ISNA(VLOOKUP(CONCATENATE($A22,$A$4),Data!$A$2:$S$100,Lookup!M$3,FALSE)),"",VLOOKUP(CONCATENATE($A22,$A$4),Data!$A$2:$S$100,Lookup!M$3,FALSE)) -> 317.72954 | M22: =IF(ISNA(VLOOKUP(CONCATENATE($A22,$A$4),Data!$A$2:$S$100,Lookup!N$3,FALSE)),"",VLOOKUP(CONCATENATE($A22,$A$4),Data!$A$2:$S$100,Lookup!N$3,FALSE)) -> 3956.49378 | N22: =IF(ISNA(VLOOKUP(CONCATENATE($A22,$A$4),Data!$A$2:$S$100,Lookup!O$3,FALSE)),"",VLOOKUP(CONCATENATE($A22,$A$4),Data!$A$2:$S$100,Lookup!O$3,FALSE)) -> 220.85895 | O22: =IF(ISNA(VLOOKUP(CONCATENATE($A22,$A$4),Data!$A$2:$S$100,Lookup!P$3,FALSE)),"",VLOOKUP(CONCATENATE($A22,$A$4),Data!$A$2:$S$100,Lookup!P$3,FALSE)) -> 5147.5367 | P22: =IF(ISNA(VLOOKUP(CONCATENATE($A22,$A$4),Data!$A$2:$S$100,Lookup!Q$3,FALSE)),"",VLOOKUP(CONCATENATE($A22,$A$4),Data!$A$2:$S$100,Lookup!Q$3,FALSE)) -> 20117.57053 | Q22: =IF(ISNA(VLOOKUP(CONCATENATE($A22,$A$4),Data!$A$2:$S$100,Lookup!R$3,FALSE)),"",VLOOKUP(CONCATENATE($A22,$A$4),Data!$A$2:$S$100,Lookup!R$3,FALSE)) -> - | R22: =IF(ISNA(VLOOKUP(CONCATENATE($A22,$A$4),Data!$A$2:$S$100,Lookup!S$3,FALSE)),"",VLOOKUP(CONCATENATE($A22,$A$4),Data!$A$2:$S$100,Lookup!S$3,FALSE)) -> 1060.786982 | S22: =IF(ISNA(VLOOKUP(CONCATENATE($A22,$A$4),Data!$A$2:$S$100,Lookup!T$3,FALSE)),"",VLOOKUP(CONCATENATE($A22,$A$4),Data!$A$2:$S$100,Lookup!T$3,FALSE)) -> 82.36694787
A23: 11 | B23: =IF(ISNA(VLOOKUP(CONCATENATE($A23,$A$4),Data!$A$2:$S$100,Lookup!C$3,FALSE)),"",VLOOKUP(CONCATENATE($A23,$A$4),Data!$A$2:$S$100,Lookup!C$3,FALSE)) -> Royal Alexandra Hospital | C23: =IF(ISNA(VLOOKUP(CONCATENATE($A23,$A$4),Data!$A$2:$S$100,Lookup!D$3,FALSE)),"",VLOOKUP(CONCATENATE($A23,$A$4),Data!$A$2:$S$100,Lookup!D$3,FALSE)) -> G | D23: =IF(ISNA(VLOOKUP(CONCATENATE($A23,$A$4),Data!$A$2:$S$100,Lookup!E$3,FALSE)),"",VLOOKUP(CONCATENATE($A23,$A$4),Data!$A$2:$S$100,Lookup!E$3,FALSE)) -> A2 | E23: =IF(ISNA(VLOOKUP(CONCATENATE($A23,$A$4),Data!$A$2:$S$100,Lookup!F$3,FALSE)),"",VLOOKUP(CONCATENATE($A23,$A$4),Data!$A$2:$S$100,Lookup!F$3,FALSE)) -> 12 | F23: =IF(ISNA(VLOOKUP(CONCATENATE($A23,$A$4),Data!$A$2:$S$100,Lookup!G$3,FALSE)),"",VLOOKUP(CONCATENATE($A23,$A$4),Data!$A$2:$S$100,Lookup!G$3,FALSE)) -> 296.2115385 | G23: =IF(ISNA(VLOOKUP(CONCATENATE($A23,$A$4),Data!$A$2:$S$100,Lookup!H$3,FALSE)),"",VLOOKUP(CONCATENATE($A23,$A$4),Data!$A$2:$S$100,Lookup!H$3,FALSE)) -> 24.68429487 | H23: =IF(ISNA(VLOOKUP(CONCATENATE($A23,$A$4),Data!$A$2:$S$100,Lookup!I$3,FALSE)),"",VLOOKUP(CONCATENATE($A23,$A$4),Data!$A$2:$S$100,Lookup!I$3,FALSE)) -> 95.92241615 | I23: =IF(ISNA(VLOOKUP(CONCATENATE($A23,$A$4),Data!$A$2:$S$100,Lookup!J$3,FALSE)),"",VLOOKUP(CONCATENATE($A23,$A$4),Data!$A$2:$S$100,Lookup!J$3,FALSE)) -> 5591.312 | J23: =IF(ISNA(VLOOKUP(CONCATENATE($A23,$A$4),Data!$A$2:$S$100,Lookup!K$3,FALSE)),"",VLOOKUP(CONCATENATE($A23,$A$4),Data!$A$2:$S$100,Lookup!K$3,FALSE)) -> 7239.382 | K23: =IF(ISNA(VLOOKUP(CONCATENATE($A23,$A$4),Data!$A$2:$S$100,Lookup!L$3,FALSE)),"",VLOOKUP(CONCATENATE($A23,$A$4),Data!$A$2:$S$100,Lookup!L$3,FALSE)) -> 25.762 | L23: =IF(ISNA(VLOOKUP(CONCATENATE($A23,$A$4),Data!$A$2:$S$100,Lookup!M$3,FALSE)),"",VLOOKUP(CONCATENATE($A23,$A$4),Data!$A$2:$S$100,Lookup!M$3,FALSE)) -> 622.495 | M23: =IF(ISNA(VLOOKUP(CONCATENATE($A23,$A$4),Data!$A$2:$S$100,Lookup!N$3,FALSE)),"",VLOOKUP(CONCATENATE($A23,$A$4),Data!$A$2:$S$100,Lookup!N$3,FALSE)) -> 192.778 | N23: =IF(ISNA(VLOOKUP(CONCATENATE($A23,$A$4),Data!$A$2:$S$100,Lookup!O$3,FALSE)),"",VLOOKUP(CONCATENATE($A23,$A$4),Data!$A$2:$S$100,Lookup!O$3,FALSE)) -> 4550.512 | O23: =IF(ISNA(VLOOKUP(CONCATENATE($A23,$A$4),Data!$A$2:$S$100,Lookup!P$3,FALSE)),"",VLOOKUP(CONCATENATE($A23,$A$4),Data!$A$2:$S$100,Lookup!P$3,FALSE)) -> 3636.505 | P23: =IF(ISNA(VLOOKUP(CONCATENATE($A23,$A$4),Data!$A$2:$S$100,Lookup!Q$3,FALSE)),"",VLOOKUP(CONCATENATE($A23,$A$4),Data!$A$2:$S$100,Lookup!Q$3,FALSE)) -> 21858.746 | Q23: =IF(ISNA(VLOOKUP(CONCATENATE($A23,$A$4),Data!$A$2:$S$100,Lookup!R$3,FALSE)),"",VLOOKUP(CONCATENATE($A23,$A$4),Data!$A$2:$S$100,Lookup!R$3,FALSE)) -> - | R23: =IF(ISNA(VLOOKUP(CONCATENATE($A23,$A$4),Data!$A$2:$S$100,Lookup!S$3,FALSE)),"",VLOOKUP(CONCATENATE($A23,$A$4),Data!$A$2:$S$100,Lookup!S$3,FALSE)) -> 1419.122638 | S23: =IF(ISNA(VLOOKUP(CONCATENATE($A23,$A$4),Data!$A$2:$S$100,Lookup!T$3,FALSE)),"",VLOOKUP(CONCATENATE($A23,$A$4),Data!$A$2:$S$100,Lookup!T$3,FALSE)) -> 110.1906437
A24: 12 | B24: =IF(ISNA(VLOOKUP(CONCATENATE($A24,$A$4),Data!$A$2:$S$100,Lookup!C$3,FALSE)),"",VLOOKUP(CONCATENATE($A24,$A$4),Data!$A$2:$S$100,Lookup!C$3,FALSE)) -> Victoria Kirkcaldy | C24: =IF(ISNA(VLOOKUP(CONCATENATE($A24,$A$4),Data!$A$2:$S$100,Lookup!D$3,FALSE)),"",VLOOKUP(CONCATENATE($A24,$A$4),Data!$A$2:$S$100,Lookup!D$3,FALSE)) -> F | D24: =IF(ISNA(VLOOKUP(CONCATENATE($A24,$A$4),Data!$A$2:$S$100,Lookup!E$3,FALSE)),"",VLOOKUP(CONCATENATE($A24,$A$4),Data!$A$2:$S$100,Lookup!E$3,FALSE)) -> A2 | E24: =IF(ISNA(VLOOKUP(CONCATENATE($A24,$A$4),Data!$A$2:$S$100,Lookup!F$3,FALSE)),"",VLOOKUP(CONCATENATE($A24,$A$4),Data!$A$2:$S$100,Lookup!F$3,FALSE)) -> 12 | F24: =IF(ISNA(VLOOKUP(CONCATENATE($A24,$A$4),Data!$A$2:$S$100,Lookup!G$3,FALSE)),"",VLOOKUP(CONCATENATE($A24,$A$4),Data!$A$2:$S$100,Lookup!G$3,FALSE)) -> 445.3653846 | G24: =IF(ISNA(VLOOKUP(CONCATENATE($A24,$A$4),Data!$A$2:$S$100,Lookup!H$3,FALSE)),"",VLOOKUP(CONCATENATE($A24,$A$4),Data!$A$2:$S$100,Lookup!H$3,FALSE)) -> 37.11378205 | H24: =IF(ISNA(VLOOKUP(CONCATENATE($A24,$A$4),Data!$A$2:$S$100,Lookup!I$3,FALSE)),"",VLOOKUP(CONCATENATE($A24,$A$4),Data!$A$2:$S$100,Lookup!I$3,FALSE)) -> 144.2230238 | I24: =IF(ISNA(VLOOKUP(CONCATENATE($A24,$A$4),Data!$A$2:$S$100,Lookup!J$3,FALSE)),"",VLOOKUP(CONCATENATE($A24,$A$4),Data!$A$2:$S$100,Lookup!J$3,FALSE)) -> 4806.259 | J24: =IF(ISNA(VLOOKUP(CONCATENATE($A24,$A$4),Data!$A$2:$S$100,Lookup!K$3,FALSE)),"",VLOOKUP(CONCATENATE($A24,$A$4),Data!$A$2:$S$100,Lookup!K$3,FALSE)) -> 4635.383 | K24: =IF(ISNA(VLOOKUP(CONCATENATE($A24,$A$4),Data!$A$2:$S$100,Lookup!L$3,FALSE)),"",VLOOKUP(CONCATENATE($A24,$A$4),Data!$A$2:$S$100,Lookup!L$3,FALSE)) -> 995.619 | L24: =IF(ISNA(VLOOKUP(CONCATENATE($A24,$A$4),Data!$A$2:$S$100,Lookup!M$3,FALSE)),"",VLOOKUP(CONCATENATE($A24,$A$4),Data!$A$2:$S$100,Lookup!M$3,FALSE)) -> 345.592 | M24: =IF(ISNA(VLOOKUP(CONCATENATE($A24,$A$4),Data!$A$2:$S$100,Lookup!N$3,FALSE)),"",VLOOKUP(CONCATENATE($A24,$A$4),Data!$A$2:$S$100,Lookup!N$3,FALSE)) -> 95.873 | N24: =IF(ISNA(VLOOKUP(CONCATENATE($A24,$A$4),Data!$A$2:$S$100,Lookup!O$3,FALSE)),"",VLOOKUP(CONCATENATE($A24,$A$4),Data!$A$2:$S$100,Lookup!O$3,FALSE)) -> 6002.342 | O24: =IF(ISNA(VLOOKUP(CONCATENATE($A24,$A$4),Data!$A$2:$S$100,Lookup!P$3,FALSE)),"",VLOOKUP(CONCATENATE($A24,$A$4),Data!$A$2:$S$100,Lookup!P$3,FALSE)) -> 740.309 | P24: =IF(ISNA(VLOOKUP(CONCATENATE($A24,$A$4),Data!$A$2:$S$100,Lookup!Q$3,FALSE)),"",VLOOKUP(CONCATENATE($A24,$A$4),Data!$A$2:$S$100,Lookup!Q$3,FALSE)) -> 17621.377 | Q24: =IF(ISNA(VLOOKUP(CONCATENATE($A24,$A$4),Data!$A$2:$S$100,Lookup!R$3,FALSE)),"",VLOOKUP(CONCATENATE($A24,$A$4),Data!$A$2:$S$100,Lookup!R$3,FALSE)) -> - | R24: =IF(ISNA(VLOOKUP(CONCATENATE($A24,$A$4),Data!$A$2:$S$100,Lookup!S$3,FALSE)),"",VLOOKUP(CONCATENATE($A24,$A$4),Data!$A$2:$S$100,Lookup!S$3,FALSE)) -> 760.8867827 | S24: =IF(ISNA(VLOOKUP(CONCATENATE($A24,$A$4),Data!$A$2:$S$100,Lookup!T$3,FALSE)),"",VLOOKUP(CONCATENATE($A24,$A$4),Data!$A$2:$S$100,Lookup!T$3,FALSE)) -> 59.08059112
A25: 13 | B25: =IF(ISNA(VLOOKUP(CONCATENATE($A25,$A$4),Data!$A$2:$S$100,Lookup!C$3,FALSE)),"",VLOOKUP(CONCATENATE($A25,$A$4),Data!$A$2:$S$100,Lookup!C$3,FALSE)) -> Wishaw General | C25: =IF(ISNA(VLOOKUP(CONCATENATE($A25,$A$4),Data!$A$2:$S$100,Lookup!D$3,FALSE)),"",VLOOKUP(CONCATENATE($A25,$A$4),Data!$A$2:$S$100,Lookup!D$3,FALSE)) -> L | D25: =IF(ISNA(VLOOKUP(CONCATENATE($A25,$A$4),Data!$A$2:$S$100,Lookup!E$3,FALSE)),"",VLOOKUP(CONCATENATE($A25,$A$4),Data!$A$2:$S$100,Lookup!E$3,FALSE)) -> A2 | E25: =IF(ISNA(VLOOKUP(CONCATENATE($A25,$A$4),Data!$A$2:$S$100,Lookup!F$3,FALSE)),"",VLOOKUP(CONCATENATE($A25,$A$4),Data!$A$2:$S$100,Lookup!F$3,FALSE)) -> 12 | F25: =IF(ISNA(VLOOKUP(CONCATENATE($A25,$A$4),Data!$A$2:$S$100,Lookup!G$3,FALSE)),"",VLOOKUP(CONCATENATE($A25,$A$4),Data!$A$2:$S$100,Lookup!G$3,FALSE)) -> 304.7307692 | G25: =IF(ISNA(VLOOKUP(CONCATENATE($A25,$A$4),Data!$A$2:$S$100,Lookup!H$3,FALSE)),"",VLOOKUP(CONCATENATE($A25,$A$4),Data!$A$2:$S$100,Lookup!H$3,FALSE)) -> 25.39423077 | H25: =IF(ISNA(VLOOKUP(CONCATENATE($A25,$A$4),Data!$A$2:$S$100,Lookup!I$3,FALSE)),"",VLOOKUP(CONCATENATE($A25,$A$4),Data!$A$2:$S$100,Lookup!I$3,FALSE)) -> 98.68120537 | I25: =IF(ISNA(VLOOKUP(CONCATENATE($A25,$A$4),Data!$A$2:$S$100,Lookup!J$3,FALSE)),"",VLOOKUP(CONCATENATE($A25,$A$4),Data!$A$2:$S$100,Lookup!J$3,FALSE)) -> 5592.764 | J25: =IF(ISNA(VLOOKUP(CONCATENATE($A25,$A$4),Data!$A$2:$S$100,Lookup!K$3,FALSE)),"",VLOOKUP(CONCATENATE($A25,$A$4),Data!$A$2:$S$100,Lookup!K$3,FALSE)) -> 6229.832 | K25: =IF(ISNA(VLOOKUP(CONCATENATE($A25,$A$4),Data!$A$2:$S$100,Lookup!L$3,FALSE)),"",VLOOKUP(CONCATENATE($A25,$A$4),Data!$A$2:$S$100,Lookup!L$3,FALSE)) -> 266.774 | L25: =IF(ISNA(VLOOKUP(CONCATENATE($A25,$A$4),Data!$A$2:$S$100,Lookup!M$3,FALSE)),"",VLOOKUP(CONCATENATE($A25,$A$4),Data!$A$2:$S$100,Lookup!M$3,FALSE)) -> 453.764 | M25: =IF(ISNA(VLOOKUP(CONCATENATE($A25,$A$4),Data!$A$2:$S$100,Lookup!N$3,FALSE)),"",VLOOKUP(CONCATENATE($A25,$A$4),Data!$A$2:$S$100,Lookup!N$3,FALSE)) -> 139.374 | N25: =IF(ISNA(VLOOKUP(CONCATENATE($A25,$A$4),Data!$A$2:$S$100,Lookup!O$3,FALSE)),"",VLOOKUP(CONCATENATE($A25,$A$4),Data!$A$2:$S$100,Lookup!O$3,FALSE)) -> 5123.122 | O25: =IF(ISNA(VLOOKUP(CONCATENATE($A25,$A$4),Data!$A$2:$S$100,Lookup!P$3,FALSE)),"",VLOOKUP(CONCATENATE($A25,$A$4),Data!$A$2:$S$100,Lookup!P$3,FALSE)) -> 4937.601 | P25: =IF(ISNA(VLOOKUP(CONCATENATE($A25,$A$4),Data!$A$2:$S$100,Lookup!Q$3,FALSE)),"",VLOOKUP(CONCATENATE($A25,$A$4),Data!$A$2:$S$100,Lookup!Q$3,FALSE)) -> 22743.231 | Q25: =IF(ISNA(VLOOKUP(CONCATENATE($A25,$A$4),Data!$A$2:$S$100,Lookup!R$3,FALSE)),"",VLOOKUP(CONCATENATE($A25,$A$4),Data!$A$2:$S$100,Lookup!R$3,FALSE)) -> - | R25: =IF(ISNA(VLOOKUP(CONCATENATE($A25,$A$4),Data!$A$2:$S$100,Lookup!S$3,FALSE)),"",VLOOKUP(CONCATENATE($A25,$A$4),Data!$A$2:$S$100,Lookup!S$3,FALSE)) -> 1435.266376 | S25: =IF(ISNA(VLOOKUP(CONCATENATE($A25,$A$4),Data!$A$2:$S$100,Lookup!T$3,FALSE)),"",VLOOKUP(CONCATENATE($A25,$A$4),Data!$A$2:$S$100,Lookup!T$3,FALSE)) -> 111.4441568
A26: 14 | B26: =IF(ISNA(VLOOKUP(CONCATENATE($A26,$A$4),Data!$A$2:$S$100,Lookup!C$3,FALSE)),"",VLOOKUP(CONCATENATE($A26,$A$4),Data!$A$2:$S$100,Lookup!C$3,FALSE)) -> Crosshouse Hospital | C26: =IF(ISNA(VLOOKUP(CONCATENATE($A26,$A$4),Data!$A$2:$S$100,Lookup!D$3,FALSE)),"",VLOOKUP(CONCATENATE($A26,$A$4),Data!$A$2:$S$100,Lookup!D$3,FALSE)) -> A | D26: =IF(ISNA(VLOOKUP(CONCATENATE($A26,$A$4),Data!$A$2:$S$100,Lookup!E$3,FALSE)),"",VLOOKUP(CONCATENATE($A26,$A$4),Data!$A$2:$S$100,Lookup!E$3,FALSE)) -> A2 | E26: =IF(ISNA(VLOOKUP(CONCATENATE($A26,$A$4),Data!$A$2:$S$100,Lookup!F$3,FALSE)),"",VLOOKUP(CONCATENATE($A26,$A$4),Data!$A$2:$S$100,Lookup!F$3,FALSE)) -> 13 | F26: =IF(ISNA(VLOOKUP(CONCATENATE($A26,$A$4),Data!$A$2:$S$100,Lookup!G$3,FALSE)),"",VLOOKUP(CONCATENATE($A26,$A$4),Data!$A$2:$S$100,Lookup!G$3,FALSE)) -> 471.2307692 | G26: =IF(ISNA(VLOOKUP(CONCATENATE($A26,$A$4),Data!$A$2:$S$100,Lookup!H$3,FALSE)),"",VLOOKUP(CONCATENATE($A26,$A$4),Data!$A$2:$S$100,Lookup!H$3,FALSE)) -> 36.24852071 | H26: =IF(ISNA(VLOOKUP(CONCATENATE($A26,$A$4),Data!$A$2:$S$100,Lookup!I$3,FALSE)),"",VLOOKUP(CONCATENATE($A26,$A$4),Data!$A$2:$S$100,Lookup!I$3,FALSE)) -> 140.8606446 | I26: =IF(ISNA(VLOOKUP(CONCATENATE($A26,$A$4),Data!$A$2:$S$100,Lookup!J$3,FALSE)),"",VLOOKUP(CONCATENATE($A26,$A$4),Data!$A$2:$S$100,Lookup!J$3,FALSE)) -> 5402.116 | J26: =IF(ISNA(VLOOKUP(CONCATENATE($A26,$A$4),Data!$A$2:$S$100,Lookup!K$3,FALSE)),"",VLOOKUP(CONCATENATE($A26,$A$4),Data!$A$2:$S$100,Lookup!K$3,FALSE)) -> 6930.438 | K26: =IF(ISNA(VLOOKUP(CONCATENATE($A26,$A$4),Data!$A$2:$S$100,Lookup!L$3,FALSE)),"",VLOOKUP(CONCATENATE($A26,$A$4),Data!$A$2:$S$100,Lookup!L$3,FALSE)) -> 71.517 | L26: =IF(ISNA(VLOOKUP(CONCATENATE($A26,$A$4),Data!$A$2:$S$100,Lookup!M$3,FALSE)),"",VLOOKUP(CONCATENATE($A26,$A$4),Data!$A$2:$S$100,Lookup!M$3,FALSE)) -> 567.667 | M26: =IF(ISNA(VLOOKUP(CONCATENATE($A26,$A$4),Data!$A$2:$S$100,Lookup!N$3,FALSE)),"",VLOOKUP(CONCATENATE($A26,$A$4),Data!$A$2:$S$100,Lookup!N$3,FALSE)) -> 1171.254 | N26: =IF(ISNA(VLOOKUP(CONCATENATE($A26,$A$4),Data!$A$2:$S$100,Lookup!O$3,FALSE)),"",VLOOKUP(CONCATENATE($A26,$A$4),Data!$A$2:$S$100,Lookup!O$3,FALSE)) -> 4352.289 | O26: =IF(ISNA(VLOOKUP(CONCATENATE($A26,$A$4),Data!$A$2:$S$100,Lookup!P$3,FALSE)),"",VLOOKUP(CONCATENATE($A26,$A$4),Data!$A$2:$S$100,Lookup!P$3,FALSE)) -> 4320.307 | P26: =IF(ISNA(VLOOKUP(CONCATENATE($A26,$A$4),Data!$A$2:$S$100,Lookup!Q$3,FALSE)),"",VLOOKUP(CONCATENATE($A26,$A$4),Data!$A$2:$S$100,Lookup!Q$3,FALSE)) -> 22815.588 | Q26: =IF(ISNA(VLOOKUP(CONCATENATE($A26,$A$4),Data!$A$2:$S$100,Lookup!R$3,FALSE)),"",VLOOKUP(CONCATENATE($A26,$A$4),Data!$A$2:$S$100,Lookup!R$3,FALSE)) -> - | R26: =IF(ISNA(VLOOKUP(CONCATENATE($A26,$A$4),Data!$A$2:$S$100,Lookup!S$3,FALSE)),"",VLOOKUP(CONCATENATE($A26,$A$4),Data!$A$2:$S$100,Lookup!S$3,FALSE)) -> 931.096474 | S26: =IF(ISNA(VLOOKUP(CONCATENATE($A26,$A$4),Data!$A$2:$S$100,Lookup!T$3,FALSE)),"",VLOOKUP(CONCATENATE($A26,$A$4),Data!$A$2:$S$100,Lookup!T$3,FALSE)) -> 72.2968664
A27: 15 | B27: =IF(ISNA(VLOOKUP(CONCATENATE($A27,$A$4),Data!$A$2:$S$100,Lookup!C$3,FALSE)),"",VLOOKUP(CONCATENATE($A27,$A$4),Data!$A$2:$S$100,Lookup!C$3,FALSE)) -> Hairmyres, East Kilbride | C27: =IF(ISNA(VLOOKUP(CONCATENATE($A27,$A$4),Data!$A$2:$S$100,Lookup!D$3,FALSE)),"",VLOOKUP(CONCATENATE($A27,$A$4),Data!$A$2:$S$100,Lookup!D$3,FALSE)) -> L | D27: =IF(ISNA(VLOOKUP(CONCATENATE($A27,$A$4),Data!$A$2:$S$100,Lookup!E$3,FALSE)),"",VLOOKUP(CONCATENATE($A27,$A$4),Data!$A$2:$S$100,Lookup!E$3,FALSE)) -> A2 | E27: =IF(ISNA(VLOOKUP(CONCATENATE($A27,$A$4),Data!$A$2:$S$100,Lookup!F$3,FALSE)),"",VLOOKUP(CONCATENATE($A27,$A$4),Data!$A$2:$S$100,Lookup!F$3,FALSE)) -> 8 | F27: =IF(ISNA(VLOOKUP(CONCATENATE($A27,$A$4),Data!$A$2:$S$100,Lookup!G$3,FALSE)),"",VLOOKUP(CONCATENATE($A27,$A$4),Data!$A$2:$S$100,Lookup!G$3,FALSE)) -> 253.1730769 | G27: =IF(ISNA(VLOOKUP(CONCATENATE($A27,$A$4),Data!$A$2:$S$100,Lookup!H$3,FALSE)),"",VLOOKUP(CONCATENATE($A27,$A$4),Data!$A$2:$S$100,Lookup!H$3,FALSE)) -> 31.64663462 | H27: =IF(ISNA(VLOOKUP(CONCATENATE($A27,$A$4),Data!$A$2:$S$100,Lookup!I$3,FALSE)),"",VLOOKUP(CONCATENATE($A27,$A$4),Data!$A$2:$S$100,Lookup!I$3,FALSE)) -> 122.9778558 | I27: =IF(ISNA(VLOOKUP(CONCATENATE($A27,$A$4),Data!$A$2:$S$100,Lookup!J$3,FALSE)),"",VLOOKUP(CONCATENATE($A27,$A$4),Data!$A$2:$S$100,Lookup!J$3,FALSE)) -> 3727.511 | J27: =IF(ISNA(VLOOKUP(CONCATENATE($A27,$A$4),Data!$A$2:$S$100,Lookup!K$3,FALSE)),"",VLOOKUP(CONCATENATE($A27,$A$4),Data!$A$2:$S$100,Lookup!K$3,FALSE)) -> 4551.593 | K27: =IF(ISNA(VLOOKUP(CONCATENATE($A27,$A$4),Data!$A$2:$S$100,Lookup!L$3,FALSE)),"",VLOOKUP(CONCATENATE($A27,$A$4),Data!$A$2:$S$100,Lookup!L$3,FALSE)) -> 183.364 | L27: =IF(ISNA(VLOOKUP(CONCATENATE($A27,$A$4),Data!$A$2:$S$100,Lookup!M$3,FALSE)),"",VLOOKUP(CONCATENATE($A27,$A$4),Data!$A$2:$S$100,Lookup!M$3,FALSE)) -> 348.199 | M27: =IF(ISNA(VLOOKUP(CONCATENATE($A27,$A$4),Data!$A$2:$S$100,Lookup!N$3,FALSE)),"",VLOOKUP(CONCATENATE($A27,$A$4),Data!$A$2:$S$100,Lookup!N$3,FALSE)) -> 368.936 | N27: =IF(ISNA(VLOOKUP(CONCATENATE($A27,$A$4),Data!$A$2:$S$100,Lookup!O$3,FALSE)),"",VLOOKUP(CONCATENATE($A27,$A$4),Data!$A$2:$S$100,Lookup!O$3,FALSE)) -> 5040.99 | O27: =IF(ISNA(VLOOKUP(CONCATENATE($A27,$A$4),Data!$A$2:$S$100,Lookup!P$3,FALSE)),"",VLOOKUP(CONCATENATE($A27,$A$4),Data!$A$2:$S$100,Lookup!P$3,FALSE)) -> 4566.068 | P27: =IF(ISNA(VLOOKUP(CONCATENATE($A27,$A$4),Data!$A$2:$S$100,Lookup!Q$3,FALSE)),"",VLOOKUP(CONCATENATE($A27,$A$4),Data!$A$2:$S$100,Lookup!Q$3,FALSE)) -> 18786.661 | Q27: =IF(ISNA(VLOOKUP(CONCATENATE($A27,$A$4),Data!$A$2:$S$100,Lookup!R$3,FALSE)),"",VLOOKUP(CONCATENATE($A27,$A$4),Data!$A$2:$S$100,Lookup!R$3,FALSE)) -> - | R27: =IF(ISNA(VLOOKUP(CONCATENATE($A27,$A$4),Data!$A$2:$S$100,Lookup!S$3,FALSE)),"",VLOOKUP(CONCATENATE($A27,$A$4),Data!$A$2:$S$100,Lookup!S$3,FALSE)) -> 1427.015648 | S27: =IF(ISNA(VLOOKUP(CONCATENATE($A27,$A$4),Data!$A$2:$S$100,Lookup!T$3,FALSE)),"",VLOOKUP(CONCATENATE($A27,$A$4),Data!$A$2:$S$100,Lookup!T$3,FALSE)) -> 110.8035123
A28: 16 | B28: =IF(ISNA(VLOOKUP(CONCATENATE($A28,$A$4),Data!$A$2:$S$100,Lookup!C$3,FALSE)),"",VLOOKUP(CONCATENATE($A28,$A$4),Data!$A$2:$S$100,Lookup!C$3,FALSE)) -> Raigmore, Inverness | C28: =IF(ISNA(VLOOKUP(CONCATENATE($A28,$A$4),Data!$A$2:$S$100,Lookup!D$3,FALSE)),"",VLOOKUP(CONCATENATE($A28,$A$4),Data!$A$2:$S$100,Lookup!D$3,FALSE)) -> H | D28: =IF(ISNA(VLOOKUP(CONCATENATE($A28,$A$4),Data!$A$2:$S$100,Lookup!E$3,FALSE)),"",VLOOKUP(CONCATENATE($A28,$A$4),Data!$A$2:$S$100,Lookup!E$3,FALSE)) -> A2 | E28: =IF(ISNA(VLOOKUP(CONCATENATE($A28,$A$4),Data!$A$2:$S$100,Lookup!F$3,FALSE)),"",VLOOKUP(CONCATENATE($A28,$A$4),Data!$A$2:$S$100,Lookup!F$3,FALSE)) -> 13 | F28: =IF(ISNA(VLOOKUP(CONCATENATE($A28,$A$4),Data!$A$2:$S$100,Lookup!G$3,FALSE)),"",VLOOKUP(CONCATENATE($A28,$A$4),Data!$A$2:$S$100,Lookup!G$3,FALSE)) -> 315.445 | G28: =IF(ISNA(VLOOKUP(CONCATENATE($A28,$A$4),Data!$A$2:$S$100,Lookup!H$3,FALSE)),"",VLOOKUP(CONCATENATE($A28,$A$4),Data!$A$2:$S$100,Lookup!H$3,FALSE)) -> 24.265 | H28: =IF(ISNA(VLOOKUP(CONCATENATE($A28,$A$4),Data!$A$2:$S$100,Lookup!I$3,FALSE)),"",VLOOKUP(CONCATENATE($A28,$A$4),Data!$A$2:$S$100,Lookup!I$3,FALSE)) -> 94.29304908 | I28: =IF(ISNA(VLOOKUP(CONCATENATE($A28,$A$4),Data!$A$2:$S$100,Lookup!J$3,FALSE)),"",VLOOKUP(CONCATENATE($A28,$A$4),Data!$A$2:$S$100,Lookup!J$3,FALSE)) -> 4365.79506 | J28: =IF(ISNA(VLOOKUP(CONCATENATE($A28,$A$4),Data!$A$2:$S$100,Lookup!K$3,FALSE)),"",VLOOKUP(CONCATENATE($A28,$A$4),Data!$A$2:$S$100,Lookup!K$3,FALSE)) -> 5858.10689 | K28: =IF(ISNA(VLOOKUP(CONCATENATE($A28,$A$4),Data!$A$2:$S$100,Lookup!L$3,FALSE)),"",VLOOKUP(CONCATENATE($A28,$A$4),Data!$A$2:$S$100,Lookup!L$3,FALSE)) -> 322.69356 | L28: =IF(ISNA(VLOOKUP(CONCATENATE($A28,$A$4),Data!$A$2:$S$100,Lookup!M$3,FALSE)),"",VLOOKUP(CONCATENATE($A28,$A$4),Data!$A$2:$S$100,Lookup!M$3,FALSE)) -> 694.09401 | M28: =IF(ISNA(VLOOKUP(CONCATENATE($A28,$A$4),Data!$A$2:$S$100,Lookup!N$3,FALSE)),"",VLOOKUP(CONCATENATE($A28,$A$4),Data!$A$2:$S$100,Lookup!N$3,FALSE)) -> 2.67642 | N28: =IF(ISNA(VLOOKUP(CONCATENATE($A28,$A$4),Data!$A$2:$S$100,Lookup!O$3,FALSE)),"",VLOOKUP(CONCATENATE($A28,$A$4),Data!$A$2:$S$100,Lookup!O$3,FALSE)) -> 6926.32767 | O28: =IF(ISNA(VLOOKUP(CONCATENATE($A28,$A$4),Data!$A$2:$S$100,Lookup!P$3,FALSE)),"",VLOOKUP(CONCATENATE($A28,$A$4),Data!$A$2:$S$100,Lookup!P$3,FALSE)) -> 5060.0819 | P28: =IF(ISNA(VLOOKUP(CONCATENATE($A28,$A$4),Data!$A$2:$S$100,Lookup!Q$3,FALSE)),"",VLOOKUP(CONCATENATE($A28,$A$4),Data!$A$2:$S$100,Lookup!Q$3,FALSE)) -> 23229.77551 | Q28: =IF(ISNA(VLOOKUP(CONCATENATE($A28,$A$4),Data!$A$2:$S$100,Lookup!R$3,FALSE)),"",VLOOKUP(CONCATENATE($A28,$A$4),Data!$A$2:$S$100,Lookup!R$3,FALSE)) -> 80.55318 | R28: =IF(ISNA(VLOOKUP(CONCATENATE($A28,$A$4),Data!$A$2:$S$100,Lookup!S$3,FALSE)),"",VLOOKUP(CONCATENATE($A28,$A$4),Data!$A$2:$S$100,Lookup!S$3,FALSE)) -> 1416.17858 | S28: =IF(ISNA(VLOOKUP(CONCATENATE($A28,$A$4),Data!$A$2:$S$100,Lookup!T$3,FALSE)),"",VLOOKUP(CONCATENATE($A28,$A$4),Data!$A$2:$S$100,Lookup!T$3,FALSE)) -> 109.9620463
A29: 17 | B29: =IF(ISNA(VLOOKUP(CONCATENATE($A29,$A$4),Data!$A$2:$S$100,Lookup!C$3,FALSE)),"",VLOOKUP(CONCATENATE($A29,$A$4),Data!$A$2:$S$100,Lookup!C$3,FALSE)) -> St. John's at Howden | C29: =IF(ISNA(VLOOKUP(CONCATENATE($A29,$A$4),Data!$A$2:$S$100,Lookup!D$3,FALSE)),"",VLOOKUP(CONCATENATE($A29,$A$4),Data!$A$2:$S$100,Lookup!D$3,FALSE)) -> S | D29: =IF(ISNA(VLOOKUP(CONCATENATE($A29,$A$4),Data!$A$2:$S$100,Lookup!E$3,FALSE)),"",VLOOKUP(CONCATENATE($A29,$A$4),Data!$A$2:$S$100,Lookup!E$3,FALSE)) -> A2 | E29: =IF(ISNA(VLOOKUP(CONCATENATE($A29,$A$4),Data!$A$2:$S$100,Lookup!F$3,FALSE)),"",VLOOKUP(CONCATENATE($A29,$A$4),Data!$A$2:$S$100,Lookup!F$3,FALSE)) -> 14 | F29: =IF(ISNA(VLOOKUP(CONCATENATE($A29,$A$4),Data!$A$2:$S$100,Lookup!G$3,FALSE)),"",VLOOKUP(CONCATENATE($A29,$A$4),Data!$A$2:$S$100,Lookup!G$3,FALSE)) -> 279.9615385 | G29: =IF(ISNA(VLOOKUP(CONCATENATE($A29,$A$4),Data!$A$2:$S$100,Lookup!H$3,FALSE)),"",VLOOKUP(CONCATENATE($A29,$A$4),Data!$A$2:$S$100,Lookup!H$3,FALSE)) -> 19.99725275 | H29: =IF(ISNA(VLOOKUP(CONCATENATE($A29,$A$4),Data!$A$2:$S$100,Lookup!I$3,FALSE)),"",VLOOKUP(CONCATENATE($A29,$A$4),Data!$A$2:$S$100,Lookup!I$3,FALSE)) -> 77.70871357 | I29: =IF(ISNA(VLOOKUP(CONCATENATE($A29,$A$4),Data!$A$2:$S$100,Lookup!J$3,FALSE)),"",VLOOKUP(CONCATENATE($A29,$A$4),Data!$A$2:$S$100,Lookup!J$3,FALSE)) -> 6081.873 | J29: =IF(ISNA(VLOOKUP(CONCATENATE($A29,$A$4),Data!$A$2:$S$100,Lookup!K$3,FALSE)),"",VLOOKUP(CONCATENATE($A29,$A$4),Data!$A$2:$S$100,Lookup!K$3,FALSE)) -> 6356.091 | K29: =IF(ISNA(VLOOKUP(CONCATENATE($A29,$A$4),Data!$A$2:$S$100,Lookup!L$3,FALSE)),"",VLOOKUP(CONCATENATE($A29,$A$4),Data!$A$2:$S$100,Lookup!L$3,FALSE)) -> 1665.909 | L29: =IF(ISNA(VLOOKUP(CONCATENATE($A29,$A$4),Data!$A$2:$S$100,Lookup!M$3,FALSE)),"",VLOOKUP(CONCATENATE($A29,$A$4),Data!$A$2:$S$100,Lookup!M$3,FALSE)) -> 553.817 | M29: =IF(ISNA(VLOOKUP(CONCATENATE($A29,$A$4),Data!$A$2:$S$100,Lookup!N$3,FALSE)),"",VLOOKUP(CONCATENATE($A29,$A$4),Data!$A$2:$S$100,Lookup!N$3,FALSE)) -> 1533.07 | N29: =IF(ISNA(VLOOKUP(CONCATENATE($A29,$A$4),Data!$A$2:$S$100,Lookup!O$3,FALSE)),"",VLOOKUP(CONCATENATE($A29,$A$4),Data!$A$2:$S$100,Lookup!O$3,FALSE)) -> 3523.076 | O29: =IF(ISNA(VLOOKUP(CONCATENATE($A29,$A$4),Data!$A$2:$S$100,Lookup!P$3,FALSE)),"",VLOOKUP(CONCATENATE($A29,$A$4),Data!$A$2:$S$100,Lookup!P$3,FALSE)) -> 639.802 | P29: =IF(ISNA(VLOOKUP(CONCATENATE($A29,$A$4),Data!$A$2:$S$100,Lookup!Q$3,FALSE)),"",VLOOKUP(CONCATENATE($A29,$A$4),Data!$A$2:$S$100,Lookup!Q$3,FALSE)) -> 20353.638 | Q29: =IF(ISNA(VLOOKUP(CONCATENATE($A29,$A$4),Data!$A$2:$S$100,Lookup!R$3,FALSE)),"",VLOOKUP(CONCATENATE($A29,$A$4),Data!$A$2:$S$100,Lookup!R$3,FALSE)) -> - | R29: =IF(ISNA(VLOOKUP(CONCATENATE($A29,$A$4),Data!$A$2:$S$100,Lookup!S$3,FALSE)),"",VLOOKUP(CONCATENATE($A29,$A$4),Data!$A$2:$S$100,Lookup!S$3,FALSE)) -> 1398.106745 | S29: =IF(ISNA(VLOOKUP(CONCATENATE($A29,$A$4),Data!$A$2:$S$100,Lookup!T$3,FALSE)),"",VLOOKUP(CONCATENATE($A29,$A$4),Data!$A$2:$S$100,Lookup!T$3,FALSE)) -> 108.5588222
A30: 18 | B30: =IF(ISNA(VLOOKUP(CONCATENATE($A30,$A$4),Data!$A$2:$S$100,Lookup!C$3,FALSE)),"",VLOOKUP(CONCATENATE($A30,$A$4),Data!$A$2:$S$100,Lookup!C$3,FALSE)) -> Monklands Hospital | C30: =IF(ISNA(VLOOKUP(CONCATENATE($A30,$A$4),Data!$A$2:$S$100,Lookup!D$3,FALSE)),"",VLOOKUP(CONCATENATE($A30,$A$4),Data!$A$2:$S$100,Lookup!D$3,FALSE)) -> L | D30: =IF(ISNA(VLOOKUP(CONCATENATE($A30,$A$4),Data!$A$2:$S$100,Lookup!E$3,FALSE)),"",VLOOKUP(CONCATENATE($A30,$A$4),Data!$A$2:$S$100,Lookup!E$3,FALSE)) -> A2 | E30: =IF(ISNA(VLOOKUP(CONCATENATE($A30,$A$4),Data!$A$2:$S$100,Lookup!F$3,FALSE)),"",VLOOKUP(CONCATENATE($A30,$A$4),Data!$A$2:$S$100,Lookup!F$3,FALSE)) -> 9 | F30: =IF(ISNA(VLOOKUP(CONCATENATE($A30,$A$4),Data!$A$2:$S$100,Lookup!G$3,FALSE)),"",VLOOKUP(CONCATENATE($A30,$A$4),Data!$A$2:$S$100,Lookup!G$3,FALSE)) -> 214.3846154 | G30: =IF(ISNA(VLOOKUP(CONCATENATE($A30,$A$4),Data!$A$2:$S$100,Lookup!H$3,FALSE)),"",VLOOKUP(CONCATENATE($A30,$A$4),Data!$A$2:$S$100,Lookup!H$3,FALSE)) -> 23.82051282 | H30: =IF(ISNA(VLOOKUP(CONCATENATE($A30,$A$4),Data!$A$2:$S$100,Lookup!I$3,FALSE)),"",VLOOKUP(CONCATENATE($A30,$A$4),Data!$A$2:$S$100,Lookup!I$3,FALSE)) -> 92.56578547 | I30: =IF(ISNA(VLOOKUP(CONCATENATE($A30,$A$4),Data!$A$2:$S$100,Lookup!J$3,FALSE)),"",VLOOKUP(CONCATENATE($A30,$A$4),Data!$A$2:$S$100,Lookup!J$3,FALSE)) -> 4266.332 | J30: =IF(ISNA(VLOOKUP(CONCATENATE($A30,$A$4),Data!$A$2:$S$100,Lookup!K$3,FALSE)),"",VLOOKUP(CONCATENATE($A30,$A$4),Data!$A$2:$S$100,Lookup!K$3,FALSE)) -> 3601.573 | K30: =IF(ISNA(VLOOKUP(CONCATENATE($A30,$A$4),Data!$A$2:$S$100,Lookup!L$3,FALSE)),"",VLOOKUP(CONCATENATE($A30,$A$4),Data!$A$2:$S$100,Lookup!L$3,FALSE)) -> 115.681 | L30: =IF(ISNA(VLOOKUP(CONCATENATE($A30,$A$4),Data!$A$2:$S$100,Lookup!M$3,FALSE)),"",VLOOKUP(CONCATENATE($A30,$A$4),Data!$A$2:$S$100,Lookup!M$3,FALSE)) -> 285.983 | M30: =IF(ISNA(VLOOKUP(CONCATENATE($A30,$A$4),Data!$A$2:$S$100,Lookup!N$3,FALSE)),"",VLOOKUP(CONCATENATE($A30,$A$4),Data!$A$2:$S$100,Lookup!N$3,FALSE)) -> 183.437 | N30: =IF(ISNA(VLOOKUP(CONCATENATE($A30,$A$4),Data!$A$2:$S$100,Lookup!O$3,FALSE)),"",VLOOKUP(CONCATENATE($A30,$A$4),Data!$A$2:$S$100,Lookup!O$3,FALSE)) -> 2794.672 | O30: =IF(ISNA(VLOOKUP(CONCATENATE($A30,$A$4),Data!$A$2:$S$100,Lookup!P$3,FALSE)),"",VLOOKUP(CONCATENATE($A30,$A$4),Data!$A$2:$S$100,Lookup!P$3,FALSE)) -> 4153.497 | P30: =IF(ISNA(VLOOKUP(CONCATENATE($A30,$A$4),Data!$A$2:$S$100,Lookup!Q$3,FALSE)),"",VLOOKUP(CONCATENATE($A30,$A$4),Data!$A$2:$S$100,Lookup!Q$3,FALSE)) -> 15401.175 | Q30: =IF(ISNA(VLOOKUP(CONCATENATE($A30,$A$4),Data!$A$2:$S$100,Lookup!R$3,FALSE)),"",VLOOKUP(CONCATENATE($A30,$A$4),Data!$A$2:$S$100,Lookup!R$3,FALSE)) -> - | R30: =IF(ISNA(VLOOKUP(CONCATENATE($A30,$A$4),Data!$A$2:$S$100,Lookup!S$3,FALSE)),"",VLOOKUP(CONCATENATE($A30,$A$4),Data!$A$2:$S$100,Lookup!S$3,FALSE)) -> 1381.519107 | S30: =IF(ISNA(VLOOKUP(CONCATENATE($A30,$A$4),Data!$A$2:$S$100,Lookup!T$3,FALSE)),"",VLOOKUP(CONCATENATE($A30,$A$4),Data!$A$2:$S$100,Lookup!T$3,FALSE)) -> 107.2708415
A31: 19 | B31: =IF(ISNA(VLOOKUP(CONCATENATE($A31,$A$4),Data!$A$2:$S$100,Lookup!C$3,FALSE)),"",VLOOKUP(CONCATENATE($A31,$A$4),Data!$A$2:$S$100,Lookup!C$3,FALSE)) -> The Ayr Hospital | C31: =IF(ISNA(VLOOKUP(CONCATENATE($A31,$A$4),Data!$A$2:$S$100,Lookup!D$3,FALSE)),"",VLOOKUP(CONCATENATE($A31,$A$4),Data!$A$2:$S$100,Lookup!D$3,FALSE)) -> A | D31: =IF(ISNA(VLOOKUP(CONCATENATE($A31,$A$4),Data!$A$2:$S$100,Lookup!E$3,FALSE)),"",VLOOKUP(CONCATENATE($A31,$A$4),Data!$A$2:$S$100,Lookup!E$3,FALSE)) -> A2 | E31: =IF(ISNA(VLOOKUP(CONCATENATE($A31,$A$4),Data!$A$2:$S$100,Lookup!F$3,FALSE)),"",VLOOKUP(CONCATENATE($A31,$A$4),Data!$A$2:$S$100,Lookup!F$3,FALSE)) -> 11 | F31: =IF(ISNA(VLOOKUP(CONCATENATE($A31,$A$4),Data!$A$2:$S$100,Lookup!G$3,FALSE)),"",VLOOKUP(CONCATENATE($A31,$A$4),Data!$A$2:$S$100,Lookup!G$3,FALSE)) -> 306.7115385 | G31: =IF(ISNA(VLOOKUP(CONCATENATE($A31,$A$4),Data!$A$2:$S$100,Lookup!H$3,FALSE)),"",VLOOKUP(CONCATENATE($A31,$A$4),Data!$A$2:$S$100,Lookup!H$3,FALSE)) -> 27.88286713 | H31: =IF(ISNA(VLOOKUP(CONCATENATE($A31,$A$4),Data!$A$2:$S$100,Lookup!I$3,FALSE)),"",VLOOKUP(CONCATENATE($A31,$A$4),Data!$A$2:$S$100,Lookup!I$3,FALSE)) -> 108.3519703 | I31: =IF(ISNA(VLOOKUP(CONCATENATE($A31,$A$4),Data!$A$2:$S$100,Lookup!J$3,FALSE)),"",VLOOKUP(CONCATENATE($A31,$A$4),Data!$A$2:$S$100,Lookup!J$3,FALSE)) -> 3060.797 | J31: =IF(ISNA(VLOOKUP(CONCATENATE($A31,$A$4),Data!$A$2:$S$100,Lookup!K$3,FALSE)),"",VLOOKUP(CONCATENATE($A31,$A$4),Data!$A$2:$S$100,Lookup!K$3,FALSE)) -> 4530.315 | K31: =IF(ISNA(VLOOKUP(CONCATENATE($A31,$A$4),Data!$A$2:$S$100,Lookup!L$3,FALSE)),"",VLOOKUP(CONCATENATE($A31,$A$4),Data!$A$2:$S$100,Lookup!L$3,FALSE)) -> 872.264 | L31: =IF(ISNA(VLOOKUP(CONCATENATE($A31,$A$4),Data!$A$2:$S$100,Lookup!M$3,FALSE)),"",VLOOKUP(CONCATENATE($A31,$A$4),Data!$A$2:$S$100,Lookup!M$3,FALSE)) -> 977.476 | M31: =IF(ISNA(VLOOKUP(CONCATENATE($A31,$A$4),Data!$A$2:$S$100,Lookup!N$3,FALSE)),"",VLOOKUP(CONCATENATE($A31,$A$4),Data!$A$2:$S$100,Lookup!N$3,FALSE)) -> 780.823 | N31: =IF(ISNA(VLOOKUP(CONCATENATE($A31,$A$4),Data!$A$2:$S$100,Lookup!O$3,FALSE)),"",VLOOKUP(CONCATENATE($A31,$A$4),Data!$A$2:$S$100,Lookup!O$3,FALSE)) -> 3256.743 | O31: =IF(ISNA(VLOOKUP(CONCATENATE($A31,$A$4),Data!$A$2:$S$100,Lookup!P$3,FALSE)),"",VLOOKUP(CONCATENATE($A31,$A$4),Data!$A$2:$S$100,Lookup!P$3,FALSE)) -> 2813.681 | P31: =IF(ISNA(VLOOKUP(CONCATENATE($A31,$A$4),Data!$A$2:$S$100,Lookup!Q$3,FALSE)),"",VLOOKUP(CONCATENATE($A31,$A$4),Data!$A$2:$S$100,Lookup!Q$3,FALSE)) -> 16292.099 | Q31: =IF(ISNA(VLOOKUP(CONCATENATE($A31,$A$4),Data!$A$2:$S$100,Lookup!R$3,FALSE)),"",VLOOKUP(CONCATENATE($A31,$A$4),Data!$A$2:$S$100,Lookup!R$3,FALSE)) -> - | R31: =IF(ISNA(VLOOKUP(CONCATENATE($A31,$A$4),Data!$A$2:$S$100,Lookup!S$3,FALSE)),"",VLOOKUP(CONCATENATE($A31,$A$4),Data!$A$2:$S$100,Lookup!S$3,FALSE)) -> 1021.512258 | S31: =IF(ISNA(VLOOKUP(CONCATENATE($A31,$A$4),Data!$A$2:$S$100,Lookup!T$3,FALSE)),"",VLOOKUP(CONCATENATE($A31,$A$4),Data!$A$2:$S$100,Lookup!T$3,FALSE)) -> 79.31738256
A32: 20 | B32: =IF(ISNA(VLOOKUP(CONCATENATE($A32,$A$4),Data!$A$2:$S$100,Lookup!C$3,FALSE)),"",VLOOKUP(CONCATENATE($A32,$A$4),Data!$A$2:$S$100,Lookup!C$3,FALSE)) -> New Dumfries and Galloway Royal Infirmary | C32: =IF(ISNA(VLOOKUP(CONCATENATE($A32,$A$4),Data!$A$2:$S$100,Lookup!D$3,FALSE)),"",VLOOKUP(CONCATENATE($A32,$A$4),Data!$A$2:$S$100,Lookup!D$3,FALSE)) -> Y | D32: =IF(ISNA(VLOOKUP(CONCATENATE($A32,$A$4),Data!$A$2:$S$100,Lookup!E$3,FALSE)),"",VLOOKUP(CONCATENATE($A32,$A$4),Data!$A$2:$S$100,Lookup!E$3,FALSE)) -> A2 | E32: =IF(ISNA(VLOOKUP(CONCATENATE($A32,$A$4),Data!$A$2:$S$100,Lookup!F$3,FALSE)),"",VLOOKUP(CONCATENATE($A32,$A$4),Data!$A$2:$S$100,Lookup!F$3,FALSE)) -> 9 | F32: =IF(ISNA(VLOOKUP(CONCATENATE($A32,$A$4),Data!$A$2:$S$100,Lookup!G$3,FALSE)),"",VLOOKUP(CONCATENATE($A32,$A$4),Data!$A$2:$S$100,Lookup!G$3,FALSE)) -> 223.6538462 | G32: =IF(ISNA(VLOOKUP(CONCATENATE($A32,$A$4),Data!$A$2:$S$100,Lookup!H$3,FALSE)),"",VLOOKUP(CONCATENATE($A32,$A$4),Data!$A$2:$S$100,Lookup!H$3,FALSE)) -> 24.85042735 | H32: =IF(ISNA(VLOOKUP(CONCATENATE($A32,$A$4),Data!$A$2:$S$100,Lookup!I$3,FALSE)),"",VLOOKUP(CONCATENATE($A32,$A$4),Data!$A$2:$S$100,Lookup!I$3,FALSE)) -> 96.56800189 | I32: =IF(ISNA(VLOOKUP(CONCATENATE($A32,$A$4),Data!$A$2:$S$100,Lookup!J$3,FALSE)),"",VLOOKUP(CONCATENATE($A32,$A$4),Data!$A$2:$S$100,Lookup!J$3,FALSE)) -> 2783.797 | J32: =IF(ISNA(VLOOKUP(CONCATENATE($A32,$A$4),Data!$A$2:$S$100,Lookup!K$3,FALSE)),"",VLOOKUP(CONCATENATE($A32,$A$4),Data!$A$2:$S$100,Lookup!K$3,FALSE)) -> 4521.777 | K32: =IF(ISNA(VLOOKUP(CONCATENATE($A32,$A$4),Data!$A$2:$S$100,Lookup!L$3,FALSE)),"",VLOOKUP(CONCATENATE($A32,$A$4),Data!$A$2:$S$100,Lookup!L$3,FALSE)) -> 272.966 | L32: =IF(ISNA(VLOOKUP(CONCATENATE($A32,$A$4),Data!$A$2:$S$100,Lookup!M$3,FALSE)),"",VLOOKUP(CONCATENATE($A32,$A$4),Data!$A$2:$S$100,Lookup!M$3,FALSE)) -> 285.744 | M32: =IF(ISNA(VLOOKUP(CONCATENATE($A32,$A$4),Data!$A$2:$S$100,Lookup!N$3,FALSE)),"",VLOOKUP(CONCATENATE($A32,$A$4),Data!$A$2:$S$100,Lookup!N$3,FALSE)) -> 15 | N32: =IF(ISNA(VLOOKUP(CONCATENATE($A32,$A$4),Data!$A$2:$S$100,Lookup!O$3,FALSE)),"",VLOOKUP(CONCATENATE($A32,$A$4),Data!$A$2:$S$100,Lookup!O$3,FALSE)) -> 2910.061 | O32: =IF(ISNA(VLOOKUP(CONCATENATE($A32,$A$4),Data!$A$2:$S$100,Lookup!P$3,FALSE)),"",VLOOKUP(CONCATENATE($A32,$A$4),Data!$A$2:$S$100,Lookup!P$3,FALSE)) -> 6879.633 | P32: =IF(ISNA(VLOOKUP(CONCATENATE($A32,$A$4),Data!$A$2:$S$100,Lookup!Q$3,FALSE)),"",VLOOKUP(CONCATENATE($A32,$A$4),Data!$A$2:$S$100,Lookup!Q$3,FALSE)) -> 17668.978 | Q32: =IF(ISNA(VLOOKUP(CONCATENATE($A32,$A$4),Data!$A$2:$S$100,Lookup!R$3,FALSE)),"",VLOOKUP(CONCATENATE($A32,$A$4),Data!$A$2:$S$100,Lookup!R$3,FALSE)) -> - | R32: =IF(ISNA(VLOOKUP(CONCATENATE($A32,$A$4),Data!$A$2:$S$100,Lookup!S$3,FALSE)),"",VLOOKUP(CONCATENATE($A32,$A$4),Data!$A$2:$S$100,Lookup!S$3,FALSE)) -> 1519.258641 | S32: =IF(ISNA(VLOOKUP(CONCATENATE($A32,$A$4),Data!$A$2:$S$100,Lookup!T$3,FALSE)),"",VLOOKUP(CONCATENATE($A32,$A$4),Data!$A$2:$S$100,Lookup!T$3,FALSE)) -> 117.9659059
A33: 21 | B33: =IF(ISNA(VLOOKUP(CONCATENATE($A33,$A$4),Data!$A$2:$S$100,Lookup!C$3,FALSE)),"",VLOOKUP(CONCATENATE($A33,$A$4),Data!$A$2:$S$100,Lookup!C$3,FALSE)) -> Inverclyde Royal Hospital | C33: =IF(ISNA(VLOOKUP(CONCATENATE($A33,$A$4),Data!$A$2:$S$100,Lookup!D$3,FALSE)),"",VLOOKUP(CONCATENATE($A33,$A$4),Data!$A$2:$S$100,Lookup!D$3,FALSE)) -> G | D33: =IF(ISNA(VLOOKUP(CONCATENATE($A33,$A$4),Data!$A$2:$S$100,Lookup!E$3,FALSE)),"",VLOOKUP(CONCATENATE($A33,$A$4),Data!$A$2:$S$100,Lookup!E$3,FALSE)) -> A2 | E33: =IF(ISNA(VLOOKUP(CONCATENATE($A33,$A$4),Data!$A$2:$S$100,Lookup!F$3,FALSE)),"",VLOOKUP(CONCATENATE($A33,$A$4),Data!$A$2:$S$100,Lookup!F$3,FALSE)) -> 7 | F33: =IF(ISNA(VLOOKUP(CONCATENATE($A33,$A$4),Data!$A$2:$S$100,Lookup!G$3,FALSE)),"",VLOOKUP(CONCATENATE($A33,$A$4),Data!$A$2:$S$100,Lookup!G$3,FALSE)) -> 122.3269231 | G33: =IF(ISNA(VLOOKUP(CONCATENATE($A33,$A$4),Data!$A$2:$S$100,Lookup!H$3,FALSE)),"",VLOOKUP(CONCATENATE($A33,$A$4),Data!$A$2:$S$100,Lookup!H$3,FALSE)) -> 17.47527473 | H33: =IF(ISNA(VLOOKUP(CONCATENATE($A33,$A$4),Data!$A$2:$S$100,Lookup!I$3,FALSE)),"",VLOOKUP(CONCATENATE($A33,$A$4),Data!$A$2:$S$100,Lookup!I$3,FALSE)) -> 67.90838398 | I33: =IF(ISNA(VLOOKUP(CONCATENATE($A33,$A$4),Data!$A$2:$S$100,Lookup!J$3,FALSE)),"",VLOOKUP(CONCATENATE($A33,$A$4),Data!$A$2:$S$100,Lookup!J$3,FALSE)) -> 2060.523 | J33: =IF(ISNA(VLOOKUP(CONCATENATE($A33,$A$4),Data!$A$2:$S$100,Lookup!K$3,FALSE)),"",VLOOKUP(CONCATENATE($A33,$A$4),Data!$A$2:$S$100,Lookup!K$3,FALSE)) -> 2580.679 | K33: =IF(ISNA(VLOOKUP(CONCATENATE($A33,$A$4),Data!$A$2:$S$100,Lookup!L$3,FALSE)),"",VLOOKUP(CONCATENATE($A33,$A$4),Data!$A$2:$S$100,Lookup!L$3,FALSE)) -> 26 | L33: =IF(ISNA(VLOOKUP(CONCATENATE($A33,$A$4),Data!$A$2:$S$100,Lookup!M$3,FALSE)),"",VLOOKUP(CONCATENATE($A33,$A$4),Data!$A$2:$S$100,Lookup!M$3,FALSE)) -> 223.011 | M33: =IF(ISNA(VLOOKUP(CONCATENATE($A33,$A$4),Data!$A$2:$S$100,Lookup!N$3,FALSE)),"",VLOOKUP(CONCATENATE($A33,$A$4),Data!$A$2:$S$100,Lookup!N$3,FALSE)) -> 55.835 | N33: =IF(ISNA(VLOOKUP(CONCATENATE($A33,$A$4),Data!$A$2:$S$100,Lookup!O$3,FALSE)),"",VLOOKUP(CONCATENATE($A33,$A$4),Data!$A$2:$S$100,Lookup!O$3,FALSE)) -> 1846.979 | O33: =IF(ISNA(VLOOKUP(CONCATENATE($A33,$A$4),Data!$A$2:$S$100,Lookup!P$3,FALSE)),"",VLOOKUP(CONCATENATE($A33,$A$4),Data!$A$2:$S$100,Lookup!P$3,FALSE)) -> 2268.46 | P33: =IF(ISNA(VLOOKUP(CONCATENATE($A33,$A$4),Data!$A$2:$S$100,Lookup!Q$3,FALSE)),"",VLOOKUP(CONCATENATE($A33,$A$4),Data!$A$2:$S$100,Lookup!Q$3,FALSE)) -> 9061.487 | Q33: =IF(ISNA(VLOOKUP(CONCATENATE($A33,$A$4),Data!$A$2:$S$100,Lookup!R$3,FALSE)),"",VLOOKUP(CONCATENATE($A33,$A$4),Data!$A$2:$S$100,Lookup!R$3,FALSE)) -> - | R33: =IF(ISNA(VLOOKUP(CONCATENATE($A33,$A$4),Data!$A$2:$S$100,Lookup!S$3,FALSE)),"",VLOOKUP(CONCATENATE($A33,$A$4),Data!$A$2:$S$100,Lookup!S$3,FALSE)) -> 1424.538123 | S33: =IF(ISNA(VLOOKUP(CONCATENATE($A33,$A$4),Data!$A$2:$S$100,Lookup!T$3,FALSE)),"",VLOOKUP(CONCATENATE($A33,$A$4),Data!$A$2:$S$100,Lookup!T$3,FALSE)) -> 110.6111399
A34: 22 | B34: =IF(ISNA(VLOOKUP(CONCATENATE($A34,$A$4),Data!$A$2:$S$100,Lookup!C$3,FALSE)),"",VLOOKUP(CONCATENATE($A34,$A$4),Data!$A$2:$S$100,Lookup!C$3,FALSE)) -> Borders General | C34: =IF(ISNA(VLOOKUP(CONCATENATE($A34,$A$4),Data!$A$2:$S$100,Lookup!D$3,FALSE)),"",VLOOKUP(CONCATENATE($A34,$A$4),Data!$A$2:$S$100,Lookup!D$3,FALSE)) -> B | D34: =IF(ISNA(VLOOKUP(CONCATENATE($A34,$A$4),Data!$A$2:$S$100,Lookup!E$3,FALSE)),"",VLOOKUP(CONCATENATE($A34,$A$4),Data!$A$2:$S$100,Lookup!E$3,FALSE)) -> A2 | E34: =IF(ISNA(VLOOKUP(CONCATENATE($A34,$A$4),Data!$A$2:$S$100,Lookup!F$3,FALSE)),"",VLOOKUP(CONCATENATE($A34,$A$4),Data!$A$2:$S$100,Lookup!F$3,FALSE)) -> 6 | F34: =IF(ISNA(VLOOKUP(CONCATENATE($A34,$A$4),Data!$A$2:$S$100,Lookup!G$3,FALSE)),"",VLOOKUP(CONCATENATE($A34,$A$4),Data!$A$2:$S$100,Lookup!G$3,FALSE)) -> 151.1153846 | G34: =IF(ISNA(VLOOKUP(CONCATENATE($A34,$A$4),Data!$A$2:$S$100,Lookup!H$3,FALSE)),"",VLOOKUP(CONCATENATE($A34,$A$4),Data!$A$2:$S$100,Lookup!H$3,FALSE)) -> 25.18589744 | H34: =IF(ISNA(VLOOKUP(CONCATENATE($A34,$A$4),Data!$A$2:$S$100,Lookup!I$3,FALSE)),"",VLOOKUP(CONCATENATE($A34,$A$4),Data!$A$2:$S$100,Lookup!I$3,FALSE)) -> 97.87162839 | I34: =IF(ISNA(VLOOKUP(CONCATENATE($A34,$A$4),Data!$A$2:$S$100,Lookup!J$3,FALSE)),"",VLOOKUP(CONCATENATE($A34,$A$4),Data!$A$2:$S$100,Lookup!J$3,FALSE)) -> 3602.637 | J34: =IF(ISNA(VLOOKUP(CONCATENATE($A34,$A$4),Data!$A$2:$S$100,Lookup!K$3,FALSE)),"",VLOOKUP(CONCATENATE($A34,$A$4),Data!$A$2:$S$100,Lookup!K$3,FALSE)) -> 2891.195 | K34: =IF(ISNA(VLOOKUP(CONCATENATE($A34,$A$4),Data!$A$2:$S$100,Lookup!L$3,FALSE)),"",VLOOKUP(CONCATENATE($A34,$A$4),Data!$A$2:$S$100,Lookup!L$3,FALSE)) -> 628.132 | L34: =IF(ISNA(VLOOKUP(CONCATENATE($A34,$A$4),Data!$A$2:$S$100,Lookup!M$3,FALSE)),"",VLOOKUP(CONCATENATE($A34,$A$4),Data!$A$2:$S$100,Lookup!M$3,FALSE)) -> 220.779 | M34: =IF(ISNA(VLOOKUP(CONCATENATE($A34,$A$4),Data!$A$2:$S$100,Lookup!N$3,FALSE)),"",VLOOKUP(CONCATENATE($A34,$A$4),Data!$A$2:$S$100,Lookup!N$3,FALSE)) -> 359.808 | N34: =IF(ISNA(VLOOKUP(CONCATENATE($A34,$A$4),Data!$A$2:$S$100,Lookup!O$3,FALSE)),"",VLOOKUP(CONCATENATE($A34,$A$4),Data!$A$2:$S$100,Lookup!O$3,FALSE)) -> 1130.278 | O34: =IF(ISNA(VLOOKUP(CONCATENATE($A34,$A$4),Data!$A$2:$S$100,Lookup!P$3,FALSE)),"",VLOOKUP(CONCATENATE($A34,$A$4),Data!$A$2:$S$100,Lookup!P$3,FALSE)) -> 2760.043 | P34: =IF(ISNA(VLOOKUP(CONCATENATE($A34,$A$4),Data!$A$2:$S$100,Lookup!Q$3,FALSE)),"",VLOOKUP(CONCATENATE($A34,$A$4),Data!$A$2:$S$100,Lookup!Q$3,FALSE)) -> 11592.872 | Q34: =IF(ISNA(VLOOKUP(CONCATENATE($A34,$A$4),Data!$A$2:$S$100,Lookup!R$3,FALSE)),"",VLOOKUP(CONCATENATE($A34,$A$4),Data!$A$2:$S$100,Lookup!R$3,FALSE)) -> 54.803 | R34: =IF(ISNA(VLOOKUP(CONCATENATE($A34,$A$4),Data!$A$2:$S$100,Lookup!S$3,FALSE)),"",VLOOKUP(CONCATENATE($A34,$A$4),Data!$A$2:$S$100,Lookup!S$3,FALSE)) -> 1475.295495 | S34: =IF(ISNA(VLOOKUP(CONCATENATE($A34,$A$4),Data!$A$2:$S$100,Lookup!T$3,FALSE)),"",VLOOKUP(CONCATENATE($A34,$A$4),Data!$A$2:$S$100,Lookup!T$3,FALSE)) -> 114.5522986
A35: 23 | B35: =IF(ISNA(VLOOKUP(CONCATENATE($A35,$A$4),Data!$A$2:$S$100,Lookup!C$3,FALSE)),"",VLOOKUP(CONCATENATE($A35,$A$4),Data!$A$2:$S$100,Lookup!C$3,FALSE)) -> Perth Royal Infirmary | C35: =IF(ISNA(VLOOKUP(CONCATENATE($A35,$A$4),Data!$A$2:$S$100,Lookup!D$3,FALSE)),"",VLOOKUP(CONCATENATE($A35,$A$4),Data!$A$2:$S$100,Lookup!D$3,FALSE)) -> T | D35: =IF(ISNA(VLOOKUP(CONCATENATE($A35,$A$4),Data!$A$2:$S$100,Lookup!E$3,FALSE)),"",VLOOKUP(CONCATENATE($A35,$A$4),Data!$A$2:$S$100,Lookup!E$3,FALSE)) -> A2 | E35: =IF(ISNA(VLOOKUP(CONCATENATE($A35,$A$4),Data!$A$2:$S$100,Lookup!F$3,FALSE)),"",VLOOKUP(CONCATENATE($A35,$A$4),Data!$A$2:$S$100,Lookup!F$3,FALSE)) -> 8 | F35: =IF(ISNA(VLOOKUP(CONCATENATE($A35,$A$4),Data!$A$2:$S$100,Lookup!G$3,FALSE)),"",VLOOKUP(CONCATENATE($A35,$A$4),Data!$A$2:$S$100,Lookup!G$3,FALSE)) -> 125.2290385 | G35: =IF(ISNA(VLOOKUP(CONCATENATE($A35,$A$4),Data!$A$2:$S$100,Lookup!H$3,FALSE)),"",VLOOKUP(CONCATENATE($A35,$A$4),Data!$A$2:$S$100,Lookup!H$3,FALSE)) -> 15.65362981 | H35: =IF(ISNA(VLOOKUP(CONCATENATE($A35,$A$4),Data!$A$2:$S$100,Lookup!I$3,FALSE)),"",VLOOKUP(CONCATENATE($A35,$A$4),Data!$A$2:$S$100,Lookup!I$3,FALSE)) -> 60.82952745 | I35: =IF(ISNA(VLOOKUP(CONCATENATE($A35,$A$4),Data!$A$2:$S$100,Lookup!J$3,FALSE)),"",VLOOKUP(CONCATENATE($A35,$A$4),Data!$A$2:$S$100,Lookup!J$3,FALSE)) -> 2093.62131 | J35: =IF(ISNA(VLOOKUP(CONCATENATE($A35,$A$4),Data!$A$2:$S$100,Lookup!K$3,FALSE)),"",VLOOKUP(CONCATENATE($A35,$A$4),Data!$A$2:$S$100,Lookup!K$3,FALSE)) -> 2577.13906 | K35: =IF(ISNA(VLOOKUP(CONCATENATE($A35,$A$4),Data!$A$2:$S$100,Lookup!L$3,FALSE)),"",VLOOKUP(CONCATENATE($A35,$A$4),Data!$A$2:$S$100,Lookup!L$3,FALSE)) -> 241.61649 | L35: =IF(ISNA(VLOOKUP(CONCATENATE($A35,$A$4),Data!$A$2:$S$100,Lookup!M$3,FALSE)),"",VLOOKUP(CONCATENATE($A35,$A$4),Data!$A$2:$S$100,Lookup!M$3,FALSE)) -> 253.75411 | M35: =IF(ISNA(VLOOKUP(CONCATENATE($A35,$A$4),Data!$A$2:$S$100,Lookup!N$3,FALSE)),"",VLOOKUP(CONCATENATE($A35,$A$4),Data!$A$2:$S$100,Lookup!N$3,FALSE)) -> 1764.18586 | N35: =IF(ISNA(VLOOKUP(CONCATENATE($A35,$A$4),Data!$A$2:$S$100,Lookup!O$3,FALSE)),"",VLOOKUP(CONCATENATE($A35,$A$4),Data!$A$2:$S$100,Lookup!O$3,FALSE)) -> 1120.37916 | O35: =IF(ISNA(VLOOKUP(CONCATENATE($A35,$A$4),Data!$A$2:$S$100,Lookup!P$3,FALSE)),"",VLOOKUP(CONCATENATE($A35,$A$4),Data!$A$2:$S$100,Lookup!P$3,FALSE)) -> 3370.47 | P35: =IF(ISNA(VLOOKUP(CONCATENATE($A35,$A$4),Data!$A$2:$S$100,Lookup!Q$3,FALSE)),"",VLOOKUP(CONCATENATE($A35,$A$4),Data!$A$2:$S$100,Lookup!Q$3,FALSE)) -> 11421.16599 | Q35: =IF(ISNA(VLOOKUP(CONCATENATE($A35,$A$4),Data!$A$2:$S$100,Lookup!R$3,FALSE)),"",VLOOKUP(CONCATENATE($A35,$A$4),Data!$A$2:$S$100,Lookup!R$3,FALSE)) -> - | R35: =IF(ISNA(VLOOKUP(CONCATENATE($A35,$A$4),Data!$A$2:$S$100,Lookup!S$3,FALSE)),"",VLOOKUP(CONCATENATE($A35,$A$4),Data!$A$2:$S$100,Lookup!S$3,FALSE)) -> 1753.888796 | S35: =IF(ISNA(VLOOKUP(CONCATENATE($A35,$A$4),Data!$A$2:$S$100,Lookup!T$3,FALSE)),"",VLOOKUP(CONCATENATE($A35,$A$4),Data!$A$2:$S$100,Lookup!T$3,FALSE)) -> 136.1842382
A36: 24 | B36: =IF(ISNA(VLOOKUP(CONCATENATE($A36,$A$4),Data!$A$2:$S$100,Lookup!C$3,FALSE)),"",VLOOKUP(CONCATENATE($A36,$A$4),Data!$A$2:$S$100,Lookup!C$3,FALSE)) -> Queen Margaret Hospital | C36: =IF(ISNA(VLOOKUP(CONCATENATE($A36,$A$4),Data!$A$2:$S$100,Lookup!D$3,FALSE)),"",VLOOKUP(CONCATENATE($A36,$A$4),Data!$A$2:$S$100,Lookup!D$3,FALSE)) -> F | D36: =IF(ISNA(VLOOKUP(CONCATENATE($A36,$A$4),Data!$A$2:$S$100,Lookup!E$3,FALSE)),"",VLOOKUP(CONCATENATE($A36,$A$4),Data!$A$2:$S$100,Lookup!E$3,FALSE)) -> A3 | E36: =IF(ISNA(VLOOKUP(CONCATENATE($A36,$A$4),Data!$A$2:$S$100,Lookup!F$3,FALSE)),"",VLOOKUP(CONCATENATE($A36,$A$4),Data!$A$2:$S$100,Lookup!F$3,FALSE)) -> 8 | F36: =IF(ISNA(VLOOKUP(CONCATENATE($A36,$A$4),Data!$A$2:$S$100,Lookup!G$3,FALSE)),"",VLOOKUP(CONCATENATE($A36,$A$4),Data!$A$2:$S$100,Lookup!G$3,FALSE)) -> 150.5769231 | G36: =IF(ISNA(VLOOKUP(CONCATENATE($A36,$A$4),Data!$A$2:$S$100,Lookup!H$3,FALSE)),"",VLOOKUP(CONCATENATE($A36,$A$4),Data!$A$2:$S$100,Lookup!H$3,FALSE)) -> 18.82211538 | H36: =IF(ISNA(VLOOKUP(CONCATENATE($A36,$A$4),Data!$A$2:$S$100,Lookup!I$3,FALSE)),"",VLOOKUP(CONCATENATE($A36,$A$4),Data!$A$2:$S$100,Lookup!I$3,FALSE)) -> 73.14216566 | I36: =IF(ISNA(VLOOKUP(CONCATENATE($A36,$A$4),Data!$A$2:$S$100,Lookup!J$3,FALSE)),"",VLOOKUP(CONCATENATE($A36,$A$4),Data!$A$2:$S$100,Lookup!J$3,FALSE)) -> 1023.016 | J36: =IF(ISNA(VLOOKUP(CONCATENATE($A36,$A$4),Data!$A$2:$S$100,Lookup!K$3,FALSE)),"",VLOOKUP(CONCATENATE($A36,$A$4),Data!$A$2:$S$100,Lookup!K$3,FALSE)) -> 1796.5 | K36: =IF(ISNA(VLOOKUP(CONCATENATE($A36,$A$4),Data!$A$2:$S$100,Lookup!L$3,FALSE)),"",VLOOKUP(CONCATENATE($A36,$A$4),Data!$A$2:$S$100,Lookup!L$3,FALSE)) -> 212.818 | L36: =IF(ISNA(VLOOKUP(CONCATENATE($A36,$A$4),Data!$A$2:$S$100,Lookup!M$3,FALSE)),"",VLOOKUP(CONCATENATE($A36,$A$4),Data!$A$2:$S$100,Lookup!M$3,FALSE)) -> 610.437 | M36: =IF(ISNA(VLOOKUP(CONCATENATE($A36,$A$4),Data!$A$2:$S$100,Lookup!N$3,FALSE)),"",VLOOKUP(CONCATENATE($A36,$A$4),Data!$A$2:$S$100,Lookup!N$3,FALSE)) -> 26.819 | N36: =IF(ISNA(VLOOKUP(CONCATENATE($A36,$A$4),Data!$A$2:$S$100,Lookup!O$3,FALSE)),"",VLOOKUP(CONCATENATE($A36,$A$4),Data!$A$2:$S$100,Lookup!O$3,FALSE)) -> 1355.728 | O36: =IF(ISNA(VLOOKUP(CONCATENATE($A36,$A$4),Data!$A$2:$S$100,Lookup!P$3,FALSE)),"",VLOOKUP(CONCATENATE($A36,$A$4),Data!$A$2:$S$100,Lookup!P$3,FALSE)) -> 285.584 | P36: =IF(ISNA(VLOOKUP(CONCATENATE($A36,$A$4),Data!$A$2:$S$100,Lookup!Q$3,FALSE)),"",VLOOKUP(CONCATENATE($A36,$A$4),Data!$A$2:$S$100,Lookup!Q$3,FALSE)) -> 5310.902 | Q36: =IF(ISNA(VLOOKUP(CONCATENATE($A36,$A$4),Data!$A$2:$S$100,Lookup!R$3,FALSE)),"",VLOOKUP(CONCATENATE($A36,$A$4),Data!$A$2:$S$100,Lookup!R$3,FALSE)) -> - | R36: =IF(ISNA(VLOOKUP(CONCATENATE($A36,$A$4),Data!$A$2:$S$100,Lookup!S$3,FALSE)),"",VLOOKUP(CONCATENATE($A36,$A$4),Data!$A$2:$S$100,Lookup!S$3,FALSE)) -> 678.2761175 | S36: =IF(ISNA(VLOOKUP(CONCATENATE($A36,$A$4),Data!$A$2:$S$100,Lookup!T$3,FALSE)),"",VLOOKUP(CONCATENATE($A36,$A$4),Data!$A$2:$S$100,Lookup!T$3,FALSE)) -> 52.66611916
A37: 25 | B37: =IF(ISNA(VLOOKUP(CONCATENATE($A37,$A$4),Data!$A$2:$S$100,Lookup!C$3,FALSE)),"",VLOOKUP(CONCATENATE($A37,$A$4),Data!$A$2:$S$100,Lookup!C$3,FALSE)) -> Dr. Gray's, Elgin | C37: =IF(ISNA(VLOOKUP(CONCATENATE($A37,$A$4),Data!$A$2:$S$100,Lookup!D$3,FALSE)),"",VLOOKUP(CONCATENATE($A37,$A$4),Data!$A$2:$S$100,Lookup!D$3,FALSE)) -> N | D37: =IF(ISNA(VLOOKUP(CONCATENATE($A37,$A$4),Data!$A$2:$S$100,Lookup!E$3,FALSE)),"",VLOOKUP(CONCATENATE($A37,$A$4),Data!$A$2:$S$100,Lookup!E$3,FALSE)) -> A3 | E37: =IF(ISNA(VLOOKUP(CONCATENATE($A37,$A$4),Data!$A$2:$S$100,Lookup!F$3,FALSE)),"",VLOOKUP(CONCATENATE($A37,$A$4),Data!$A$2:$S$100,Lookup!F$3,FALSE)) -> 5 | F37: =IF(ISNA(VLOOKUP(CONCATENATE($A37,$A$4),Data!$A$2:$S$100,Lookup!G$3,FALSE)),"",VLOOKUP(CONCATENATE($A37,$A$4),Data!$A$2:$S$100,Lookup!G$3,FALSE)) -> 133.1153846 | G37: =IF(ISNA(VLOOKUP(CONCATENATE($A37,$A$4),Data!$A$2:$S$100,Lookup!H$3,FALSE)),"",VLOOKUP(CONCATENATE($A37,$A$4),Data!$A$2:$S$100,Lookup!H$3,FALSE)) -> 26.62307692 | H37: =IF(ISNA(VLOOKUP(CONCATENATE($A37,$A$4),Data!$A$2:$S$100,Lookup!I$3,FALSE)),"",VLOOKUP(CONCATENATE($A37,$A$4),Data!$A$2:$S$100,Lookup!I$3,FALSE)) -> 103.456464 | I37: =IF(ISNA(VLOOKUP(CONCATENATE($A37,$A$4),Data!$A$2:$S$100,Lookup!J$3,FALSE)),"",VLOOKUP(CONCATENATE($A37,$A$4),Data!$A$2:$S$100,Lookup!J$3,FALSE)) -> 2153.191 | J37: =IF(ISNA(VLOOKUP(CONCATENATE($A37,$A$4),Data!$A$2:$S$100,Lookup!K$3,FALSE)),"",VLOOKUP(CONCATENATE($A37,$A$4),Data!$A$2:$S$100,Lookup!K$3,FALSE)) -> 2358.396 | K37: =IF(ISNA(VLOOKUP(CONCATENATE($A37,$A$4),Data!$A$2:$S$100,Lookup!L$3,FALSE)),"",VLOOKUP(CONCATENATE($A37,$A$4),Data!$A$2:$S$100,Lookup!L$3,FALSE)) -> -5.671 | L37: =IF(ISNA(VLOOKUP(CONCATENATE($A37,$A$4),Data!$A$2:$S$100,Lookup!M$3,FALSE)),"",VLOOKUP(CONCATENATE($A37,$A$4),Data!$A$2:$S$100,Lookup!M$3,FALSE)) -> 178.908 | M37: =IF(ISNA(VLOOKUP(CONCATENATE($A37,$A$4),Data!$A$2:$S$100,Lookup!N$3,FALSE)),"",VLOOKUP(CONCATENATE($A37,$A$4),Data!$A$2:$S$100,Lookup!N$3,FALSE)) -> 78.187 | N37: =IF(ISNA(VLOOKUP(CONCATENATE($A37,$A$4),Data!$A$2:$S$100,Lookup!O$3,FALSE)),"",VLOOKUP(CONCATENATE($A37,$A$4),Data!$A$2:$S$100,Lookup!O$3,FALSE)) -> 3037.516 | O37: =IF(ISNA(VLOOKUP(CONCATENATE($A37,$A$4),Data!$A$2:$S$100,Lookup!P$3,FALSE)),"",VLOOKUP(CONCATENATE($A37,$A$4),Data!$A$2:$S$100,Lookup!P$3,FALSE)) -> 1560.105 | P37: =IF(ISNA(VLOOKUP(CONCATENATE($A37,$A$4),Data!$A$2:$S$100,Lookup!Q$3,FALSE)),"",VLOOKUP(CONCATENATE($A37,$A$4),Data!$A$2:$S$100,Lookup!Q$3,FALSE)) -> 9360.632 | Q37: =IF(ISNA(VLOOKUP(CONCATENATE($A37,$A$4),Data!$A$2:$S$100,Lookup!R$3,FALSE)),"",VLOOKUP(CONCATENATE($A37,$A$4),Data!$A$2:$S$100,Lookup!R$3,FALSE)) -> - | R37: =IF(ISNA(VLOOKUP(CONCATENATE($A37,$A$4),Data!$A$2:$S$100,Lookup!S$3,FALSE)),"",VLOOKUP(CONCATENATE($A37,$A$4),Data!$A$2:$S$100,Lookup!S$3,FALSE)) -> 1352.301647 | S37: =IF(ISNA(VLOOKUP(CONCATENATE($A37,$A$4),Data!$A$2:$S$100,Lookup!T$3,FALSE)),"",VLOOKUP(CONCATENATE($A37,$A$4),Data!$A$2:$S$100,Lookup!T$3,FALSE)) -> 105.0021928
A38: 26 | B38: =IF(ISNA(VLOOKUP(CONCATENATE($A38,$A$4),Data!$A$2:$S$100,Lookup!C$3,FALSE)),"",VLOOKUP(CONCATENATE($A38,$A$4),Data!$A$2:$S$100,Lookup!C$3,FALSE)) -> Vale of Leven, Alexandria | C38: =IF(ISNA(VLOOKUP(CONCATENATE($A38,$A$4),Data!$A$2:$S$100,Lookup!D$3,FALSE)),"",VLOOKUP(CONCATENATE($A38,$A$4),Data!$A$2:$S$100,Lookup!D$3,FALSE)) -> G | D38: =IF(ISNA(VLOOKUP(CONCATENATE($A38,$A$4),Data!$A$2:$S$100,Lookup!E$3,FALSE)),"",VLOOKUP(CONCATENATE($A38,$A$4),Data!$A$2:$S$100,Lookup!E$3,FALSE)) -> A3 | E38: =IF(ISNA(VLOOKUP(CONCATENATE($A38,$A$4),Data!$A$2:$S$100,Lookup!F$3,FALSE)),"",VLOOKUP(CONCATENATE($A38,$A$4),Data!$A$2:$S$100,Lookup!F$3,FALSE)) -> 3 | F38: =IF(ISNA(VLOOKUP(CONCATENATE($A38,$A$4),Data!$A$2:$S$100,Lookup!G$3,FALSE)),"",VLOOKUP(CONCATENATE($A38,$A$4),Data!$A$2:$S$100,Lookup!G$3,FALSE)) -> 30.86538462 | G38: =IF(ISNA(VLOOKUP(CONCATENATE($A38,$A$4),Data!$A$2:$S$100,Lookup!H$3,FALSE)),"",VLOOKUP(CONCATENATE($A38,$A$4),Data!$A$2:$S$100,Lookup!H$3,FALSE)) -> 10.28846154 | H38: =IF(ISNA(VLOOKUP(CONCATENATE($A38,$A$4),Data!$A$2:$S$100,Lookup!I$3,FALSE)),"",VLOOKUP(CONCATENATE($A38,$A$4),Data!$A$2:$S$100,Lookup!I$3,FALSE)) -> 39.98064738 | I38: =IF(ISNA(VLOOKUP(CONCATENATE($A38,$A$4),Data!$A$2:$S$100,Lookup!J$3,FALSE)),"",VLOOKUP(CONCATENATE($A38,$A$4),Data!$A$2:$S$100,Lookup!J$3,FALSE)) -> 589.356 | J38: =IF(ISNA(VLOOKUP(CONCATENATE($A38,$A$4),Data!$A$2:$S$100,Lookup!K$3,FALSE)),"",VLOOKUP(CONCATENATE($A38,$A$4),Data!$A$2:$S$100,Lookup!K$3,FALSE)) -> 715.715 | K38: =IF(ISNA(VLOOKUP(CONCATENATE($A38,$A$4),Data!$A$2:$S$100,Lookup!L$3,FALSE)),"",VLOOKUP(CONCATENATE($A38,$A$4),Data!$A$2:$S$100,Lookup!L$3,FALSE)) -> - | L38: =IF(ISNA(VLOOKUP(CONCATENATE($A38,$A$4),Data!$A$2:$S$100,Lookup!M$3,FALSE)),"",VLOOKUP(CONCATENATE($A38,$A$4),Data!$A$2:$S$100,Lookup!M$3,FALSE)) -> 86.174 | M38: =IF(ISNA(VLOOKUP(CONCATENATE($A38,$A$4),Data!$A$2:$S$100,Lookup!N$3,FALSE)),"",VLOOKUP(CONCATENATE($A38,$A$4),Data!$A$2:$S$100,Lookup!N$3,FALSE)) -> 21.249 | N38: =IF(ISNA(VLOOKUP(CONCATENATE($A38,$A$4),Data!$A$2:$S$100,Lookup!O$3,FALSE)),"",VLOOKUP(CONCATENATE($A38,$A$4),Data!$A$2:$S$100,Lookup!O$3,FALSE)) -> 390.319 | O38: =IF(ISNA(VLOOKUP(CONCATENATE($A38,$A$4),Data!$A$2:$S$100,Lookup!P$3,FALSE)),"",VLOOKUP(CONCATENATE($A38,$A$4),Data!$A$2:$S$100,Lookup!P$3,FALSE)) -> 482.026 | P38: =IF(ISNA(VLOOKUP(CONCATENATE($A38,$A$4),Data!$A$2:$S$100,Lookup!Q$3,FALSE)),"",VLOOKUP(CONCATENATE($A38,$A$4),Data!$A$2:$S$100,Lookup!Q$3,FALSE)) -> 2284.839 | Q38: =IF(ISNA(VLOOKUP(CONCATENATE($A38,$A$4),Data!$A$2:$S$100,Lookup!R$3,FALSE)),"",VLOOKUP(CONCATENATE($A38,$A$4),Data!$A$2:$S$100,Lookup!R$3,FALSE)) -> - | R38: =IF(ISNA(VLOOKUP(CONCATENATE($A38,$A$4),Data!$A$2:$S$100,Lookup!S$3,FALSE)),"",VLOOKUP(CONCATENATE($A38,$A$4),Data!$A$2:$S$100,Lookup!S$3,FALSE)) -> 1423.575701 | S38: =IF(ISNA(VLOOKUP(CONCATENATE($A38,$A$4),Data!$A$2:$S$100,Lookup!T$3,FALSE)),"",VLOOKUP(CONCATENATE($A38,$A$4),Data!$A$2:$S$100,Lookup!T$3,FALSE)) -> 110.5364107
A39: 27 | B39: =IF(ISNA(VLOOKUP(CONCATENATE($A39,$A$4),Data!$A$2:$S$100,Lookup!C$3,FALSE)),"",VLOOKUP(CONCATENATE($A39,$A$4),Data!$A$2:$S$100,Lookup!C$3,FALSE)) -> Western Isles, Stornoway | C39: =IF(ISNA(VLOOKUP(CONCATENATE($A39,$A$4),Data!$A$2:$S$100,Lookup!D$3,FALSE)),"",VLOOKUP(CONCATENATE($A39,$A$4),Data!$A$2:$S$100,Lookup!D$3,FALSE)) -> W | D39: =IF(ISNA(VLOOKUP(CONCATENATE($A39,$A$4),Data!$A$2:$S$100,Lookup!E$3,FALSE)),"",VLOOKUP(CONCATENATE($A39,$A$4),Data!$A$2:$S$100,Lookup!E$3,FALSE)) -> A3 | E39: =IF(ISNA(VLOOKUP(CONCATENATE($A39,$A$4),Data!$A$2:$S$100,Lookup!F$3,FALSE)),"",VLOOKUP(CONCATENATE($A39,$A$4),Data!$A$2:$S$100,Lookup!F$3,FALSE)) -> 2 | F39: =IF(ISNA(VLOOKUP(CONCATENATE($A39,$A$4),Data!$A$2:$S$100,Lookup!G$3,FALSE)),"",VLOOKUP(CONCATENATE($A39,$A$4),Data!$A$2:$S$100,Lookup!G$3,FALSE)) -> 71.55769231 | G39: =IF(ISNA(VLOOKUP(CONCATENATE($A39,$A$4),Data!$A$2:$S$100,Lookup!H$3,FALSE)),"",VLOOKUP(CONCATENATE($A39,$A$4),Data!$A$2:$S$100,Lookup!H$3,FALSE)) -> 35.77884615 | H39: =IF(ISNA(VLOOKUP(CONCATENATE($A39,$A$4),Data!$A$2:$S$100,Lookup!I$3,FALSE)),"",VLOOKUP(CONCATENATE($A39,$A$4),Data!$A$2:$S$100,Lookup!I$3,FALSE)) -> 139.0355037 | I39: =IF(ISNA(VLOOKUP(CONCATENATE($A39,$A$4),Data!$A$2:$S$100,Lookup!J$3,FALSE)),"",VLOOKUP(CONCATENATE($A39,$A$4),Data!$A$2:$S$100,Lookup!J$3,FALSE)) -> - | J39: =IF(ISNA(VLOOKUP(CONCATENATE($A39,$A$4),Data!$A$2:$S$100,Lookup!K$3,FALSE)),"",VLOOKUP(CONCATENATE($A39,$A$4),Data!$A$2:$S$100,Lookup!K$3,FALSE)) -> 1001.81315 | K39: =IF(ISNA(VLOOKUP(CONCATENATE($A39,$A$4),Data!$A$2:$S$100,Lookup!L$3,FALSE)),"",VLOOKUP(CONCATENATE($A39,$A$4),Data!$A$2:$S$100,Lookup!L$3,FALSE)) -> 960.66582 | L39: =IF(ISNA(VLOOKUP(CONCATENATE($A39,$A$4),Data!$A$2:$S$100,Lookup!M$3,FALSE)),"",VLOOKUP(CONCATENATE($A39,$A$4),Data!$A$2:$S$100,Lookup!M$3,FALSE)) -> 17.65606 | M39: =IF(ISNA(VLOOKUP(CONCATENATE($A39,$A$4),Data!$A$2:$S$100,Lookup!N$3,FALSE)),"",VLOOKUP(CONCATENATE($A39,$A$4),Data!$A$2:$S$100,Lookup!N$3,FALSE)) -> - | N39: =IF(ISNA(VLOOKUP(CONCATENATE($A39,$A$4),Data!$A$2:$S$100,Lookup!O$3,FALSE)),"",VLOOKUP(CONCATENATE($A39,$A$4),Data!$A$2:$S$100,Lookup!O$3,FALSE)) -> 332.1969 | O39: =IF(ISNA(VLOOKUP(CONCATENATE($A39,$A$4),Data!$A$2:$S$100,Lookup!P$3,FALSE)),"",VLOOKUP(CONCATENATE($A39,$A$4),Data!$A$2:$S$100,Lookup!P$3,FALSE)) -> 925.229 | P39: =IF(ISNA(VLOOKUP(CONCATENATE($A39,$A$4),Data!$A$2:$S$100,Lookup!Q$3,FALSE)),"",VLOOKUP(CONCATENATE($A39,$A$4),Data!$A$2:$S$100,Lookup!Q$3,FALSE)) -> 3237.56093 | Q39: =IF(ISNA(VLOOKUP(CONCATENATE($A39,$A$4),Data!$A$2:$S$100,Lookup!R$3,FALSE)),"",VLOOKUP(CONCATENATE($A39,$A$4),Data!$A$2:$S$100,Lookup!R$3,FALSE)) -> - | R39: =IF(ISNA(VLOOKUP(CONCATENATE($A39,$A$4),Data!$A$2:$S$100,Lookup!S$3,FALSE)),"",VLOOKUP(CONCATENATE($A39,$A$4),Data!$A$2:$S$100,Lookup!S$3,FALSE)) -> 870.078186 | S39: =IF(ISNA(VLOOKUP(CONCATENATE($A39,$A$4),Data!$A$2:$S$100,Lookup!T$3,FALSE)),"",VLOOKUP(CONCATENATE($A39,$A$4),Data!$A$2:$S$100,Lookup!T$3,FALSE)) -> 67.55897818
A40: 28 | B40: =IF(ISNA(VLOOKUP(CONCATENATE($A40,$A$4),Data!$A$2:$S$100,Lookup!C$3,FALSE)),"",VLOOKUP(CONCATENATE($A40,$A$4),Data!$A$2:$S$100,Lookup!C$3,FALSE)) -> Stracathro | C40: =IF(ISNA(VLOOKUP(CONCATENATE($A40,$A$4),Data!$A$2:$S$100,Lookup!D$3,FALSE)),"",VLOOKUP(CONCATENATE($A40,$A$4),Data!$A$2:$S$100,Lookup!D$3,FALSE)) -> T | D40: =IF(ISNA(VLOOKUP(CONCATENATE($A40,$A$4),Data!$A$2:$S$100,Lookup!E$3,FALSE)),"",VLOOKUP(CONCATENATE($A40,$A$4),Data!$A$2:$S$100,Lookup!E$3,FALSE)) -> A3 | E40: =IF(ISNA(VLOOKUP(CONCATENATE($A40,$A$4),Data!$A$2:$S$100,Lookup!F$3,FALSE)),"",VLOOKUP(CONCATENATE($A40,$A$4),Data!$A$2:$S$100,Lookup!F$3,FALSE)) -> 4 | F40: =IF(ISNA(VLOOKUP(CONCATENATE($A40,$A$4),Data!$A$2:$S$100,Lookup!G$3,FALSE)),"",VLOOKUP(CONCATENATE($A40,$A$4),Data!$A$2:$S$100,Lookup!G$3,FALSE)) -> 100.9771154 | G40: =IF(ISNA(VLOOKUP(CONCATENATE($A40,$A$4),Data!$A$2:$S$100,Lookup!H$3,FALSE)),"",VLOOKUP(CONCATENATE($A40,$A$4),Data!$A$2:$S$100,Lookup!H$3,FALSE)) -> 25.24427885 | H40: =IF(ISNA(VLOOKUP(CONCATENATE($A40,$A$4),Data!$A$2:$S$100,Lookup!I$3,FALSE)),"",VLOOKUP(CONCATENATE($A40,$A$4),Data!$A$2:$S$100,Lookup!I$3,FALSE)) -> 98.09849677 | I40: =IF(ISNA(VLOOKUP(CONCATENATE($A40,$A$4),Data!$A$2:$S$100,Lookup!J$3,FALSE)),"",VLOOKUP(CONCATENATE($A40,$A$4),Data!$A$2:$S$100,Lookup!J$3,FALSE)) -> 1688.17114 | J40: =IF(ISNA(VLOOKUP(CONCATENATE($A40,$A$4),Data!$A$2:$S$100,Lookup!K$3,FALSE)),"",VLOOKUP(CONCATENATE($A40,$A$4),Data!$A$2:$S$100,Lookup!K$3,FALSE)) -> 1194.40569 | K40: =IF(ISNA(VLOOKUP(CONCATENATE($A40,$A$4),Data!$A$2:$S$100,Lookup!L$3,FALSE)),"",VLOOKUP(CONCATENATE($A40,$A$4),Data!$A$2:$S$100,Lookup!L$3,FALSE)) -> 84.97986 | L40: =IF(ISNA(VLOOKUP(CONCATENATE($A40,$A$4),Data!$A$2:$S$100,Lookup!M$3,FALSE)),"",VLOOKUP(CONCATENATE($A40,$A$4),Data!$A$2:$S$100,Lookup!M$3,FALSE)) -> 77.46992 | M40: =IF(ISNA(VLOOKUP(CONCATENATE($A40,$A$4),Data!$A$2:$S$100,Lookup!N$3,FALSE)),"",VLOOKUP(CONCATENATE($A40,$A$4),Data!$A$2:$S$100,Lookup!N$3,FALSE)) -> 261.01678 | N40: =IF(ISNA(VLOOKUP(CONCATENATE($A40,$A$4),Data!$A$2:$S$100,Lookup!O$3,FALSE)),"",VLOOKUP(CONCATENATE($A40,$A$4),Data!$A$2:$S$100,Lookup!O$3,FALSE)) -> 961.9314 | O40: =IF(ISNA(VLOOKUP(CONCATENATE($A40,$A$4),Data!$A$2:$S$100,Lookup!P$3,FALSE)),"",VLOOKUP(CONCATENATE($A40,$A$4),Data!$A$2:$S$100,Lookup!P$3,FALSE)) -> 3942.325 | P40: =IF(ISNA(VLOOKUP(CONCATENATE($A40,$A$4),Data!$A$2:$S$100,Lookup!Q$3,FALSE)),"",VLOOKUP(CONCATENATE($A40,$A$4),Data!$A$2:$S$100,Lookup!Q$3,FALSE)) -> 8210.29979 | Q40: =IF(ISNA(VLOOKUP(CONCATENATE($A40,$A$4),Data!$A$2:$S$100,Lookup!R$3,FALSE)),"",VLOOKUP(CONCATENATE($A40,$A$4),Data!$A$2:$S$100,Lookup!R$3,FALSE)) -> - | R40: =IF(ISNA(VLOOKUP(CONCATENATE($A40,$A$4),Data!$A$2:$S$100,Lookup!S$3,FALSE)),"",VLOOKUP(CONCATENATE($A40,$A$4),Data!$A$2:$S$100,Lookup!S$3,FALSE)) -> 1563.625382 | S40: =IF(ISNA(VLOOKUP(CONCATENATE($A40,$A$4),Data!$A$2:$S$100,Lookup!T$3,FALSE)),"",VLOOKUP(CONCATENATE($A40,$A$4),Data!$A$2:$S$100,Lookup!T$3,FALSE)) -> 121.410851
A41: 29 | B41: =IF(ISNA(VLOOKUP(CONCATENATE($A41,$A$4),Data!$A$2:$S$100,Lookup!C$3,FALSE)),"",VLOOKUP(CONCATENATE($A41,$A$4),Data!$A$2:$S$100,Lookup!C$3,FALSE)) -> Lorn & Islands District G.H. | C41: =IF(ISNA(VLOOKUP(CONCATENATE($A41,$A$4),Data!$A$2:$S$100,Lookup!D$3,FALSE)),"",VLOOKUP(CONCATENATE($A41,$A$4),Data!$A$2:$S$100,Lookup!D$3,FALSE)) -> H | D41: =IF(ISNA(VLOOKUP(CONCATENATE($A41,$A$4),Data!$A$2:$S$100,Lookup!E$3,FALSE)),"",VLOOKUP(CONCATENATE($A41,$A$4),Data!$A$2:$S$100,Lookup!E$3,FALSE)) -> A3 | E41: =IF(ISNA(VLOOKUP(CONCATENATE($A41,$A$4),Data!$A$2:$S$100,Lookup!F$3,FALSE)),"",VLOOKUP(CONCATENATE($A41,$A$4),Data!$A$2:$S$100,Lookup!F$3,FALSE)) -> 1 | F41: =IF(ISNA(VLOOKUP(CONCATENATE($A41,$A$4),Data!$A$2:$S$100,Lookup!G$3,FALSE)),"",VLOOKUP(CONCATENATE($A41,$A$4),Data!$A$2:$S$100,Lookup!G$3,FALSE)) -> 10.64038462 | G41: =IF(ISNA(VLOOKUP(CONCATENATE($A41,$A$4),Data!$A$2:$S$100,Lookup!H$3,FALSE)),"",VLOOKUP(CONCATENATE($A41,$A$4),Data!$A$2:$S$100,Lookup!H$3,FALSE)) -> 10.64038462 | H41: =IF(ISNA(VLOOKUP(CONCATENATE($A41,$A$4),Data!$A$2:$S$100,Lookup!I$3,FALSE)),"",VLOOKUP(CONCATENATE($A41,$A$4),Data!$A$2:$S$100,Lookup!I$3,FALSE)) -> 41.34820972 | I41: =IF(ISNA(VLOOKUP(CONCATENATE($A41,$A$4),Data!$A$2:$S$100,Lookup!J$3,FALSE)),"",VLOOKUP(CONCATENATE($A41,$A$4),Data!$A$2:$S$100,Lookup!J$3,FALSE)) -> 565.91922 | J41: =IF(ISNA(VLOOKUP(CONCATENATE($A41,$A$4),Data!$A$2:$S$100,Lookup!K$3,FALSE)),"",VLOOKUP(CONCATENATE($A41,$A$4),Data!$A$2:$S$100,Lookup!K$3,FALSE)) -> 597.35752 | K41: =IF(ISNA(VLOOKUP(CONCATENATE($A41,$A$4),Data!$A$2:$S$100,Lookup!L$3,FALSE)),"",VLOOKUP(CONCATENATE($A41,$A$4),Data!$A$2:$S$100,Lookup!L$3,FALSE)) -> 25.8718 | L41: =IF(ISNA(VLOOKUP(CONCATENATE($A41,$A$4),Data!$A$2:$S$100,Lookup!M$3,FALSE)),"",VLOOKUP(CONCATENATE($A41,$A$4),Data!$A$2:$S$100,Lookup!M$3,FALSE)) -> 89.60572 | M41: =IF(ISNA(VLOOKUP(CONCATENATE($A41,$A$4),Data!$A$2:$S$100,Lookup!N$3,FALSE)),"",VLOOKUP(CONCATENATE($A41,$A$4),Data!$A$2:$S$100,Lookup!N$3,FALSE)) -> 0.07966 | N41: =IF(ISNA(VLOOKUP(CONCATENATE($A41,$A$4),Data!$A$2:$S$100,Lookup!O$3,FALSE)),"",VLOOKUP(CONCATENATE($A41,$A$4),Data!$A$2:$S$100,Lookup!O$3,FALSE)) -> 127.31266 | O41: =IF(ISNA(VLOOKUP(CONCATENATE($A41,$A$4),Data!$A$2:$S$100,Lookup!P$3,FALSE)),"",VLOOKUP(CONCATENATE($A41,$A$4),Data!$A$2:$S$100,Lookup!P$3,FALSE)) -> 386.91165 | P41: =IF(ISNA(VLOOKUP(CONCATENATE($A41,$A$4),Data!$A$2:$S$100,Lookup!Q$3,FALSE)),"",VLOOKUP(CONCATENATE($A41,$A$4),Data!$A$2:$S$100,Lookup!Q$3,FALSE)) -> 1793.05823 | Q41: =IF(ISNA(VLOOKUP(CONCATENATE($A41,$A$4),Data!$A$2:$S$100,Lookup!R$3,FALSE)),"",VLOOKUP(CONCATENATE($A41,$A$4),Data!$A$2:$S$100,Lookup!R$3,FALSE)) -> - | R41: =IF(ISNA(VLOOKUP(CONCATENATE($A41,$A$4),Data!$A$2:$S$100,Lookup!S$3,FALSE)),"",VLOOKUP(CONCATENATE($A41,$A$4),Data!$A$2:$S$100,Lookup!S$3,FALSE)) -> 3240.661901 | S41: =IF(ISNA(VLOOKUP(CONCATENATE($A41,$A$4),Data!$A$2:$S$100,Lookup!T$3,FALSE)),"",VLOOKUP(CONCATENATE($A41,$A$4),Data!$A$2:$S$100,Lookup!T$3,FALSE)) -> 251.627739
A42: 30 | B42: =IF(ISNA(VLOOKUP(CONCATENATE($A42,$A$4),Data!$A$2:$S$100,Lookup!C$3,FALSE)),"",VLOOKUP(CONCATENATE($A42,$A$4),Data!$A$2:$S$100,Lookup!C$3,FALSE)) -> Balfour, Kirkwall | C42: =IF(ISNA(VLOOKUP(CONCATENATE($A42,$A$4),Data!$A$2:$S$100,Lookup!D$3,FALSE)),"",VLOOKUP(CONCATENATE($A42,$A$4),Data!$A$2:$S$100,Lookup!D$3,FALSE)) -> R | D42: =IF(ISNA(VLOOKUP(CONCATENATE($A42,$A$4),Data!$A$2:$S$100,Lookup!E$3,FALSE)),"",VLOOKUP(CONCATENATE($A42,$A$4),Data!$A$2:$S$100,Lookup!E$3,FALSE)) -> A3 | E42: =IF(ISNA(VLOOKUP(CONCATENATE($A42,$A$4),Data!$A$2:$S$100,Lookup!F$3,FALSE)),"",VLOOKUP(CONCATENATE($A42,$A$4),Data!$A$2:$S$100,Lookup!F$3,FALSE)) -> 1.79 | F42: =IF(ISNA(VLOOKUP(CONCATENATE($A42,$A$4),Data!$A$2:$S$100,Lookup!G$3,FALSE)),"",VLOOKUP(CONCATENATE($A42,$A$4),Data!$A$2:$S$100,Lookup!G$3,FALSE)) -> 40.21346154 | G42: =IF(ISNA(VLOOKUP(CONCATENATE($A42,$A$4),Data!$A$2:$S$100,Lookup!H$3,FALSE)),"",VLOOKUP(CONCATENATE($A42,$A$4),Data!$A$2:$S$100,Lookup!H$3,FALSE)) -> 22.46562097 | H42: =IF(ISNA(VLOOKUP(CONCATENATE($A42,$A$4),Data!$A$2:$S$100,Lookup!I$3,FALSE)),"",VLOOKUP(CONCATENATE($A42,$A$4),Data!$A$2:$S$100,Lookup!I$3,FALSE)) -> 87.30071711 | I42: =IF(ISNA(VLOOKUP(CONCATENATE($A42,$A$4),Data!$A$2:$S$100,Lookup!J$3,FALSE)),"",VLOOKUP(CONCATENATE($A42,$A$4),Data!$A$2:$S$100,Lookup!J$3,FALSE)) -> 928.63031 | J42: =IF(ISNA(VLOOKUP(CONCATENATE($A42,$A$4),Data!$A$2:$S$100,Lookup!K$3,FALSE)),"",VLOOKUP(CONCATENATE($A42,$A$4),Data!$A$2:$S$100,Lookup!K$3,FALSE)) -> 599.07612 | K42: =IF(ISNA(VLOOKUP(CONCATENATE($A42,$A$4),Data!$A$2:$S$100,Lookup!L$3,FALSE)),"",VLOOKUP(CONCATENATE($A42,$A$4),Data!$A$2:$S$100,Lookup!L$3,FALSE)) -> 0.3029 | L42: =IF(ISNA(VLOOKUP(CONCATENATE($A42,$A$4),Data!$A$2:$S$100,Lookup!M$3,FALSE)),"",VLOOKUP(CONCATENATE($A42,$A$4),Data!$A$2:$S$100,Lookup!M$3,FALSE)) -> 0.75499 | M42: =IF(ISNA(VLOOKUP(CONCATENATE($A42,$A$4),Data!$A$2:$S$100,Lookup!N$3,FALSE)),"",VLOOKUP(CONCATENATE($A42,$A$4),Data!$A$2:$S$100,Lookup!N$3,FALSE)) -> 143.82139 | N42: =IF(ISNA(VLOOKUP(CONCATENATE($A42,$A$4),Data!$A$2:$S$100,Lookup!O$3,FALSE)),"",VLOOKUP(CONCATENATE($A42,$A$4),Data!$A$2:$S$100,Lookup!O$3,FALSE)) -> 119.85944 | O42: =IF(ISNA(VLOOKUP(CONCATENATE($A42,$A$4),Data!$A$2:$S$100,Lookup!P$3,FALSE)),"",VLOOKUP(CONCATENATE($A42,$A$4),Data!$A$2:$S$100,Lookup!P$3,FALSE)) -> 591.5069 | P42: =IF(ISNA(VLOOKUP(CONCATENATE($A42,$A$4),Data!$A$2:$S$100,Lookup!Q$3,FALSE)),"",VLOOKUP(CONCATENATE($A42,$A$4),Data!$A$2:$S$100,Lookup!Q$3,FALSE)) -> 2383.95205 | Q42: =IF(ISNA(VLOOKUP(CONCATENATE($A42,$A$4),Data!$A$2:$S$100,Lookup!R$3,FALSE)),"",VLOOKUP(CONCATENATE($A42,$A$4),Data!$A$2:$S$100,Lookup!R$3,FALSE)) -> - | R42: =IF(ISNA(VLOOKUP(CONCATENATE($A42,$A$4),Data!$A$2:$S$100,Lookup!S$3,FALSE)),"",VLOOKUP(CONCATENATE($A42,$A$4),Data!$A$2:$S$100,Lookup!S$3,FALSE)) -> 1140.046889 | S42: =IF(ISNA(VLOOKUP(CONCATENATE($A42,$A$4),Data!$A$2:$S$100,Lookup!T$3,FALSE)),"",VLOOKUP(CONCATENATE($A42,$A$4),Data!$A$2:$S$100,Lookup!T$3,FALSE)) -> 88.52124344
A43: 31 | B43: =IF(ISNA(VLOOKUP(CONCATENATE($A43,$A$4),Data!$A$2:$S$100,Lookup!C$3,FALSE)),"",VLOOKUP(CONCATENATE($A43,$A$4),Data!$A$2:$S$100,Lookup!C$3,FALSE)) -> Gilbert Bain, Lerwick | C43: =IF(ISNA(VLOOKUP(CONCATENATE($A43,$A$4),Data!$A$2:$S$100,Lookup!D$3,FALSE)),"",VLOOKUP(CONCATENATE($A43,$A$4),Data!$A$2:$S$100,Lookup!D$3,FALSE)) -> Z | D43: =IF(ISNA(VLOOKUP(CONCATENATE($A43,$A$4),Data!$A$2:$S$100,Lookup!E$3,FALSE)),"",VLOOKUP(CONCATENATE($A43,$A$4),Data!$A$2:$S$100,Lookup!E$3,FALSE)) -> A3 | E43: =IF(ISNA(VLOOKUP(CONCATENATE($A43,$A$4),Data!$A$2:$S$100,Lookup!F$3,FALSE)),"",VLOOKUP(CONCATENATE($A43,$A$4),Data!$A$2:$S$100,Lookup!F$3,FALSE)) -> 2 | F43: =IF(ISNA(VLOOKUP(CONCATENATE($A43,$A$4),Data!$A$2:$S$100,Lookup!G$3,FALSE)),"",VLOOKUP(CONCATENATE($A43,$A$4),Data!$A$2:$S$100,Lookup!G$3,FALSE)) -> 19.71153846 | G43: =IF(ISNA(VLOOKUP(CONCATENATE($A43,$A$4),Data!$A$2:$S$100,Lookup!H$3,FALSE)),"",VLOOKUP(CONCATENATE($A43,$A$4),Data!$A$2:$S$100,Lookup!H$3,FALSE)) -> 9.855769231 | H43: =IF(ISNA(VLOOKUP(CONCATENATE($A43,$A$4),Data!$A$2:$S$100,Lookup!I$3,FALSE)),"",VLOOKUP(CONCATENATE($A43,$A$4),Data!$A$2:$S$100,Lookup!I$3,FALSE)) -> 38.29921829 | I43: =IF(ISNA(VLOOKUP(CONCATENATE($A43,$A$4),Data!$A$2:$S$100,Lookup!J$3,FALSE)),"",VLOOKUP(CONCATENATE($A43,$A$4),Data!$A$2:$S$100,Lookup!J$3,FALSE)) -> 724.809 | J43: =IF(ISNA(VLOOKUP(CONCATENATE($A43,$A$4),Data!$A$2:$S$100,Lookup!K$3,FALSE)),"",VLOOKUP(CONCATENATE($A43,$A$4),Data!$A$2:$S$100,Lookup!K$3,FALSE)) -> 121.13 | K43: =IF(ISNA(VLOOKUP(CONCATENATE($A43,$A$4),Data!$A$2:$S$100,Lookup!L$3,FALSE)),"",VLOOKUP(CONCATENATE($A43,$A$4),Data!$A$2:$S$100,Lookup!L$3,FALSE)) -> 850.012 | L43: =IF(ISNA(VLOOKUP(CONCATENATE($A43,$A$4),Data!$A$2:$S$100,Lookup!M$3,FALSE)),"",VLOOKUP(CONCATENATE($A43,$A$4),Data!$A$2:$S$100,Lookup!M$3,FALSE)) -> 18.073 | M43: =IF(ISNA(VLOOKUP(CONCATENATE($A43,$A$4),Data!$A$2:$S$100,Lookup!N$3,FALSE)),"",VLOOKUP(CONCATENATE($A43,$A$4),Data!$A$2:$S$100,Lookup!N$3,FALSE)) -> 0.512 | N43: =IF(ISNA(VLOOKUP(CONCATENATE($A43,$A$4),Data!$A$2:$S$100,Lookup!O$3,FALSE)),"",VLOOKUP(CONCATENATE($A43,$A$4),Data!$A$2:$S$100,Lookup!O$3,FALSE)) -> 245.744 | O43: =IF(ISNA(VLOOKUP(CONCATENATE($A43,$A$4),Data!$A$2:$S$100,Lookup!P$3,FALSE)),"",VLOOKUP(CONCATENATE($A43,$A$4),Data!$A$2:$S$100,Lookup!P$3,FALSE)) -> 1193.368 | P43: =IF(ISNA(VLOOKUP(CONCATENATE($A43,$A$4),Data!$A$2:$S$100,Lookup!Q$3,FALSE)),"",VLOOKUP(CONCATENATE($A43,$A$4),Data!$A$2:$S$100,Lookup!Q$3,FALSE)) -> 3153.648 | Q43: =IF(ISNA(VLOOKUP(CONCATENATE($A43,$A$4),Data!$A$2:$S$100,Lookup!R$3,FALSE)),"",VLOOKUP(CONCATENATE($A43,$A$4),Data!$A$2:$S$100,Lookup!R$3,FALSE)) -> 16.3 | R43: =IF(ISNA(VLOOKUP(CONCATENATE($A43,$A$4),Data!$A$2:$S$100,Lookup!S$3,FALSE)),"",VLOOKUP(CONCATENATE($A43,$A$4),Data!$A$2:$S$100,Lookup!S$3,FALSE)) -> 3076.729756 | S43: =IF(ISNA(VLOOKUP(CONCATENATE($A43,$A$4),Data!$A$2:$S$100,Lookup!T$3,FALSE)),"",VLOOKUP(CONCATENATE($A43,$A$4),Data!$A$2:$S$100,Lookup!T$3,FALSE)) -> 238.8988964
A44: 32 | B44: =IF(ISNA(VLOOKUP(CONCATENATE($A44,$A$4),Data!$A$2:$S$100,Lookup!C$3,FALSE)),"",VLOOKUP(CONCATENATE($A44,$A$4),Data!$A$2:$S$100,Lookup!C$3,FALSE)) -> Galloway Community Hospital | C44: =IF(ISNA(VLOOKUP(CONCATENATE($A44,$A$4),Data!$A$2:$S$100,Lookup!D$3,FALSE)),"",VLOOKUP(CONCATENATE($A44,$A$4),Data!$A$2:$S$100,Lookup!D$3,FALSE)) -> Y | D44: =IF(ISNA(VLOOKUP(CONCATENATE($A44,$A$4),Data!$A$2:$S$100,Lookup!E$3,FALSE)),"",VLOOKUP(CONCATENATE($A44,$A$4),Data!$A$2:$S$100,Lookup!E$3,FALSE)) -> A3 | E44: =IF(ISNA(VLOOKUP(CONCATENATE($A44,$A$4),Data!$A$2:$S$100,Lookup!F$3,FALSE)),"",VLOOKUP(CONCATENATE($A44,$A$4),Data!$A$2:$S$100,Lookup!F$3,FALSE)) -> 1 | F44: =IF(ISNA(VLOOKUP(CONCATENATE($A44,$A$4),Data!$A$2:$S$100,Lookup!G$3,FALSE)),"",VLOOKUP(CONCATENATE($A44,$A$4),Data!$A$2:$S$100,Lookup!G$3,FALSE)) -> 9.711538462 | G44: =IF(ISNA(VLOOKUP(CONCATENATE($A44,$A$4),Data!$A$2:$S$100,Lookup!H$3,FALSE)),"",VLOOKUP(CONCATENATE($A44,$A$4),Data!$A$2:$S$100,Lookup!H$3,FALSE)) -> 9.711538462 | H44: =IF(ISNA(VLOOKUP(CONCATENATE($A44,$A$4),Data!$A$2:$S$100,Lookup!I$3,FALSE)),"",VLOOKUP(CONCATENATE($A44,$A$4),Data!$A$2:$S$100,Lookup!I$3,FALSE)) -> 37.73874192 | I44: =IF(ISNA(VLOOKUP(CONCATENATE($A44,$A$4),Data!$A$2:$S$100,Lookup!J$3,FALSE)),"",VLOOKUP(CONCATENATE($A44,$A$4),Data!$A$2:$S$100,Lookup!J$3,FALSE)) -> 728.797 | J44: =IF(ISNA(VLOOKUP(CONCATENATE($A44,$A$4),Data!$A$2:$S$100,Lookup!K$3,FALSE)),"",VLOOKUP(CONCATENATE($A44,$A$4),Data!$A$2:$S$100,Lookup!K$3,FALSE)) -> 537.284 | K44: =IF(ISNA(VLOOKUP(CONCATENATE($A44,$A$4),Data!$A$2:$S$100,Lookup!L$3,FALSE)),"",VLOOKUP(CONCATENATE($A44,$A$4),Data!$A$2:$S$100,Lookup!L$3,FALSE)) -> - | L44: =IF(ISNA(VLOOKUP(CONCATENATE($A44,$A$4),Data!$A$2:$S$100,Lookup!M$3,FALSE)),"",VLOOKUP(CONCATENATE($A44,$A$4),Data!$A$2:$S$100,Lookup!M$3,FALSE)) -> 17.139 | M44: =IF(ISNA(VLOOKUP(CONCATENATE($A44,$A$4),Data!$A$2:$S$100,Lookup!N$3,FALSE)),"",VLOOKUP(CONCATENATE($A44,$A$4),Data!$A$2:$S$100,Lookup!N$3,FALSE)) -> 3.838 | N44: =IF(ISNA(VLOOKUP(CONCATENATE($A44,$A$4),Data!$A$2:$S$100,Lookup!O$3,FALSE)),"",VLOOKUP(CONCATENATE($A44,$A$4),Data!$A$2:$S$100,Lookup!O$3,FALSE)) -> 98.079 | O44: =IF(ISNA(VLOOKUP(CONCATENATE($A44,$A$4),Data!$A$2:$S$100,Lookup!P$3,FALSE)),"",VLOOKUP(CONCATENATE($A44,$A$4),Data!$A$2:$S$100,Lookup!P$3,FALSE)) -> 361.891 | P44: =IF(ISNA(VLOOKUP(CONCATENATE($A44,$A$4),Data!$A$2:$S$100,Lookup!Q$3,FALSE)),"",VLOOKUP(CONCATENATE($A44,$A$4),Data!$A$2:$S$100,Lookup!Q$3,FALSE)) -> 1747.028 | Q44: =IF(ISNA(VLOOKUP(CONCATENATE($A44,$A$4),Data!$A$2:$S$100,Lookup!R$3,FALSE)),"",VLOOKUP(CONCATENATE($A44,$A$4),Data!$A$2:$S$100,Lookup!R$3,FALSE)) -> - | R44: =IF(ISNA(VLOOKUP(CONCATENATE($A44,$A$4),Data!$A$2:$S$100,Lookup!S$3,FALSE)),"",VLOOKUP(CONCATENATE($A44,$A$4),Data!$A$2:$S$100,Lookup!S$3,FALSE)) -> 3459.461386 | S44: =IF(ISNA(VLOOKUP(CONCATENATE($A44,$A$4),Data!$A$2:$S$100,Lookup!T$3,FALSE)),"",VLOOKUP(CONCATENATE($A44,$A$4),Data!$A$2:$S$100,Lookup!T$3,FALSE)) -> 268.6168669
A45: 33 | B45: =IF(ISNA(VLOOKUP(CONCATENATE($A45,$A$4),Data!$A$2:$S$100,Lookup!C$3,FALSE)),"",VLOOKUP(CONCATENATE($A45,$A$4),Data!$A$2:$S$100,Lookup!C$3,FALSE)) -> Caithness General | C45: =IF(ISNA(VLOOKUP(CONCATENATE($A45,$A$4),Data!$A$2:$S$100,Lookup!D$3,FALSE)),"",VLOOKUP(CONCATENATE($A45,$A$4),Data!$A$2:$S$100,Lookup!D$3,FALSE)) -> H | D45: =IF(ISNA(VLOOKUP(CONCATENATE($A45,$A$4),Data!$A$2:$S$100,Lookup!E$3,FALSE)),"",VLOOKUP(CONCATENATE($A45,$A$4),Data!$A$2:$S$100,Lookup!E$3,FALSE)) -> A3 | E45: =IF(ISNA(VLOOKUP(CONCATENATE($A45,$A$4),Data!$A$2:$S$100,Lookup!F$3,FALSE)),"",VLOOKUP(CONCATENATE($A45,$A$4),Data!$A$2:$S$100,Lookup!F$3,FALSE)) -> 2 | F45: =IF(ISNA(VLOOKUP(CONCATENATE($A45,$A$4),Data!$A$2:$S$100,Lookup!G$3,FALSE)),"",VLOOKUP(CONCATENATE($A45,$A$4),Data!$A$2:$S$100,Lookup!G$3,FALSE)) -> 14.26884615 | G45: =IF(ISNA(VLOOKUP(CONCATENATE($A45,$A$4),Data!$A$2:$S$100,Lookup!H$3,FALSE)),"",VLOOKUP(CONCATENATE($A45,$A$4),Data!$A$2:$S$100,Lookup!H$3,FALSE)) -> 7.134423077 | H45: =IF(ISNA(VLOOKUP(CONCATENATE($A45,$A$4),Data!$A$2:$S$100,Lookup!I$3,FALSE)),"",VLOOKUP(CONCATENATE($A45,$A$4),Data!$A$2:$S$100,Lookup!I$3,FALSE)) -> 27.72415023 | I45: =IF(ISNA(VLOOKUP(CONCATENATE($A45,$A$4),Data!$A$2:$S$100,Lookup!J$3,FALSE)),"",VLOOKUP(CONCATENATE($A45,$A$4),Data!$A$2:$S$100,Lookup!J$3,FALSE)) -> 382.87515 | J45: =IF(ISNA(VLOOKUP(CONCATENATE($A45,$A$4),Data!$A$2:$S$100,Lookup!K$3,FALSE)),"",VLOOKUP(CONCATENATE($A45,$A$4),Data!$A$2:$S$100,Lookup!K$3,FALSE)) -> 433.28955 | K45: =IF(ISNA(VLOOKUP(CONCATENATE($A45,$A$4),Data!$A$2:$S$100,Lookup!L$3,FALSE)),"",VLOOKUP(CONCATENATE($A45,$A$4),Data!$A$2:$S$100,Lookup!L$3,FALSE)) -> - | L45: =IF(ISNA(VLOOKUP(CONCATENATE($A45,$A$4),Data!$A$2:$S$100,Lookup!M$3,FALSE)),"",VLOOKUP(CONCATENATE($A45,$A$4),Data!$A$2:$S$100,Lookup!M$3,FALSE)) -> 40.65006 | M45: =IF(ISNA(VLOOKUP(CONCATENATE($A45,$A$4),Data!$A$2:$S$100,Lookup!N$3,FALSE)),"",VLOOKUP(CONCATENATE($A45,$A$4),Data!$A$2:$S$100,Lookup!N$3,FALSE)) -> 0.84687 | N45: =IF(ISNA(VLOOKUP(CONCATENATE($A45,$A$4),Data!$A$2:$S$100,Lookup!O$3,FALSE)),"",VLOOKUP(CONCATENATE($A45,$A$4),Data!$A$2:$S$100,Lookup!O$3,FALSE)) -> 203.50849 | O45: =IF(ISNA(VLOOKUP(CONCATENATE($A45,$A$4),Data!$A$2:$S$100,Lookup!P$3,FALSE)),"",VLOOKUP(CONCATENATE($A45,$A$4),Data!$A$2:$S$100,Lookup!P$3,FALSE)) -> 379.89562 | P45: =IF(ISNA(VLOOKUP(CONCATENATE($A45,$A$4),Data!$A$2:$S$100,Lookup!Q$3,FALSE)),"",VLOOKUP(CONCATENATE($A45,$A$4),Data!$A$2:$S$100,Lookup!Q$3,FALSE)) -> 1441.06574 | Q45: =IF(ISNA(VLOOKUP(CONCATENATE($A45,$A$4),Data!$A$2:$S$100,Lookup!R$3,FALSE)),"",VLOOKUP(CONCATENATE($A45,$A$4),Data!$A$2:$S$100,Lookup!R$3,FALSE)) -> - | R45: =IF(ISNA(VLOOKUP(CONCATENATE($A45,$A$4),Data!$A$2:$S$100,Lookup!S$3,FALSE)),"",VLOOKUP(CONCATENATE($A45,$A$4),Data!$A$2:$S$100,Lookup!S$3,FALSE)) -> 1942.189466 | S45: =IF(ISNA(VLOOKUP(CONCATENATE($A45,$A$4),Data!$A$2:$S$100,Lookup!T$3,FALSE)),"",VLOOKUP(CONCATENATE($A45,$A$4),Data!$A$2:$S$100,Lookup!T$3,FALSE)) -> 150.805224
A46: 34 | B46: =IF(ISNA(VLOOKUP(CONCATENATE($A46,$A$4),Data!$A$2:$S$100,Lookup!C$3,FALSE)),"",VLOOKUP(CONCATENATE($A46,$A$4),Data!$A$2:$S$100,Lookup!C$3,FALSE)) -> Belford | C46: =IF(ISNA(VLOOKUP(CONCATENATE($A46,$A$4),Data!$A$2:$S$100,Lookup!D$3,FALSE)),"",VLOOKUP(CONCATENATE($A46,$A$4),Data!$A$2:$S$100,Lookup!D$3,FALSE)) -> H | D46: =IF(ISNA(VLOOKUP(CONCATENATE($A46,$A$4),Data!$A$2:$S$100,Lookup!E$3,FALSE)),"",VLOOKUP(CONCATENATE($A46,$A$4),Data!$A$2:$S$100,Lookup!E$3,FALSE)) -> A3 | E46: =IF(ISNA(VLOOKUP(CONCATENATE($A46,$A$4),Data!$A$2:$S$100,Lookup!F$3,FALSE)),"",VLOOKUP(CONCATENATE($A46,$A$4),Data!$A$2:$S$100,Lookup!F$3,FALSE)) -> 1 | F46: =IF(ISNA(VLOOKUP(CONCATENATE($A46,$A$4),Data!$A$2:$S$100,Lookup!G$3,FALSE)),"",VLOOKUP(CONCATENATE($A46,$A$4),Data!$A$2:$S$100,Lookup!G$3,FALSE)) -> 12.48403846 | G46: =IF(ISNA(VLOOKUP(CONCATENATE($A46,$A$4),Data!$A$2:$S$100,Lookup!H$3,FALSE)),"",VLOOKUP(CONCATENATE($A46,$A$4),Data!$A$2:$S$100,Lookup!H$3,FALSE)) -> 12.48403846 | H46: =IF(ISNA(VLOOKUP(CONCATENATE($A46,$A$4),Data!$A$2:$S$100,Lookup!I$3,FALSE)),"",VLOOKUP(CONCATENATE($A46,$A$4),Data!$A$2:$S$100,Lookup!I$3,FALSE)) -> 48.51259227 | I46: =IF(ISNA(VLOOKUP(CONCATENATE($A46,$A$4),Data!$A$2:$S$100,Lookup!J$3,FALSE)),"",VLOOKUP(CONCATENATE($A46,$A$4),Data!$A$2:$S$100,Lookup!J$3,FALSE)) -> 540.88852 | J46: =IF(ISNA(VLOOKUP(CONCATENATE($A46,$A$4),Data!$A$2:$S$100,Lookup!K$3,FALSE)),"",VLOOKUP(CONCATENATE($A46,$A$4),Data!$A$2:$S$100,Lookup!K$3,FALSE)) -> 393.59438 | K46: =IF(ISNA(VLOOKUP(CONCATENATE($A46,$A$4),Data!$A$2:$S$100,Lookup!L$3,FALSE)),"",VLOOKUP(CONCATENATE($A46,$A$4),Data!$A$2:$S$100,Lookup!L$3,FALSE)) -> 131.9005 | L46: =IF(ISNA(VLOOKUP(CONCATENATE($A46,$A$4),Data!$A$2:$S$100,Lookup!M$3,FALSE)),"",VLOOKUP(CONCATENATE($A46,$A$4),Data!$A$2:$S$100,Lookup!M$3,FALSE)) -> 33.05395 | M46: =IF(ISNA(VLOOKUP(CONCATENATE($A46,$A$4),Data!$A$2:$S$100,Lookup!N$3,FALSE)),"",VLOOKUP(CONCATENATE($A46,$A$4),Data!$A$2:$S$100,Lookup!N$3,FALSE)) -> 0.34552 | N46: =IF(ISNA(VLOOKUP(CONCATENATE($A46,$A$4),Data!$A$2:$S$100,Lookup!O$3,FALSE)),"",VLOOKUP(CONCATENATE($A46,$A$4),Data!$A$2:$S$100,Lookup!O$3,FALSE)) -> 196.43011 | O46: =IF(ISNA(VLOOKUP(CONCATENATE($A46,$A$4),Data!$A$2:$S$100,Lookup!P$3,FALSE)),"",VLOOKUP(CONCATENATE($A46,$A$4),Data!$A$2:$S$100,Lookup!P$3,FALSE)) -> 420.233 | P46: =IF(ISNA(VLOOKUP(CONCATENATE($A46,$A$4),Data!$A$2:$S$100,Lookup!Q$3,FALSE)),"",VLOOKUP(CONCATENATE($A46,$A$4),Data!$A$2:$S$100,Lookup!Q$3,FALSE)) -> 1716.44598 | Q46: =IF(ISNA(VLOOKUP(CONCATENATE($A46,$A$4),Data!$A$2:$S$100,Lookup!R$3,FALSE)),"",VLOOKUP(CONCATENATE($A46,$A$4),Data!$A$2:$S$100,Lookup!R$3,FALSE)) -> - | R46: =IF(ISNA(VLOOKUP(CONCATENATE($A46,$A$4),Data!$A$2:$S$100,Lookup!S$3,FALSE)),"",VLOOKUP(CONCATENATE($A46,$A$4),Data!$A$2:$S$100,Lookup!S$3,FALSE)) -> 2644.062387 | S46: =IF(ISNA(VLOOKUP(CONCATENATE($A46,$A$4),Data!$A$2:$S$100,Lookup!T$3,FALSE)),"",VLOOKUP(CONCATENATE($A46,$A$4),Data!$A$2:$S$100,Lookup!T$3,FALSE)) -> 205.3035647
A47: 35 | B47: =IF(ISNA(VLOOKUP(CONCATENATE($A47,$A$4),Data!$A$2:$S$100,Lookup!C$3,FALSE)),"",VLOOKUP(CONCATENATE($A47,$A$4),Data!$A$2:$S$100,Lookup!C$3,FALSE)) -> Royal Hospital For Children, Glasgow | C47: =IF(ISNA(VLOOKUP(CONCATENATE($A47,$A$4),Data!$A$2:$S$100,Lookup!D$3,FALSE)),"",VLOOKUP(CONCATENATE($A47,$A$4),Data!$A$2:$S$100,Lookup!D$3,FALSE)) -> G | D47: =IF(ISNA(VLOOKUP(CONCATENATE($A47,$A$4),Data!$A$2:$S$100,Lookup!E$3,FALSE)),"",VLOOKUP(CONCATENATE($A47,$A$4),Data!$A$2:$S$100,Lookup!E$3,FALSE)) -> A4 | E47: =IF(ISNA(VLOOKUP(CONCATENATE($A47,$A$4),Data!$A$2:$S$100,Lookup!F$3,FALSE)),"",VLOOKUP(CONCATENATE($A47,$A$4),Data!$A$2:$S$100,Lookup!F$3,FALSE)) -> 9 | F47: =IF(ISNA(VLOOKUP(CONCATENATE($A47,$A$4),Data!$A$2:$S$100,Lookup!G$3,FALSE)),"",VLOOKUP(CONCATENATE($A47,$A$4),Data!$A$2:$S$100,Lookup!G$3,FALSE)) -> 267.3461538 | G47: =IF(ISNA(VLOOKUP(CONCATENATE($A47,$A$4),Data!$A$2:$S$100,Lookup!H$3,FALSE)),"",VLOOKUP(CONCATENATE($A47,$A$4),Data!$A$2:$S$100,Lookup!H$3,FALSE)) -> 29.70512821 | H47: =IF(ISNA(VLOOKUP(CONCATENATE($A47,$A$4),Data!$A$2:$S$100,Lookup!I$3,FALSE)),"",VLOOKUP(CONCATENATE($A47,$A$4),Data!$A$2:$S$100,Lookup!I$3,FALSE)) -> 115.4332212 | I47: =IF(ISNA(VLOOKUP(CONCATENATE($A47,$A$4),Data!$A$2:$S$100,Lookup!J$3,FALSE)),"",VLOOKUP(CONCATENATE($A47,$A$4),Data!$A$2:$S$100,Lookup!J$3,FALSE)) -> 3374.421 | J47: =IF(ISNA(VLOOKUP(CONCATENATE($A47,$A$4),Data!$A$2:$S$100,Lookup!K$3,FALSE)),"",VLOOKUP(CONCATENATE($A47,$A$4),Data!$A$2:$S$100,Lookup!K$3,FALSE)) -> 5015.927 | K47: =IF(ISNA(VLOOKUP(CONCATENATE($A47,$A$4),Data!$A$2:$S$100,Lookup!L$3,FALSE)),"",VLOOKUP(CONCATENATE($A47,$A$4),Data!$A$2:$S$100,Lookup!L$3,FALSE)) -> 602.224 | L47: =IF(ISNA(VLOOKUP(CONCATENATE($A47,$A$4),Data!$A$2:$S$100,Lookup!M$3,FALSE)),"",VLOOKUP(CONCATENATE($A47,$A$4),Data!$A$2:$S$100,Lookup!M$3,FALSE)) -> 520.124 | M47: =IF(ISNA(VLOOKUP(CONCATENATE($A47,$A$4),Data!$A$2:$S$100,Lookup!N$3,FALSE)),"",VLOOKUP(CONCATENATE($A47,$A$4),Data!$A$2:$S$100,Lookup!N$3,FALSE)) -> 2.417 | N47: =IF(ISNA(VLOOKUP(CONCATENATE($A47,$A$4),Data!$A$2:$S$100,Lookup!O$3,FALSE)),"",VLOOKUP(CONCATENATE($A47,$A$4),Data!$A$2:$S$100,Lookup!O$3,FALSE)) -> 3246.955 | O47: =IF(ISNA(VLOOKUP(CONCATENATE($A47,$A$4),Data!$A$2:$S$100,Lookup!P$3,FALSE)),"",VLOOKUP(CONCATENATE($A47,$A$4),Data!$A$2:$S$100,Lookup!P$3,FALSE)) -> 3697.132 | P47: =IF(ISNA(VLOOKUP(CONCATENATE($A47,$A$4),Data!$A$2:$S$100,Lookup!Q$3,FALSE)),"",VLOOKUP(CONCATENATE($A47,$A$4),Data!$A$2:$S$100,Lookup!Q$3,FALSE)) -> 16459.2 | Q47: =IF(ISNA(VLOOKUP(CONCATENATE($A47,$A$4),Data!$A$2:$S$100,Lookup!R$3,FALSE)),"",VLOOKUP(CONCATENATE($A47,$A$4),Data!$A$2:$S$100,Lookup!R$3,FALSE)) -> 1225.309 | R47: =IF(ISNA(VLOOKUP(CONCATENATE($A47,$A$4),Data!$A$2:$S$100,Lookup!S$3,FALSE)),"",VLOOKUP(CONCATENATE($A47,$A$4),Data!$A$2:$S$100,Lookup!S$3,FALSE)) -> 1183.944756 | S47: =IF(ISNA(VLOOKUP(CONCATENATE($A47,$A$4),Data!$A$2:$S$100,Lookup!T$3,FALSE)),"",VLOOKUP(CONCATENATE($A47,$A$4),Data!$A$2:$S$100,Lookup!T$3,FALSE)) -> 91.92978198

Sheet Data
A1: lookup | B1: org_loc | C1: region | D1: HospGroup | E1: nothea | F1: theahou1 | G1: theahou2 | H1: Thgrpind | I1: medden | J1: nursing | K1: othstaff | L1: drugs | M1: cssd | N1: othsupp | O1: allocate | P1: totexp | Q1: income | R1: costthu | S1: cogrpind
A2: 1General hospitals (mainly acute) | B2: Number of Hospitals: 35 | E2: - | F2: - | G2: - | H2: - | I2: - | J2: - | K2: - | L2: - | M2: - | N2: - | O2: - | P2: - | Q2: - | R2: - | S2: -
A3: 2General hospitals (mainly acute) | B3: Totals or Averages | E3: 340.6 | F3: 8764.865577 | G3: 25.73360416 | H3: 100 | I3: 134255.9396 | J3: 159650.0727 | K3: 17688.52042 | L3: 15431.27428 | M3: 17017.00696 | N3: 132790.6426 | O3: 110147.2298 | P3: 586980.6863 | Q3: 8688.50618 | R3: 1287.879434 | S3: 100
A4: 3General hospitals (mainly acute) | B4: Queen Elizabeth University Hospital | C4: G | D4: A1 | E4: 29 | F4: 883.1538462 | G4: 30.4535809 | H4: 118.3416855 | I4: 11976.235 | J4: 17424.784 | K4: 424.575 | L4: 1688.074 | M4: 0.161 | N4: 16686.926 | O4: 8632.803 | P4: 56833.558 | Q4: 3605.175 | R4: 1237.556789 | S4: 96.0925966
A5: 4General hospitals (mainly acute) | B5: Glasgow Royal Infirmary | C5: G | D5: A1 | E5: 23 | F5: 623.6730769 | G5: 27.11622074 | H5: 105.3728058 | I5: 7317.288 | J5: 12510.713 | K5: -0.191 | L5: 884.087 | M5: 6.882 | N5: 8481.128 | O5: 6674.835 | P5: 35874.742 | Q5: 2789.31 | R5: 1106.186735 | S5: 85.89210336
A6: 5General hospitals (mainly acute) | B6: Edinburgh Royal Infirmary | C6: S | D6: A1 | E6: 27 | F6: 784.9615385 | G6: 29.07264957 | H6: 112.9754285 | I6: 11055.292 | J6: 11715.736 | K6: 3737.734 | L6: 1492.291 | M6: 2445.039 | N6: 18926.703 | O6: 1419.592 | P6: 50792.387 | Q6: - | R6: 1244.362463 | S6: 96.62103684
A7: 6General hospitals (mainly acute) | B7: Ninewells | C7: T | D7: A1 | E7: 18 | F7: 613.2469231 | G7: 34.0692735 | H7: 132.3921565 | I7: 10252.4695 | J7: 10952.9897 | K7: 1287.46795 | L7: 927.56192 | M7: 2071.68168 | N7: 7374.40579 | O7: 15595.303 | P7: 48461.87954 | Q7: - | R7: 1519.712838 | S7: 118.0011729
A8: 7General hospitals (mainly acute) | B8: Aberdeen Royal Infirmary | C8: N | D8: A1 | E8: 25 | F8: 494.4807692 | G8: 19.77923077 | H8: 76.86148682 | I8: 10862.116 | J8: 12012.795 | K8: 995.585 | L8: 1250.76 | M8: 286.79 | N8: 11334.467 | O8: 7348.503 | P8: 44091.016 | Q8: - | R8: 1714.736359 | S8: 133.1441681
A9: 8General hospitals (mainly acute) | B9: Western General, Edinburgh | C9: S | D9: A1 | E9: 11 | F9: 325.0384615 | G9: 29.54895105 | H9: 114.8263215 | I9: 5655.602 | J9: 5994.505 | K9: 1205.557 | L9: 631.319 | M9: 698.538 | N9: 6602.207 | O9: 683.578 | P9: 21471.306 | Q9: - | R9: 1270.341143 | S9: 98.63820395
A10: 9General hospitals (mainly acute) | B10: West Hospitals | C10: G | D10: A1 | E10: 11 | F10: 165.9615385 | G10: 15.08741259 | H10: 58.62922463 | I10: 2359.287 | J10: 4103.415 | K10: 10.031 | L10: 459.084 | M10: 0.286 | N10: 2517.921 | O10: 3450.623 | P10: 12900.647 | Q10: 917.056 | R10: 1494.860603 | S10: 116.0714709
A11: 10General hospitals (mainly acute) | B11: Forth Valley Royal Hospital | C11: V | D11: A2 | E11: 14.81 | F11: 364.7069231 | G11: 24.62572067 | H11: 95.69479857 | I11: 5659.80242 | J11: 4105.0776 | K11: 710.07154 | L11: 317.72954 | M11: 3956.49378 | N11: 220.85895 | O11: 5147.5367 | P11: 20117.57053 | Q11: - | R11: 1060.786982 | S11: 82.36694787
A12: 11General hospitals (mainly acute) | B12: Royal Alexandra Hospital | C12: G | D12: A2 | E12: 12 | F12: 296.2115385 | G12: 24.68429487 | H12: 95.92241615 | I12: 5591.312 | J12: 7239.382 | K12: 25.762 | L12: 622.495 | M12: 192.778 | N12: 4550.512 | O12: 3636.505 | P12: 21858.746 | Q12: - | R12: 1419.122638 | S12: 110.1906437
A13: 12General hospitals (mainly acute) | B13: Victoria Kirkcaldy | C13: F | D13: A2 | E13: 12 | F13: 445.3653846 | G13: 37.11378205 | H13: 144.2230238 | I13: 4806.259 | J13: 4635.383 | K13: 995.619 | L13: 345.592 | M13: 95.873 | N13: 6002.342 | O13: 740.309 | P13: 17621.377 | Q13: - | R13: 760.8867827 | S13: 59.08059112
A14: 13General hospitals (mainly acute) | B14: Wishaw General | C14: L | D14: A2 | E14: 12 | F14: 304.7307692 | G14: 25.39423077 | H14: 98.68120537 | I14: 5592.764 | J14: 6229.832 | K14: 266.774 | L14: 453.764 | M14: 139.374 | N14: 5123.122 | O14: 4937.601 | P14: 22743.231 | Q14: - | R14: 1435.266376 | S14: 111.4441568
A15: 14General hospitals (mainly acute) | B15: Crosshouse Hospital | C15: A | D15: A2 | E15: 13 | F15: 471.2307692 | G15: 36.24852071 | H15: 140.8606446 | I15: 5402.116 | J15: 6930.438 | K15: 71.517 | L15: 567.667 | M15: 1171.254 | N15: 4352.289 | O15: 4320.307 | P15: 22815.588 | Q15: - | R15: 931.096474 | S15: 72.2968664
A16: 15General hospitals (mainly acute) | B16: Hairmyres, East Kilbride | C16: L | D16: A2 | E16: 8 | F16: 253.1730769 | G16: 31.64663462 | H16: 122.9778558 | I16: 3727.511 | J16: 4551.593 | K16: 183.364 | L16: 348.199 | M16: 368.936 | N16: 5040.99 | O16: 4566.068 | P16: 18786.661 | Q16: - | R16: 1427.015648 | S16: 110.8035123
A17: 16General hospitals (mainly acute) | B17: Raigmore, Inverness | C17: H | D17: A2 | E17: 13 | F17: 315.445 | G17: 24.265 | H17: 94.29304908 | I17: 4365.79506 | J17: 5858.10689 | K17: 322.69356 | L17: 694.09401 | M17: 2.67642 | N17: 6926.32767 | O17: 5060.0819 | P17: 23229.77551 | Q17: 80.55318 | R17: 1416.17858 | S17: 109.9620463
A18: 17General hospitals (mainly acute) | B18: St. John's at Howden | C18: S | D18: A2 | E18: 14 | F18: 279.9615385 | G18: 19.99725275 | H18: 77.70871357 | I18: 6081.873 | J18: 6356.091 | K18: 1665.909 | L18: 553.817 | M18: 1533.07 | N18: 3523.076 | O18: 639.802 | P18: 20353.638 | Q18: - | R18: 1398.106745 | S18: 108.5588222
A19: 18General hospitals (mainly acute) | B19: Monklands Hospital | C19: L | D19: A2 | E19: 9 | F19: 214.3846154 | G19: 23.82051282 | H19: 92.56578547 | I19: 4266.332 | J19: 3601.573 | K19: 115.681 | L19: 285.983 | M19: 183.437 | N19: 2794.672 | O19: 4153.497 | P19: 15401.175 | Q19: - | R19: 1381.519107 | S19: 107.2708415
A20: 19General hospitals (mainly acute) | B20: The Ayr Hospital | C20: A | D20: A2 | E20: 11 | F20: 306.7115385 | G20: 27.88286713 | H20: 108.3519703 | I20: 3060.797 | J20: 4530.315 | K20: 872.264 | L20: 977.476 | M20: 780.823 | N20: 3256.743 | O20: 2813.681 | P20: 16292.099 | Q20: - | R20: 1021.512258 | S20: 79.31738256
A21: 20General hospitals (mainly acute) | B21: New Dumfries and Galloway Royal Infirmary | C21: Y | D21: A2 | E21: 9 | F21: 223.6538462 | G21: 24.85042735 | H21: 96.56800189 | I21: 2783.797 | J21: 4521.777 | K21: 272.966 | L21: 285.744 | M21: 15 | N21: 2910.061 | O21: 6879.633 | P21: 17668.978 | Q21: - | R21: 1519.258641 | S21: 117.9659059
A22: 21General hospitals (mainly acute) | B22: Inverclyde Royal Hospital | C22: G | D22: A2 | E22: 7 | F22: 122.3269231 | G22: 17.47527473 | H22: 67.90838398 | I22: 2060.523 | J22: 2580.679 | K22: 26 | L22: 223.011 | M22: 55.835 | N22: 1846.979 | O22: 2268.46 | P22: 9061.487 | Q22: - | R22: 1424.538123 | S22: 110.6111399
A23: 22General hospitals (mainly acute) | B23: Borders General | C23: B | D23: A2 | E23: 6 | F23: 151.1153846 | G23: 25.18589744 | H23: 97.87162839 | I23: 3602.637 | J23: 2891.195 | K23: 628.132 | L23: 220.779 | M23: 359.808 | N23: 1130.278 | O23: 2760.043 | P23: 11592.872 | Q23: 54.803 | R23: 1475.295495 | S23: 114.5522986
A24: 23General hospitals (mainly acute) | B24: Perth Royal Infirmary | C24: T | D24: A2 | E24: 8 | F24: 125.2290385 | G24: 15.65362981 | H24: 60.82952745 | I24: 2093.62131 | J24: 2577.13906 | K24: 241.61649 | L24: 253.75411 | M24: 1764.18586 | N24: 1120.37916 | O24: 3370.47 | P24: 11421.16599 | Q24: - | R24: 1753.888796 | S24: 136.1842382
A25: 24General hospitals (mainly acute) | B25: Queen Margaret Hospital | C25: F | D25: A3 | E25: 8 | F25: 150.5769231 | G25: 18.82211538 | H25: 73.14216566 | I25: 1023.016 | J25: 1796.5 | K25: 212.818 | L25: 610.437 | M25: 26.819 | N25: 1355.728 | O25: 285.584 | P25: 5310.902 | Q25: - | R25: 678.2761175 | S25: 52.66611916
A26: 25General hospitals (mainly acute) | B26: Dr. Gray's, Elgin | C26: N | D26: A3 | E26: 5 | F26: 133.1153846 | G26: 26.62307692 | H26: 103.456464 | I26: 2153.191 | J26: 2358.396 | K26: -5.671 | L26: 178.908 | M26: 78.187 | N26: 3037.516 | O26: 1560.105 | P26: 9360.632 | Q26: - | R26: 1352.301647 | S26: 105.0021928
A27: 26General hospitals (mainly acute) | B27: Vale of Leven, Alexandria | C27: G | D27: A3 | E27: 3 | F27: 30.86538462 | G27: 10.28846154 | H27: 39.98064738 | I27: 589.356 | J27: 715.715 | K27: - | L27: 86.174 | M27: 21.249 | N27: 390.319 | O27: 482.026 | P27: 2284.839 | Q27: - | R27: 1423.575701 | S27: 110.5364107
A28: 27General hospitals (mainly acute) | B28: Western Isles, Stornoway | C28: W | D28: A3 | E28: 2 | F28: 71.55769231 | G28: 35.77884615 | H28: 139.0355037 | I28: - | J28: 1001.81315 | K28: 960.66582 | L28: 17.65606 | M28: - | N28: 332.1969 | O28: 925.229 | P28: 3237.56093 | Q28: - | R28: 870.078186 | S28: 67.55897818
A29: 28General hospitals (mainly acute) | B29: Stracathro | C29: T | D29: A3 | E29: 4 | F29: 100.9771154 | G29: 25.24427885 | H29: 98.09849677 | I29: 1688.17114 | J29: 1194.40569 | K29: 84.97986 | L29: 77.46992 | M29: 261.01678 | N29: 961.9314 | O29: 3942.325 | P29: 8210.29979 | Q29: - | R29: 1563.625382 | S29: 121.410851
A30: 29General hospitals (mainly acute) | B30: Lorn & Islands District G.H. | C30: H | D30: A3 | E30: 1 | F30: 10.64038462 | G30: 10.64038462 | H30: 41.34820972 | I30: 565.91922 | J30: 597.35752 | K30: 25.8718 | L30: 89.60572 | M30: 0.07966 | N30: 127.31266 | O30: 386.91165 | P30: 1793.05823 | Q30: - | R30: 3240.661901 | S30: 251.627739
A31: 30General hospitals (mainly acute) | B31: Balfour, Kirkwall | C31: R | D31: A3 | E31: 1.79 | F31: 40.21346154 | G31: 22.46562097 | H31: 87.30071711 | I31: 928.63031 | J31: 599.07612 | K31: 0.3029 | L31: 0.75499 | M31: 143.82139 | N31: 119.85944 | O31: 591.5069 | P31: 2383.95205 | Q31: - | R31: 1140.046889 | S31: 88.52124344
A32: 31General hospitals (mainly acute) | B32: Gilbert Bain, Lerwick | C32: Z | D32: A3 | E32: 2 | F32: 19.71153846 | G32: 9.855769231 | H32: 38.29921829 | I32: 724.809 | J32: 121.13 | K32: 850.012 | L32: 18.073 | M32: 0.512 | N32: 245.744 | O32: 1193.368 | P32: 3153.648 | Q32: 16.3 | R32: 3076.729756 | S32: 238.8988964
A33: 32General hospitals (mainly acute) | B33: Galloway Community Hospital | C33: Y | D33: A3 | E33: 1 | F33: 9.711538462 | G33: 9.711538462 | H33: 37.73874192 | I33: 728.797 | J33: 537.284 | K33: - | L33: 17.139 | M33: 3.838 | N33: 98.079 | O33: 361.891 | P33: 1747.028 | Q33: - | R33: 3459.461386 | S33: 268.6168669
A34: 33General hospitals (mainly acute) | B34: Caithness General | C34: H | D34: A3 | E34: 2 | F34: 14.26884615 | G34: 7.134423077 | H34: 27.72415023 | I34: 382.87515 | J34: 433.28955 | K34: - | L34: 40.65006 | M34: 0.84687 | N34: 203.50849 | O34: 379.89562 | P34: 1441.06574 | Q34: - | R34: 1942.189466 | S34: 150.805224
A35: 34General hospitals (mainly acute) | B35: Belford | C35: H | D35: A3 | E35: 1 | F35: 12.48403846 | G35: 12.48403846 | H35: 48.51259227 | I35: 540.88852 | J35: 393.59438 | K35: 131.9005 | L35: 33.05395 | M35: 0.34552 | N35: 196.43011 | O35: 420.233 | P35: 1716.44598 | Q35: - | R35: 2644.062387 | S35: 205.3035647
A36: 35General hospitals (mainly acute) | B36: Royal Hospital For Children, Glasgow | C36: G | D36: A4 | E36: 9 | F36: 267.3461538 | G36: 29.70512821 | H36: 115.4332212 | I36: 3374.421 | J36: 5015.927 | K36: 602.224 | L36: 520.124 | M36: 2.417 | N36: 3246.955 | O36: 3697.132 | P36: 16459.2 | Q36: 1225.309 | R36: 1183.944756 | S36: 91.92978198
A37: 36General hospitals (mainly acute) | B37: RHSC, Edinburgh | C37: S | D37: A4 | E37: 5 | F37: 83.28846154 | G37: 16.65769231 | H37: 64.73128367 | I37: 2347.179 | J37: 2068.063 | K37: 401.629 | L37: 178.202 | M37: 341.469 | N37: 1390.547 | O37: 233.136 | P37: 6960.225 | Q37: - | R37: 1607.071115 | S37: 124.7842828
A38: 37General hospitals (mainly acute) | B38: Royal Aberdeen Children's | C38: N | D38: A4 | E38: 3 | F38: 55.34615385 | G38: 18.44871795 | H38: 71.69115462 | I38: 635.257 | J38: 1494.002 | K38: 364.659 | L38: 79.745 | M38: 7.484 | N38: 362.128 | O38: 588.655 | P38: 3531.93 | Q38: - | R38: 1227.216817 | S38: 95.28972857
A39: 1Long stay hospitals | B39: Number of Hospitals: 2 | E39: - | F39: - | G39: - | H39: - | I39: - | J39: - | K39: - | L39: - | M39: - | N39: - | O39: - | P39: - | Q39: - | R39: - | S39: -
A40: 2Long stay hospitals | B40: Totals or Averages | E40: 6 | F40: 137.75 | G40: 22.95833333 | H40: 100 | I40: 2317.927 | J40: 1880.55 | K40: 111.495 | L40: 156.343 | M40: 118.838 | N40: 4399.22 | O40: 1845.292 | P40: 10829.665 | Q40: - | R40: 1511.889571 | S40: 100
A41: 3Long stay hospitals | B41: Woodend General, Aberdeen | C41: N | D41: B8 | E41: 5 | F41: 134.0576923 | G41: 26.81153846 | H41: 116.7834706 | I41: 2238.762 | J41: 1880.55 | K41: 111.495 | L41: 156.343 | M41: 118.838 | N41: 4399.22 | O41: 1781.042 | P41: 10686.25 | Q41: - | R41: 1532.957969 | S41: 101.3935143
A42: 4Long stay hospitals | B42: Roodlands, Haddington | C42: S | D42: B8 | E42: 1 | F42: 3.692307692 | G42: 3.692307692 | H42: 16.08264694 | I42: 79.165 | J42: - | K42: - | L42: - | M42: - | N42: - | O42: 64.25 | P42: 143.415 | Q42: - | R42: 746.953125 | S42: 49.40527001
A43: 1Maternity hospitals | B43: Number of Hospitals: 1 | E43: - | F43: - | G43: - | H43: - | I43: - | J43: - | K43: - | L43: - | M43: - | N43: - | O43: - | P43: - | Q43: - | R43: - | S43: -
A44: 2Maternity hospitals | B44: Totals or Averages | E44: 1 | F44: 37.84615385 | G44: 37.84615385 | H44: 100 | I44: 973.525 | J44: 1538.927 | K44: 116.452 | L44: 130.71 | M44: 73.227 | N44: 421.37 | O44: 650.842 | P44: 3905.053 | Q44: - | R44: 1984.274898 | S44: 100
A45: 3Maternity hospitals | B45: Aberdeen Maternity | C45: N | D45: E19 | E45: 1 | F45: 37.84615385 | G45: 37.84615385 | H45: 100 | I45: 973.525 | J45: 1538.927 | K45: 116.452 | L45: 130.71 | M45: 73.227 | N45: 421.37 | O45: 650.842 | P45: 3905.053 | Q45: - | R45: 1984.274898 | S45: 100
A46: 1Other - miscellaneous hospitals | B46: Number of Hospitals: 4 | E46: - | F46: - | G46: - | H46: - | I46: - | J46: - | K46: - | L46: - | M46: - | N46: - | O46: - | P46: - | Q46: - | R46: - | S46: -
A47: 2Other - miscellaneous hospitals | B47: Totals or Averages | E47: 30 | F47: 758.1538462 | G47: 25.27179487 | H47: 100 | I47: 8913.288 | J47: 13276.411 | K47: 2366.663 | L47: 1852.456 | M47: 10.026 | N47: 16651.461 | O47: 13658.546 | P47: 56728.851 | Q47: 970.92 | R47: 1438.94204 | S47: 100
A48: 3Other - miscellaneous hospitals | B48: Golden Jubilee National Hospital | C48: D | D48: G21 | E48: 15 | F48: 509.4615385 | G48: 33.96410256 | H48: 134.3952922 | I48: 6374.119 | J48: 7455.64 | K48: 2333.965 | L48: 1182.247 | M48: 1.481 | N48: 13326.168 | O48: 7303.972 | P48: 37977.592 | Q48: - | R48: 1433.549449 | S48: 99.62523915
A49: 4Other - miscellaneous hospitals | B49: New Victoria Hospital | C49: G | D49: G21 | E49: 8 | F49: 125.8269231 | G49: 15.72836538 | H49: 62.23683543 | I49: 1499.711 | J49: 2846.72 | K49: 32.698 | L49: 396.014 | M49: 0.511 | N49: 1581.867 | O49: 3176.168 | P49: 9533.689 | Q49: 600.509 | R49: 1457.082225 | S49: 101.2606613
A50: 5Other - miscellaneous hospitals | B50: New Stobhill Hospital | C50: G | D50: G21 | E50: 6 | F50: 107.1153846 | G50: 17.8525641 | H50: 70.64224838 | I50: 1039.458 | J50: 2974.051 | K50: - | L50: 198.327 | M50: 0.473 | N50: 1410.826 | O50: 3015.633 | P50: 8638.768 | Q50: 370.411 | R50: 1550.945781 | S50: 107.7837562
A51: 6Other - miscellaneous hospitals | B51: Mountainhall Treatment Centre | C51: Y | D51: G21 | E51: 1 | F51: 15.75 | G51: 15.75 | H51: 62.32244318 | I51: - | J51: - | K51: - | L51: 75.868 | M51: 7.561 | N51: 332.6 | O51: 162.773 | P51: 578.802 | Q51: - | R51: 706.7179487 | S51: 49.11371889
A52: 1Community hospitals | B52: Number of Hospitals: 3 | E52: - | F52: - | G52: - | H52: - | I52: - | J52: - | K52: - | L52: - | M52: - | N52: - | O52: - | P52: - | Q52: - | R52: - | S52: -
A53: 2Community hospitals | B53: Totals or Averages | E53: 3 | F53: 35.30557692 | G53: 11.76852564 | H53: 100 | I53: 0.89481 | J53: 182.02141 | K53: 13.19974 | L53: 81.28444 | M53: 248.93515 | N53: 4.80897 | O53: 162.60566 | P53: 693.75018 | Q53: - | R53: 377.8822152 | S53: 100
A54: 3Community hospitals | B54: Falkirk Community Hospital | C54: V | D54: J26 | E54: 1 | F54: 19.92096154 | G54: 19.92096154 | H54: 169.2732135 | I54: 0.89481 | J54: 145.35498 | K54: 13.19974 | L54: 81.28444 | M54: 248.93515 | N54: 4.80897 | O54: 137.37666 | P54: 631.85475 | Q54: - | R54: 609.9631718 | S54: 161.4162158
A55: 4Community hospitals | B55: Uist & Barra Hospital | C55: W | D55: J26 | E55: 1 | F55: 14.42307692 | G55: 14.42307692 | H55: 122.5563623 | I55: - | J55: 31.34363 | K55: - | L55: - | M55: - | N55: - | O55: 25.229 | P55: 56.57263 | Q55: - | R55: 75.43017333 | S55: 19.96129225
A56: 5Community hospitals | B56: St. Brendan's, Barra | C56: W | D56: J26 | E56: 1 | F56: 0.9615384615 | G56: 0.9615384615 | H56: 8.170424154 | I56: - | J56: 5.3228 | K56: - | L56: - | M56: - | N56: - | O56: - | P56: 5.3228 | Q56: - | R56: 106.456 | S56: 28.17174128

Sheet Lookup
A3: General hospitals (mainly acute) | C3: 2 | D3: 3 | E3: 4 | F3: 5 | G3: 6 | H3: 7 | I3: 8 | J3: 9 | K3: 10 | L3: 11 | M3: 12 | N3: 13 | O3: 14 | P3: 15 | Q3: 16 | R3: 17 | S3: 18 | T3: 19 | U3: 20 | V3: 21 | W3: 22 | X3: 23 | Y3: 24 | Z3: 25 | AA3: 26 | AB3: 27 | AC3: 28 | AD3: 29 | AE3: 30 | AF3: 31 | AG3: 32 | AH3: 33 | AI3: 34 | AJ3: 35 | AK3: 36 | AL3: 37
A4: Community hospitals
A5: Long stay hospitals
A6: Maternity hospitals
A7: Other - miscellaneous hospitals
